Transaction Reference,Supplier Name,Line Value,Department,Category,Transaction Date,Year/Period,SME,Costs split between Babergh and Mid Suffolk District Councils Y/N,% of transaction apportioned to Mid Suffolk District Council,
0020028742,AARON SERVICES LTD,"23,474.82",Current Liabilities,Cert IBS Creditors Holding ac,11 Oct 2023,2324/07,SME,N,,
0020028749,AARON SERVICES LTD,"21,565.78",Current Liabilities,Cert IBS Creditors Holding ac,13 Oct 2023,2324/07,SME,N,,
0020028754,AARON SERVICES LTD,"66,713.84",Current Liabilities,Cert IBS Creditors Holding ac,23 Oct 2023,2324/07,SME,N,,
0020028755,AARON SERVICES LTD,"17,733.79",Current Liabilities,Cert IBS Creditors Holding ac,25 Oct 2023,2324/07,SME,N,,
0010060268,ANGLIAN WATER,"1,830.43",Sheltered Accommodation,Water Rates - Metered,11 Sep 2023,2324/07,LGE,N,,
0010060839,ASSOCIATION OF ELECTORAL ADMINISTRATORS,675.00,Electoral Registration,Returning Officer Fees,10 Oct 2023,2324/07,SME,Y,50%,
0010060840,ASSOCIATION OF ELECTORAL ADMINISTRATORS,675.00,Electoral Registration,Returning Officer Fees,11 Oct 2023,2324/07,SME,N,,
0010061144,BINDER LTD,718.13,Sewage Treatment Works,Contracted Services,12 Oct 2023,2324/07,SME,N,,
0010060574,BOTTOMLINE TECHNOLOGIES,736.27,ICT,Software Licnse (Line of Bus) ,30 Sep 2023,2324/07,LGE,Y,50%,
0010060588,BOWER FULLER,547.16,Sheltered Accommodation,Repairs,29 Sep 2023,2324/07,SME,N,,
0010060665,BOWER FULLER,"1,380.00",Tenancy Services,Fire Prevention,29 Sep 2023,2324/07,SME,N,,
0010060666,BOWER FULLER,"1,690.00",Tenancy Services,Fire Prevention,29 Sep 2023,2324/07,SME,N,,
0010060832,BOWER FULLER,"1,147.50",Sheltered Accommodation,Fire Prevention,05 Jun 2023,2324/07,SME,N,,
0010060833,BOWER FULLER,833.00,Sheltered Accommodation,Fire Prevention,05 Jun 2023,2324/07,SME,N,,
0010060834,BOWER FULLER,"1,054.00",Sheltered Accommodation,Fire Prevention,05 Jun 2023,2324/07,SME,N,,
0010060836,BOWER FULLER,578.32,Tenancy Services,Repairs,31 May 2023,2324/07,SME,N,,
0010060985,BOWER FULLER,863.33,Sheltered Accommodation,Repairs,18 Oct 2023,2324/07,SME,N,,
0010060987,BOWER FULLER,"1,050.00",Tenancy Services,Fire Prevention,18 Oct 2023,2324/07,SME,N,,
0010060987,BOWER FULLER,"1,404.00",Tenancy Services,Fire Prevention,18 Oct 2023,2324/07,SME,N,,
0010061025,BOWER FULLER,"3,463.50",Tenancy Services,Fire Prevention,18 Oct 2023,2324/07,SME,N,,
0010061146,AQUASAMPLERS,970.00,Water Sampling,Sampling & Analysis,30 Sep 2023,2324/07,SME,N,,
0010060675,CHIPSIDE LTD,539.58,C Parks General,Contracted Services,30 Sep 2023,2324/07,SME,N,,
0010060393,CLARKE FENCING LTD,"9,129.58","Fences, Gates and Walls",Improvements,26 Sep 2023,2324/07,SME,N,,
0010060489,D W ADAMS LTD,"5,787.00",Council House Adaptions,Improvements,29 Sep 2023,2324/07,SME,N,,
0010060864,D W ADAMS LTD,"1,160.00",Council House Adaptions,Improvements,12 Oct 2023,2324/07,SME,N,,
0010060868,D W ADAMS LTD,"4,986.00",Council House Adaptions,Improvements,12 Oct 2023,2324/07,SME,N,,
0010060435,CIVICA ELECTION SERVICES,"13,046.73",Electoral Registration,Returning Officer Fees,19 Sep 2023,2324/07,LGE,N,,
0010060626,ENER-G SWITCH2 LTD,515.92,Homelessness Private Sector,Electricity,04 Oct 2023,2324/07,SME,N,,
0010060357,FELLBRIDGE BUILDING SERVICES,698.84,Building Services,Repairs,25 Sep 2023,2324/07,SME,N,,
0010060745,FELLBRIDGE BUILDING SERVICES,574.94,Building Services,Repairs,09 Oct 2023,2324/07,SME,N,,
0010060746,FELLBRIDGE BUILDING SERVICES,"1,319.54",Building Services,Repairs,09 Oct 2023,2324/07,SME,N,,
0010061044,FELLBRIDGE BUILDING SERVICES,681.03,Building Services,Repairs,19 Oct 2023,2324/07,SME,N,,
0010061045,FELLBRIDGE BUILDING SERVICES,"5,844.91",Major Imps,Repairs,19 Oct 2023,2324/07,SME,N,,
0010061048,FELLBRIDGE BUILDING SERVICES,"18,960.02",Major Imps,Repairs,19 Oct 2023,2324/07,SME,N,,
0010061049,FELLBRIDGE BUILDING SERVICES,"22,634.24",Major Imps,Repairs,05 Oct 2023,2324/07,SME,N,,
0010061050,FELLBRIDGE BUILDING SERVICES,"23,538.52",Major Imps,Repairs,19 Oct 2023,2324/07,SME,N,,
0010061289,FELLBRIDGE BUILDING SERVICES,"18,363.66",Major Imps,Repairs,19 Oct 2023,2324/07,SME,N,,
0010060484,FORE-MOST GARAGE DOORS LTD,916.00,Building Services,Repairs,29 Sep 2023,2324/07,SME,N,,
0010060484,FORE-MOST GARAGE DOORS LTD,"2,009.00",Building Services,Repairs,29 Sep 2023,2324/07,SME,N,,
0010060484,FORE-MOST GARAGE DOORS LTD,73.00,Neighbourhood Services,Repairs,29 Sep 2023,2324/07,SME,N,,
0010060623,G4S CASH SOLUTIONS LTD,510.14,C Parks General,Contracted Services,30 Sep 2023,2324/07,LGE,N,,
0010060801,GHB ROOFING,"99,139.91",Roofing,Repairs,29 Sep 2023,2324/07,SME,N,,
0010060898,GHB ROOFING,"1,400.96",Building Services,Repairs,09 Oct 2023,2324/07,SME,N,,
0010060899,GHB ROOFING,"1,440.00",Building Services,Repairs,09 Oct 2023,2324/07,SME,N,,
0010060202,HAYES DIGGINS BUILDERS,835.00,Building Services,Repairs,04 Sep 2023,2324/07,SME,N,,
0010061069,HUDSON MEDIA PARTNERSHIP LTD,"1,087.50",Tenants Forum,Misc Supplies & Services Costs,20 Oct 2023,2324/07,SME,Y,50%,
0010060480,KEN GRIME & SON LTD,"1,273.47",Voids Maintenance,Repairs,29 Sep 2023,2324/07,SME,N,,
0010060566,M & H CIVIL ENGINEERING LTD,952.92,Voids Maintenance,Repairs,03 Oct 2023,2324/07,SME,N,,
0010060800,M & H CIVIL ENGINEERING LTD,"2,895.00",Building Services,Repairs,10 Oct 2023,2324/07,SME,N,,
0010060940,M & H CIVIL ENGINEERING LTD,723.70,Building Services,Repairs,16 Oct 2023,2324/07,SME,N,,
0010061253,M & H CIVIL ENGINEERING LTD,724.94,Building Services,Repairs,26 Oct 2023,2324/07,SME,N,,
0010060737,MARTIN BROKERS ( UK ) PLC,"4,986.30",Treasury Management,Prof & Consultancy Fees,30 Sep 2023,2324/07,LGE,N,,
0010060555,MB TREES (EAST ANGLIA) LTD,"2,850.00",Tenancy Services,Tree felling/maintenance,02 Oct 2023,2324/07,SME,N,,
0010060458,MERCURY BUILDING SERVICES LTD,"2,476.00",Kingfisher Leisure Centre,Repairs,28 Sep 2023,2324/07,SME,N,,
0010060501,MERCURY BUILDING SERVICES LTD,"1,653.00",Kingfisher Leisure Centre,Repairs,01 Oct 2023,2324/07,SME,N,,
0010060612,MERCURY BUILDING SERVICES LTD,"13,110.00",Kingfisher Leisure Centre,Repairs,05 Oct 2023,2324/07,SME,N,,
0010061238,MERCURY BUILDING SERVICES LTD,723.00,Assets & Development,"Equipment, Tools & Materials",26 Oct 2023,2324/07,SME,N,,
0010061239,MERCURY BUILDING SERVICES LTD,"1,185.00",RHSSF,Prof & Consultancy Fees,26 Oct 2023,2324/07,SME,N,,
0010060256,MIXBROW LTD,"5,302.50",Council House Adaptions,Improvements,21 Sep 2023,2324/07,SME,N,,
0010060257,MIXBROW LTD,"6,180.00",Council House Adaptions,Improvements,21 Sep 2023,2324/07,SME,N,,
0010060440,MIXBROW LTD,"4,112.50",Building Services,Repairs,26 Sep 2023,2324/07,SME,N,,
0010060441,MIXBROW LTD,"7,745.19",Council House Adaptions,Improvements,26 Sep 2023,2324/07,SME,N,,
0010060552,MIXBROW LTD,"3,245.00",Council House Adaptions,Improvements,28 Sep 2023,2324/07,SME,N,,
0010060554,MIXBROW LTD,"11,885.35",Council House Adaptions,Improvements,29 Sep 2023,2324/07,SME,N,,
0010060775,MIXBROW LTD,"4,488.00",Council House Adaptions,Improvements,09 Oct 2023,2324/07,SME,N,,
0010060776,MIXBROW LTD,"5,240.00",Council House Adaptions,Improvements,06 Oct 2023,2324/07,SME,N,,
0010061163,MIXBROW LTD,"2,650.00",Council House Adaptions,Improvements,24 Oct 2023,2324/07,SME,N,,
0010061164,MIXBROW LTD,"6,819.80",Council House Adaptions,Improvements,24 Oct 2023,2324/07,SME,N,,
0010061165,MIXBROW LTD,"3,815.00",Council House Adaptions,Improvements,24 Oct 2023,2324/07,SME,N,,
0010061166,MIXBROW LTD,"4,471.00",Council House Adaptions,Improvements,24 Oct 2023,2324/07,SME,N,,
0010060961,MONTHIND CLEAN LTD,720.21,Jnt Waste Contract,General Cleaning,15 Oct 2023,2324/07,LGE,Y,50%,
0010060656,PRO-FLAT SPECIALIST SERVICES LTD,"4,145.00",Roofing,Repairs,30 Sep 2023,2324/07,SME,N,,
0010060693,PRO-FLAT SPECIALIST SERVICES LTD,"14,375.00",Building Services,Repairs,30 Sep 2023,2324/07,SME,N,,
0010060958,SEAGER HOME SOLUTIONS,"24,570.38",Kitchens/Bathrooms,Major Contracts,13 Oct 2023,2324/07,SME,N,,
0010060959,SEAGER HOME SOLUTIONS,"30,132.09",Kitchens/Bathrooms,Major Contracts,13 Oct 2023,2324/07,SME,N,,
0010060855,SUFFOLK TREE SERVICES LTD,"3,500.00",Public Tree Programme,Tree felling/maintenance,11 Oct 2023,2324/07,SME,N,,
0010059960,SUREFIX,"1,025.00",Building Services,Repairs,08 Sep 2023,2324/07,SME,N,,
0010060109,SUREFIX,"1,525.00",Building Services,Repairs,11 Sep 2023,2324/07,SME,N,,
0010060312,SUREFIX,"1,200.00",Building Services,Repairs,20 Sep 2023,2324/07,SME,N,,
0010060488,SUREFIX,"1,800.00",Window & Door Rplcmts,Repairs,29 Sep 2023,2324/07,SME,N,,
0010060646,SUREFIX,900.00,Building Services,Repairs,05 Oct 2023,2324/07,SME,N,,
0010060647,SUREFIX,525.00,Building Services,Repairs,02 Oct 2023,2324/07,SME,N,,
0010060648,SUREFIX,"1,054.80",Voids Maintenance,Repairs,06 Oct 2023,2324/07,SME,N,,
0010060889,SUREFIX,"1,216.44",Window & Door Rplcmts,Repairs,02 Oct 2023,2324/07,SME,N,,
0010060890,SUREFIX,925.00,Building Services,Repairs,11 Oct 2023,2324/07,SME,N,,
0010061002,SUREFIX,"1,492.40",Window & Door Rplcmts,Repairs,18 Oct 2023,2324/07,SME,N,,
0010061151,SUREFIX,632.88,Window & Door Rplcmts,BMBS Repairs Work,24 Oct 2023,2324/07,SME,N,,
0010060456,THE PLAY INSPECTION COMPANY LTD,"1,514.56",Open Spaces,"Equipment, Tools & Materials",28 Sep 2023,2324/07,SME,N,,
0010060455,UK POWER NETWORKS,"3,090.00",EV Charge Points Car parks,Misc Supplies & Services Costs,28 Sep 2023,2324/07,LGE,N,,
0010061176,UK POWER NETWORKS,"5,761.00",EV Charge Points Car parks,Misc Supplies & Services Costs,18 Oct 2023,2324/07,LGE,N,,
0010061177,UK POWER NETWORKS,"4,240.00",EV Charge Points Car parks,Misc Supplies & Services Costs,18 Oct 2023,2324/07,LGE,N,,
0010061178,UK POWER NETWORKS,"3,453.00",EV Charge Points Car parks,Misc Supplies & Services Costs,18 Oct 2023,2324/07,LGE,N,,
0010060384,URBAN FORESTRY (BSE) LTD,"3,767.90","Fences, Gates and Walls",Improvements,25 Sep 2023,2324/07,SME,N,,
0010060658,URBAN FORESTRY (BSE) LTD,"2,236.66","Fences, Gates and Walls",Improvements,30 Sep 2023,2324/07,SME,N,,
0010060522,WEST END REHOMING,"11,000.00",Dog Control,Kennels Retainer,01 Oct 2023,2324/07,SME,N,,
0010060865,WINDIMAN LTD,800.00,Building Services,Repairs,30 Sep 2023,2324/07,SME,N,,
0010060866,WINDIMAN LTD,800.00,Building Services,Repairs,12 Oct 2023,2324/07,SME,N,,
0010060867,WINDIMAN LTD,800.00,Building Services,Repairs,12 Oct 2023,2324/07,SME,N,,
0010060509,WORKWEAR (EAST ANGLIA) LTD,642.92,Neighbourhood Services,Protective clothing,08 Sep 2023,2324/07,SME,Y,50%,
0010060510,WORKWEAR (EAST ANGLIA) LTD,641.67,Open Spaces,Protective clothing,28 Sep 2023,2324/07,SME,N,,
0010060510,WORKWEAR (EAST ANGLIA) LTD,641.66,Street & Major Road Cleansing,Protective clothing,28 Sep 2023,2324/07,SME,N,,
0010060942,CHUBB FIRE & SECURITY LTD,"2,273.21",Sheltered Accommodation,Fire Prevention,10 Oct 2023,2324/07,LGE,N,,
0010060814,IPSWICH BOROUGH COUNCIL,"384,586.97",Enterprise Zones,Prof & Consultancy Fees,11 Oct 2023,2324/07,LGE,N,,
0010061079,IPSWICH BOROUGH COUNCIL,"2,000.00",Visitor Economy,Prof & Consultancy Fees,20 Oct 2023,2324/07,LGE,N,,
0010061213,IPSWICH BOROUGH COUNCIL,"18,050.00",Shared Revenues Partnership,Contributions to other Bodies,24 Oct 2023,2324/07,LGE,N,,
0010061190,SERCO LTD,"2,612.00",Street & Major Road Cleansing,Plant & Vehicle - Other costs,25 Oct 2023,2324/07,LGE,Y,50%,
0020028753,EDF ENERGY,226.88,Belle Vue House,Electricity,15 Oct 2023,2324/07,LGE,N,,
0020028753,EDF ENERGY,588.41,C Parks General,Electricity,15 Oct 2023,2324/07,LGE,N,,
0020028753,EDF ENERGY,8.77,Calais St Depot,Electricity,15 Oct 2023,2324/07,LGE,N,,
0020028753,EDF ENERGY,"6,073.42",Chilton Depot,Electricity,15 Oct 2023,2324/07,LGE,Y,50%,
0020028753,EDF ENERGY,57.89,Climate Change and Sustainabil,Electricity,15 Oct 2023,2324/07,LGE,N,,
0020028753,EDF ENERGY,162.10,Community Safety-CCTV,Electricity,15 Oct 2023,2324/07,LGE,N,,
0020028753,EDF ENERGY,25.72,Hadleigh Market,Electricity,15 Oct 2023,2324/07,LGE,N,,
0020028753,EDF ENERGY,"6,620.52",Hadleigh Pool,Electricity,15 Oct 2023,2324/07,LGE,N,,
0020028753,EDF ENERGY,12.45,Headquarters General,Electricity,15 Oct 2023,2324/07,LGE,N,,
0020028753,EDF ENERGY,350.78,HQ Energy,Electricity,15 Oct 2023,2324/07,LGE,N,,
0020028753,EDF ENERGY,"16,952.90",Kingfisher Leisure Centre,Electricity,15 Oct 2023,2324/07,LGE,N,,
0020028753,EDF ENERGY,26.36,Navigation House,Electricity,15 Oct 2023,2324/07,LGE,N,,
0020028753,EDF ENERGY,361.97,Public Conveniences,Electricity,15 Oct 2023,2324/07,LGE,N,,
0020028753,EDF ENERGY,396.95,Sewage Treatment Works,Electricity,15 Oct 2023,2324/07,LGE,N,,
0020028753,EDF ENERGY,"10,780.15",Sheltered Accommodation,Electricity,15 Oct 2023,2324/07,LGE,N,,
0020028753,EDF ENERGY,276.98,SP Comm Alarms (Non-SH),Electricity,15 Oct 2023,2324/07,LGE,N,,
0020028753,EDF ENERGY,629.22,Temporary Accommodation,Electricity,15 Oct 2023,2324/07,LGE,N,,
0020028753,EDF ENERGY,"7,354.97",Tenancy Services,Electricity,15 Oct 2023,2324/07,LGE,N,,
0020028753,EDF ENERGY,946.57,Wenham Depot,Electricity,15 Oct 2023,2324/07,LGE,Y,50%,
0010060671,ERNST & YOUNG LLP,"11,000.00",Ext Audit,Audit Fees,05 Oct 2023,2324/07,LGE,N,,
0010060998,STANNAH STAIRLIFTS LTD,"3,258.00",Council House Adaptions,Improvements,18 Oct 2023,2324/07,LGE,N,,
0020028658,ACTON PARISH COUNCIL,"7,632.71",Current Liabilities,Parish Payments Available,06 Oct 2023,2324/07,SME,N,,
0020028659,ASSINGTON PARISH COUNCIL,"2,023.47",Current Liabilities,Parish Payments Available,06 Oct 2023,2324/07,SME,N,,
0020028660,BRANTHAM PARISH COUNCIL,"28,861.09",Current Liabilities,Parish Payments Available,06 Oct 2023,2324/07,SME,N,,
0020028661,BRETTENHAM PARISH COUNCIL,"4,186.04",Current Liabilities,Parish Payments Available,06 Oct 2023,2324/07,SME,N,,
0020028662,BURES ST MARY PARISH COUNCIL,"3,428.60",Current Liabilities,Parish Payments Available,06 Oct 2023,2324/07,SME,N,,
0010060794,CAPEL ST MARY PARISH COUNCIL,"25,950.00",CIL Funded REFCUS,Grants,10 Oct 2023,2324/07,SME,N,,
0010061046,CAPEL ST MARY PARISH COUNCIL,"3,155.22",Comm Devt Grants,Grants,19 Oct 2023,2324/07,SME,N,,
0020028663,CAPEL ST MARY PARISH COUNCIL,"2,792.81",Current Liabilities,Parish Payments Available,06 Oct 2023,2324/07,SME,N,,
0020028689,CAPEL ST MARY PARISH COUNCIL,606.56,Bring Sites,Contributions & Donations,11 Oct 2023,2324/07,SME,N,,
0020028673,CHATTISHAM & HINTLESHAM PARISH COUNCIL,"19,347.13",Current Liabilities,Parish Payments Available,06 Oct 2023,2324/07,SME,N,,
0020028664,CHELMONDISTON PARISH COUNCIL,"9,996.33",Current Liabilities,Parish Payments Available,06 Oct 2023,2324/07,SME,N,,
0020028713,CHELMONDISTON PARISH COUNCIL,515.24,Bring Sites,Contributions & Donations,11 Oct 2023,2324/07,SME,N,,
0020028665,CHILTON PARISH COUNCIL,"1,946.47",Current Liabilities,Parish Payments Available,06 Oct 2023,2324/07,SME,N,,
0020028666,COCKFIELD PARISH COUNCIL,"24,811.14",Current Liabilities,Parish Payments Available,06 Oct 2023,2324/07,SME,N,,
0020028667,COPDOCK & WASHBROOK PARISH COUNCIL,"6,591.40",Current Liabilities,Parish Payments Available,06 Oct 2023,2324/07,SME,N,,
0010061181,EAST BERGHOLT PARISH COUNCIL,"1,354.60",Street & Major Road Cleansing,Contributions & Donations,26 Oct 2023,2324/07,SME,N,,
0020028668,EAST BERGHOLT PARISH COUNCIL,"70,595.52",Current Liabilities,Parish Payments Available,06 Oct 2023,2324/07,SME,N,,
0020028669,ELMSETT PARISH COUNCIL,"32,356.14",Current Liabilities,Parish Payments Available,06 Oct 2023,2324/07,SME,N,,
0020028670,GREAT CORNARD PARISH COUNCIL,"1,010.32",Current Liabilities,Parish Payments Available,06 Oct 2023,2324/07,SME,N,,
0020028671,GROTON PARISH COUNCIL,706.26,Current Liabilities,Parish Payments Available,06 Oct 2023,2324/07,SME,N,,
0020028672,HADLEIGH TOWN COUNCIL,"10,938.35",Current Liabilities,Parish Payments Available,06 Oct 2023,2324/07,SME,N,,
0020028674,HITCHAM PARISH COUNCIL,"5,098.99",Current Liabilities,Parish Payments Available,06 Oct 2023,2324/07,SME,N,,
0010061182,HOLBROOK PARISH COUNCIL,880.49,Street & Major Road Cleansing,Contributions & Donations,26 Oct 2023,2324/07,SME,N,,
0010061184,LAVENHAM PARISH COUNCIL,"2,844.66",Street & Major Road Cleansing,Contributions & Donations,26 Oct 2023,2324/07,SME,N,,
0020028675,LAVENHAM PARISH COUNCIL,"35,414.53",Current Liabilities,Parish Payments Available,06 Oct 2023,2324/07,SME,N,,
0020028676,LAWSHALL PARISH COUNCIL,"15,528.33",Current Liabilities,Parish Payments Available,06 Oct 2023,2324/07,SME,N,,
0010061185,LONG MELFORD PARISH COUNCIL,"1,219.14",Street & Major Road Cleansing,Contributions & Donations,26 Oct 2023,2324/07,SME,N,,
0020028677,LONG MELFORD PARISH COUNCIL,"4,679.88",Current Liabilities,Parish Payments Available,06 Oct 2023,2324/07,SME,N,,
0020028700,LONG MELFORD PARISH COUNCIL,575.16,Bring Sites,Contributions & Donations,11 Oct 2023,2324/07,SME,N,,
0010060815,NEW ANGLIA LOCAL ENTERPRISE PARTNERSHIP,"17,892.09",Enterprise Zones,Prof & Consultancy Fees,11 Oct 2023,2324/07,SME,N,,
0020028678,RAYDON PARISH COUNCIL,"7,213.29",Current Liabilities,Parish Payments Available,06 Oct 2023,2324/07,SME,N,,
0020028679,SHOTLEY PARISH COUNCIL,"3,433.94",Current Liabilities,Parish Payments Available,06 Oct 2023,2324/07,SME,N,,
0020028680,SPROUGHTON PARISH COUNCIL,"6,268.28",Current Liabilities,Parish Payments Available,06 Oct 2023,2324/07,SME,N,,
0020028681,STUTTON PARISH COUNCIL,"6,329.96",Current Liabilities,Parish Payments Available,06 Oct 2023,2324/07,SME,N,,
0010060521,SUDBURY TOWN COUNCIL,604.24,Current Assets,AR Refunds,29 Sep 2023,2324/07,SME,N,,
0020028682,SUDBURY TOWN COUNCIL,"4,560.98",Current Liabilities,Parish Payments Available,06 Oct 2023,2324/07,SME,N,,
0020028727,SUDBURY TOWN COUNCIL,"1,831.94",Bring Sites,Contributions & Donations,11 Oct 2023,2324/07,SME,N,,
0020028683,WOOLVERSTONE PARISH COUNCIL,"6,489.98",Current Liabilities,Parish Payments Available,06 Oct 2023,2324/07,SME,N,,
0010060744,SUFFOLK COUNTY COUNCIL,"123,750.00",Afghan Resettlement Programme,Grants,06 Oct 2023,2324/07,LGE,N,,
0010060828,SUFFOLK COUNTY COUNCIL,"22,769.34",Garden Waste,Garden Waste Disposal,10 Oct 2023,2324/07,LGE,N,,
0010060828,SUFFOLK COUNTY COUNCIL,"20,802.34",Domestic Waste,MRF Disposal,10 Oct 2023,2324/07,LGE,N,,
0010060851,SUFFOLK COUNTY COUNCIL,710.00,Land Chgs,Contracted Services,11 Oct 2023,2324/07,LGE,N,,
0010060921,SUFFOLK COUNTY COUNCIL,965.46,General Rechargeable Works,Misc Supplies & Services Costs,13 Oct 2023,2324/07,LGE,N,,
0010061122,SUFFOLK COUNTY COUNCIL,"345,360.00",CIL Funded REFCUS,Grants,23 Oct 2023,2324/07,LGE,N,,
0010060701,FENN WRIGHT LLP,760.00,HRA Strategic Property,Prof & Consultancy Fees,06 Oct 2023,2324/07,SME,N,,
0010061149,FENN WRIGHT LLP,950.00,Assets & Development,Prof & Consultancy Fees,19 Oct 2023,2324/07,SME,N,,
0010060498,REED SPECIALIST RECRUITMENT LTD,519.84,Financial Servs,Recruitment,22 Sep 2023,2324/07,LGE,Y,50%,
0010060703,REED SPECIALIST RECRUITMENT LTD,519.84,Financial Servs,Recruitment,29 Sep 2023,2324/07,LGE,Y,50%,
0010061096,REED SPECIALIST RECRUITMENT LTD,519.84,Financial Servs,Recruitment,13 Oct 2023,2324/07,LGE,Y,50%,
0010061270,REED SPECIALIST RECRUITMENT LTD,519.84,Financial Servs,Recruitment,21 Oct 2023,2324/07,LGE,Y,50%,
0010060677,TRANSLATION & INTERPRETING PROVIDER LTD,520.00,Homelessness Private Sector,Telephone Costs,02 Oct 2023,2324/07,SME,N,,
0010060785,SUDBURY & DISTRICT CAB,"36,750.00",Grants & Contrbns,Grants,10 Oct 2023,2324/07,SME,N,,
0010060569,EDENS PROJECT,883.20,Holiday Activity Funding,"Equipment, Tools & Materials",03 Oct 2023,2324/07,SME,N,,
0010059885,ERNEST DOE & SONS LTD,595.00,Open Spaces,"Equipment, Tools & Materials",10 Jun 2023,2324/07,LGE,N,,
0010060636,ERNEST DOE & SONS LTD,"3,308.00",Open Spaces,"Equipment, Tools & Materials",12 Sep 2023,2324/07,LGE,N,,
0010060427,WHYBROW PROPERTY SOLUTIONS LTD,"3,699.87",Building Services,Repairs,27 Sep 2023,2324/07,SME,N,,
0010060490,WHYBROW PROPERTY SOLUTIONS LTD,"3,000.00",Major Imps,Repairs,29 Sep 2023,2324/07,SME,N,,
0010060576,WHYBROW PROPERTY SOLUTIONS LTD,"1,000.00",Kitchens/Bathrooms,Improvements,08 Sep 2023,2324/07,SME,N,,
0010060577,WHYBROW PROPERTY SOLUTIONS LTD,"1,000.00",Kitchens/Bathrooms,Improvements,08 Sep 2023,2324/07,SME,N,,
0010060708,WHYBROW PROPERTY SOLUTIONS LTD,"1,000.00",Kitchens/Bathrooms,Improvements,08 Sep 2023,2324/07,SME,N,,
0010060709,WHYBROW PROPERTY SOLUTIONS LTD,"1,000.00",Kitchens/Bathrooms,Improvements,08 Sep 2023,2324/07,SME,N,,
0010060710,WHYBROW PROPERTY SOLUTIONS LTD,"1,000.00",Kitchens/Bathrooms,Improvements,08 Sep 2023,2324/07,SME,N,,
0010060711,WHYBROW PROPERTY SOLUTIONS LTD,"1,000.00",Kitchens/Bathrooms,Improvements,08 Sep 2023,2324/07,SME,N,,
0010060712,WHYBROW PROPERTY SOLUTIONS LTD,"1,000.00",Kitchens/Bathrooms,Improvements,08 Sep 2023,2324/07,SME,N,,
0010060713,WHYBROW PROPERTY SOLUTIONS LTD,"1,000.00",Kitchens/Bathrooms,Improvements,08 Sep 2023,2324/07,SME,N,,
0010060714,WHYBROW PROPERTY SOLUTIONS LTD,"1,000.00",Kitchens/Bathrooms,Improvements,22 Sep 2023,2324/07,SME,N,,
0010060715,WHYBROW PROPERTY SOLUTIONS LTD,"1,000.00",Kitchens/Bathrooms,Improvements,08 Sep 2023,2324/07,SME,N,,
0010060716,WHYBROW PROPERTY SOLUTIONS LTD,"1,000.00",Kitchens/Bathrooms,Improvements,08 Sep 2023,2324/07,SME,N,,
0010060718,WHYBROW PROPERTY SOLUTIONS LTD,"1,000.00",Kitchens/Bathrooms,Improvements,08 Sep 2023,2324/07,SME,N,,
0010060763,WHYBROW PROPERTY SOLUTIONS LTD,"1,000.00",Kitchens/Bathrooms,Improvements,08 Sep 2023,2324/07,SME,N,,
0010060764,WHYBROW PROPERTY SOLUTIONS LTD,"1,000.00",Kitchens/Bathrooms,Improvements,08 Sep 2023,2324/07,SME,N,,
0010060765,WHYBROW PROPERTY SOLUTIONS LTD,"1,000.00",Kitchens/Bathrooms,Improvements,08 Sep 2023,2324/07,SME,N,,
0010060768,WHYBROW PROPERTY SOLUTIONS LTD,"2,952.00",Building Services,Repairs,09 Oct 2023,2324/07,SME,N,,
0010060405,L A C CLEANING CONTRACTORS LIMITED,691.77,Sheltered Accommodation,Contracted Services,26 Sep 2023,2324/07,SME,N,,
0010060406,L A C CLEANING CONTRACTORS LIMITED,730.80,Wenham Depot TDP,General Cleaning,26 Sep 2023,2324/07,SME,Y,50%,
0010060848,L A C CLEANING CONTRACTORS LIMITED,"2,195.50",Voids Maintenance,Repairs,12 Oct 2023,2324/07,SME,N,,
0010060917,L A C CLEANING CONTRACTORS LIMITED,510.50,Voids Maintenance,Repairs,16 Oct 2023,2324/07,SME,N,,
0010061036,L A C CLEANING CONTRACTORS LIMITED,"1,695.50",Voids Maintenance,Repairs,19 Oct 2023,2324/07,SME,N,,
0010061161,L A C CLEANING CONTRACTORS LIMITED,855.80,Wenham Depot TDP,General Cleaning,24 Oct 2023,2324/07,SME,Y,50%,
0010059790,MENTA,"5,625.00",Shared Prosperity Fund,Prof & Consultancy Fees,01 Sep 2023,2324/07,SME,N,,
0010060778,ARMSTRONG YORK ASBESTOS ENVIRONMENTAL,"1,908.65",Asbestos Survey & Reinspection,Prof & Consultancy Fees,29 Sep 2023,2324/07,SME,N,,
0020028732,BURES SPORTS GROUND COMMITTEE,563.50,Bring Sites,Contributions & Donations,11 Oct 2023,2324/07,SME,N,,
0010060437,BAREFOOT & GILLES LTD,960.00,Hadleigh A1071 Workspace,Prof & Consultancy Fees,27 Sep 2023,2324/07,SME,N,,
0010061219,COMMUNITY ACTION SUFFOLK,"1,400.00",Community Safety-General,Contributions & Donations,26 Sep 2023,2324/07,SME,N,,
0010061310,CHILDCARE VOUCHER LTD EDENRED (UK GROUP),922.75,Health & Safety,"Equipment, Tools & Materials",30 Oct 2023,2324/07,SME,Y,50%,
0010060556,CONCERTUS DESIGN & PROPERTY CONSULTANTS,960.00,Public Conveniences,Repairs,29 Sep 2023,2324/07,SME,N,,
0010060684,ORSIS UK LTD,"12,608.40",PV Panels,Contracted Services,07 Sep 2023,2324/07,SME,N,,
0010060485,OPUS PEOPLE SOLUTIONS LTD,672.69,Homeless Prevention Fund,Agency Staff,28 Sep 2023,2324/07,SME,N,,
0010060485,OPUS PEOPLE SOLUTIONS LTD,445.50,Climate Change and Sustainabil,Agency Staff,28 Sep 2023,2324/07,SME,N,,
0010060485,OPUS PEOPLE SOLUTIONS LTD,315.08,Organisational Devt,Agency Staff,28 Sep 2023,2324/07,SME,N,,
0010060485,OPUS PEOPLE SOLUTIONS LTD,199.54,Health & Safety,Agency Staff,28 Sep 2023,2324/07,SME,N,,
0010060485,OPUS PEOPLE SOLUTIONS LTD,250.09,Customer Servs,Agency Staff,28 Sep 2023,2324/07,SME,N,,
0010060485,OPUS PEOPLE SOLUTIONS LTD,634.39,Building Services,Agency Staff,28 Sep 2023,2324/07,SME,N,,
0010060784,OPUS PEOPLE SOLUTIONS LTD,675.71,Homeless Prevention Fund,Agency Staff,05 Oct 2023,2324/07,SME,N,,
0010060784,OPUS PEOPLE SOLUTIONS LTD,495.00,Climate Change and Sustainabil,Agency Staff,05 Oct 2023,2324/07,SME,N,,
0010060784,OPUS PEOPLE SOLUTIONS LTD,199.54,Health & Safety,Agency Staff,5 Oct 2023,2324/07,SME,N,,
0010060784,OPUS PEOPLE SOLUTIONS LTD,184.28,Customer Servs,Agency Staff,5 Oct 2023,2324/07,SME,N,,
0010060784,OPUS PEOPLE SOLUTIONS LTD,775.24,Building Services,Agency Staff,5 Oct 2023,2324/07,SME,N,,
0010060923,OPUS PEOPLE SOLUTIONS LTD,499.61,Homeless Prevention Fund,Agency Staff,13 Oct 2023,2324/07,SME,N,,
0010060923,OPUS PEOPLE SOLUTIONS LTD,78.19,Devt Mgmt - Applications,Agency Staff,13 Oct 2023,2324/07,SME,N,,
0010060923,OPUS PEOPLE SOLUTIONS LTD,767.25,Climate Change and Sustainabil,Agency Staff,13 Oct 2023,2324/07,SME,N,,
0010060923,OPUS PEOPLE SOLUTIONS LTD,222.22,Health & Safety,Agency Staff,13 Oct 2023,2324/07,SME,N,,
0010060923,OPUS PEOPLE SOLUTIONS LTD,184.27,Customer Servs,Agency Staff,13 Oct 2023,2324/07,SME,N,,
0010060923,OPUS PEOPLE SOLUTIONS LTD,880.88,Building Services,Agency Staff,13 Oct 2023,2324/07,SME,N,,
0010061061,OPUS PEOPLE SOLUTIONS LTD,687.06,Homeless Prevention Fund,Agency Staff,19 Oct 2023,2324/07,SME,N,,
0010061061,OPUS PEOPLE SOLUTIONS LTD,43.99,Devt Mgmt - Applications,Agency Staff,19 Oct 2023,2324/07,SME,N,,
0010061061,OPUS PEOPLE SOLUTIONS LTD,717.75,Climate Change and Sustainabil,Agency Staff,19 Oct 2023,2324/07,SME,N,,
0010061061,OPUS PEOPLE SOLUTIONS LTD,272.10,Health & Safety,Agency Staff,19 Oct 2023,2324/07,SME,N,,
0010061061,OPUS PEOPLE SOLUTIONS LTD,179.88,Customer Servs,Agency Staff,19 Oct 2023,2324/07,SME,N,,
0010061061,OPUS PEOPLE SOLUTIONS LTD,"1,329.25",Building Services,Agency Staff,19 Oct 2023,2324/07,SME,N,,
0010061277,OPUS PEOPLE SOLUTIONS LTD,642.46,Homeless Prevention Fund,Agency Staff,27 Oct 2023,2324/07,SME,N,,
0010061277,OPUS PEOPLE SOLUTIONS LTD,878.63,Climate Change and Sustainabil,Agency Staff,27 Oct 2023,2324/07,SME,N,,
0010061277,OPUS PEOPLE SOLUTIONS LTD,199.54,Health & Safety,Agency Staff,27 Oct 2023,2324/07,SME,N,,
0010061277,OPUS PEOPLE SOLUTIONS LTD,118.46,Customer Servs,Agency Staff,27 Oct 2023,2324/07,SME,N,,
0010061277,OPUS PEOPLE SOLUTIONS LTD,700.12,Building Services,Agency Staff,27 Oct 2023,2324/07,SME,N,,
0010060407,CORNERSTONE BARRISTERS,"3,747.50",Devt Management -Appeals,Legal Expenses,27 Sep 2023,2324/07,SME,N,,
0010060585,UNIVERSITY OF THE WEST OF ENGLAND,"4,500.00",Nghbrhd Plan Designations,Training,01 Oct 2023,2324/07,LGE,Y,50%,
0010060842,ELMHURST ENERGY SYSTEMS LTD,"1,484.00",Organisational Devt,Training,29 Sep 2023,2324/07,SME,Y,45%,
0010061290,RENOVO EMPLOYMENT GROUP LTD,"2,415.00",Organisational Devt,Training,30 Oct 2023,2324/07,SME,Y,50%,
0010060909,VERTAS GROUP LTD,840.00,Endeavour House - HQ,Plant & Vehicle - Other costs,09 Oct 2023,2324/07,SME,Y,50%,
0010060164,COLLINS SKIP HIRE,550.00,Building Services,Waste Disposal,18 Sep 2023,2324/07,SME,Y,50%,
0010060502,COLLINS SKIP HIRE,550.00,Building Services,Waste Disposal,30 Sep 2023,2324/07,SME,Y,50%,
0010060720,COLLINS SKIP HIRE,550.00,Building Services,Waste Disposal,09 Oct 2023,2324/07,SME,Y,50%,
0010060928,COLLINS SKIP HIRE,825.00,Building Services,Waste Disposal,16 Oct 2023,2324/07,SME,Y,50%,
0010060978,POSTURITE LTD,967.11,Health & Safety,"Equipment, Tools & Materials",17 Oct 2023,2324/07,SME,Y,50%,
0010060637,4PRINCIPLES CONSTRUCTION LTD,"2,377.14",Mand Disabled Facilities Grant,Grants,03 Oct 2023,2324/07,SME,N,,
0010060639,4PRINCIPLES CONSTRUCTION LTD,"4,610.64",Mand Disabled Facilities Grant,Grants,04 Oct 2023,2324/07,SME,N,,
0010061066,FORESOLUTIONS LTD,880.00,Open Spaces,Plant & Vehicle - Other costs,19 Oct 2023,2324/07,SME,N,,
0010060635,PENNA PLC,"3,520.00",Management Team,Agency Staff,03 Oct 2023,2324/07,SME,Y,50%,
0010060673,PENNA PLC,"9,540.00",Management Team,Agency Staff,03 Oct 2023,2324/07,SME,Y,50%,
0010060758,FROST AND PARTNERS,"1,100.00",Homes for Ukraine,Rent Payable,09 Oct 2023,2324/07,SME,N,,
0010060760,SUFFOLK MARKET EVENTS,682.50,Hadleigh Market,Contracted Services,20 Sep 2023,2324/07,SME,N,,
0010060925,SUFFOLK MARKET EVENTS,682.50,Hadleigh Market,Contracted Services,16 Oct 2023,2324/07,SME,N,,
0010060198,HAYS SPECIALIST RECRUITMENT LTD,940.90,Pld Maint/Enhncmts-Corp Bldgs,Agency Staff,18 Sep 2023,2324/07,LGE,Y,50%,
0010060374,HAYS SPECIALIST RECRUITMENT LTD,"1,150.00",Building Services Compliance,Recruitment,25 Sep 2023,2324/07,LGE,Y,50%,
0010060375,HAYS SPECIALIST RECRUITMENT LTD,"1,066.75",Pld Maint/Enhncmts-Corp Bldgs,Agency Staff,25 Sep 2023,2324/07,LGE,Y,50%,
0010060376,HAYS SPECIALIST RECRUITMENT LTD,"1,150.00",Building Services Compliance,Recruitment,25 Sep 2023,2324/07,LGE,Y,50%,
0010060377,HAYS SPECIALIST RECRUITMENT LTD,"1,150.00",Building Services Compliance,Recruitment,25 Sep 2023,2324/07,LGE,Y,50%,
0010060398,HAYS SPECIALIST RECRUITMENT LTD,"1,096.11",ICT - Finance System,Agency Staff,26 Sep 2023,2324/07,LGE,Y,50%,
0010060432,HAYS SPECIALIST RECRUITMENT LTD,"1,826.85",ICT - Finance System,Agency Staff,27 Sep 2023,2324/07,LGE,Y,50%,
0010060528,HAYS SPECIALIST RECRUITMENT LTD,885.00,Financial Servs,Agency Staff,02 Oct 2023,2324/07,LGE,Y,50%,
0010060529,HAYS SPECIALIST RECRUITMENT LTD,952.89,Pld Maint/Enhncmts-Corp Bldgs,Agency Staff,02 Oct 2023,2324/07,LGE,Y,50%,
0010060611,HAYS SPECIALIST RECRUITMENT LTD,"1,826.85",ICT - Finance System,Agency Staff,04 Oct 2023,2324/07,LGE,Y,50%,
0010060780,HAYS SPECIALIST RECRUITMENT LTD,"1,420.34",Pld Maint/Enhncmts-Corp Bldgs,Agency Staff,09 Oct 2023,2324/07,LGE,Y,50%,
0010060796,HAYS SPECIALIST RECRUITMENT LTD,"1,770.00",Financial Servs,Agency Staff,10 Oct 2023,2324/07,LGE,Y,50%,
0010060947,HAYS SPECIALIST RECRUITMENT LTD,"1,770.00",Financial Servs,Agency Staff,16 Oct 2023,2324/07,LGE,Y,50%,
0010060948,HAYS SPECIALIST RECRUITMENT LTD,"3,540.00",Financial Servs,Agency Staff,16 Oct 2023,2324/07,LGE,Y,50%,
0010060949,HAYS SPECIALIST RECRUITMENT LTD,"1,826.85",ICT - Finance System,Agency Staff,16 Oct 2023,2324/07,LGE,Y,50%,
0010060977,HAYS SPECIALIST RECRUITMENT LTD,880.97,Pld Maint/Enhncmts-Corp Bldgs,Agency Staff,17 Oct 2023,2324/07,LGE,Y,50%,
0010061030,HAYS SPECIALIST RECRUITMENT LTD,"1,826.85",ICT - Finance System,Agency Staff,18 Oct 2023,2324/07,LGE,Y,50%,
0010060469,PRIVATE LANDLORD,710.00,Guaranteed Rent Scheme,Rent Payable,02 Oct 2023,2324/07,ST,N,,
0010061274,PRIVATE LANDLORD,710.00,Guaranteed Rent Scheme,Rent Payable,30 Oct 2023,2324/07,ST,N,,
0010060873,PLACE SERVICES,"3,393.00",Devt Policy & Local Plans,Prof & Consultancy Fees,12 Oct 2023,2324/07,SME,Y,50%,
0010060732,THE STOWMARKET GLASS COMPANY LTD,793.85,Building Services,Repairs,13 Sep 2023,2324/07,SME,N,,
0010060788,ASPECT CONTRACTS LTD,"1,851.00",Asbestos,Improvements,10 Oct 2023,2324/07,LGE,N,,
0010060487,FENLAND LEISURE PRODUCTS LTD,616.80,Open Spaces,"Equipment, Tools & Materials",29 Sep 2023,2324/07,SME,N,,
0010060493,SUPERSTRUCTURES LTD,650.00,Building Services,Repairs,13 Sep 2023,2324/07,SME,N,,
0020028750,RIX PETROLEUM (EAST ANGLIA) LTD,"1,899.23",Open Spaces,Plant & Vehicle Fuel,01 Oct 2023,2324/07,SME,Y,50%,
0020028750,RIX PETROLEUM (EAST ANGLIA) LTD,"3,050.31",Tenancy Services,Heating Oil,01 Oct 2023,2324/07,SME,N,,
0010061105,NEIL ANDREW OFFICE SOLUTIONS LTD,"3,400.00",Building Services,"Equipment, Tools & Materials",23 Oct 2023,2324/07,SME,Y,50%,
0010060443,KNOWLES ASSOCIATES TFM LTD,"4,242.86",Public Realm TransitionProject,"Equipment, Tools & Materials",04 Aug 2023,2324/07,SME,N,,
0010060445,KNOWLES ASSOCIATES TFM LTD,"7,904.00",Building Services,Lease Cars - Payment,09 Aug 2023,2324/07,SME,Y,50%,
0010060446,KNOWLES ASSOCIATES TFM LTD,"3,952.00",Building Services,Lease Cars - Payment,21 Sep 2023,2324/07,SME,Y,50%,
0010060245,NORTHUMBRIAN WATER LTD,622.83,Water Sampling,Sampling & Analysis,20 Sep 2023,2324/07,LGE,N,,
0010060390,NORTHUMBRIAN WATER LTD,40.66,Building Services,Legionella Testing,26 Sep 2023,2324/07,LGE,N,,
0010060390,NORTHUMBRIAN WATER LTD,25.03,Chilton Depot,Legionella Testing,26 Sep 2023,2324/07,LGE,Y,50%,
0010060390,NORTHUMBRIAN WATER LTD,360.06,Public Conveniences,Legionella Testing,26 Sep 2023,2324/07,LGE,N,,
0010060390,NORTHUMBRIAN WATER LTD,175.17,Sheltered Accommodation,Legionella Testing,26 Sep 2023,2324/07,LGE,N,,
0010060390,NORTHUMBRIAN WATER LTD,180.04,Temporary Accommodation,Legionella Testing,26 Sep 2023,2324/07,LGE,N,,
0010060390,NORTHUMBRIAN WATER LTD,34.41,Wenham Depot,Legionella Testing,26 Sep 2023,2324/07,LGE,Y,50%,
0010060692,STORETEC SERVICES LTD,594.61,ICT,"Equipment, Tools & Materials",30 Sep 2023,2324/07,SME,Y,50%,
0010060414,GIPPING OCCUPATIONAL HEALTH LTD,655.80,Health & Safety,Contracted Services,13 Sep 2023,2324/07,SME,Y,50%,
0010060438,KOMPAN LTD,"5,985.96",Play equip,Repairs,26 Sep 2023,2324/07,SME,N,,
0010060439,KOMPAN LTD,"66,887.01",Play equip,Repairs,23 Sep 2023,2324/07,SME,N,,
0010060472,SUDBURYS,825.00,Guaranteed Rent Scheme,Rent Payable,02 Oct 2023,2324/07,SME,N,,
0010061287,SUDBURYS,825.00,Guaranteed Rent Scheme,Rent Payable,30 Oct 2023,2324/07,SME,N,,
0010060523,WILLIAM H BROWN ESTATE AGENTS - SUDBURY,975.00,Guaranteed Rent Scheme,Rent Payable,03 Oct 2023,2324/07,SME,N,,
0010060742,WILLIAM H BROWN ESTATE AGENTS - SUDBURY,775.00,Guaranteed Rent Scheme,Rent Payable,09 Oct 2023,2324/07,SME,N,,
0020028756,WILLIAM H BROWN ESTATE AGENTS - SUDBURY,"1,938.00",Rent Deposit Scheme,Misc Premises Costs,25 Oct 2023,2324/07,SME,N,,
0010060565,MTM PLANT AND SALES LTD,553.00,Public Conveniences,Contracted Services,30 Sep 2023,2324/07,SME,N,,
0010060281,ABBEYCROFT LEISURE,"5,525.00",Holiday Activity Funding,"Equipment, Tools & Materials",03 Jul 2023,2324/07,LGE,N,,
0010061141,PIGHTLES DEVELOPMENTS LTD,925.00,Guaranteed Rent Scheme,Rent Payable,24 Oct 2023,2324/07,SME,N,,
0010060755,A C LEIGH (NORWICH) LTD,600.82,Building Services,"Equipment, Tools & Materials",05 Oct 2023,2324/07,SME,N,,
0010061211,A C LEIGH (NORWICH) LTD,"1,072.39",Building Services,"Equipment, Tools & Materials",23 Oct 2023,2324/07,SME,N,,
0010060352,COOKS BLIND AND SHUTTERS LTD,500.00,Chilton Depot,Repairs,25 Sep 2023,2324/07,SME,Y,50%,
0010060352,COOKS BLIND AND SHUTTERS LTD,369.00,Wenham Depot,Repairs,25 Sep 2023,2324/07,SME,Y,50%,
0010060142,EDMUNDSON ELECTRICAL LTD (IPSWICH),"1,010.57",Building Services,"Equipment, Tools & Materials",09 Aug 2023,2324/07,LGE,N,,
0010060158,EDMUNDSON ELECTRICAL LTD (IPSWICH),809.23,Building Services,"Equipment, Tools & Materials",31 Aug 2023,2324/07,LGE,N,,
0010060539,EDMUNDSON ELECTRICAL LTD (IPSWICH),817.11,Building Services,"Equipment, Tools & Materials",29 Mar 2023,2324/07,LGE,N,,
0010060706,EDMUNDSON ELECTRICAL LTD (IPSWICH),531.25,Building Services,"Equipment, Tools & Materials",06 Oct 2023,2324/07,LGE,N,,
0010060875,EDMUNDSON ELECTRICAL LTD (IPSWICH),525.34,Building Services,"Equipment, Tools & Materials",11 Oct 2023,2324/07,LGE,N,,
0010060879,EDMUNDSON ELECTRICAL LTD (IPSWICH),583.44,Building Services,"Equipment, Tools & Materials",11 Oct 2023,2324/07,LGE,N,,
0010060903,EDMUNDSON ELECTRICAL LTD (IPSWICH),"1,111.97",Building Services,"Equipment, Tools & Materials",10 Oct 2023,2324/07,LGE,N,,
0010060520,EAST SUFFOLK COUNCIL,"11,190.38",Shared Prosperity Fund,Prof & Consultancy Fees,02 Oct 2023,2324/07,LGE,N,,
0010060667,STAGE EVENT SECURITY LTD,"1,395.00",Open Spaces,Misc Premises Costs,30 Sep 2023,2324/07,SME,N,,
0010060496,APTL ENTERPRISES LTD,"5,506.67",PV Panels,Contracted Services,31 Aug 2023,2324/07,SME,N,,
0010060497,APTL ENTERPRISES LTD,"5,506.67",PV Panels,Contracted Services,30 Sep 2023,2324/07,SME,N,,
0010060564,APTL ENTERPRISES LTD,"21,400.00",PV Panels,Contracted Services,29 Sep 2023,2324/07,SME,N,,
0010060604,ANGLIA COMMERCIAL FLOORING LTD,"1,020.16",Voids Maintenance,Repairs,04 Oct 2023,2324/07,SME,N,,
0010060605,ANGLIA COMMERCIAL FLOORING LTD,541.13,Voids Maintenance,Repairs,04 Oct 2023,2324/07,SME,N,,
0010060821,ANGLIA COMMERCIAL FLOORING LTD,759.50,Building Services,Repairs,11 Oct 2023,2324/07,SME,N,,
0010060822,ANGLIA COMMERCIAL FLOORING LTD,824.84,Building Services,Repairs,11 Oct 2023,2324/07,SME,N,,
0010060826,ANGLIA COMMERCIAL FLOORING LTD,627.79,Voids Maintenance,Repairs,11 Oct 2023,2324/07,SME,N,,
0010061078,ANGLIAN WATER BUS (NAT) LTD T/A WAVE,121.44,C Parks General,Water Rates - Metered,12 Oct 2023,2324/07,LGE,N,,
0010061078,ANGLIAN WATER BUS (NAT) LTD T/A WAVE,298.17,Chilton Depot,Water Rates - Metered,12 Oct 2023,2324/07,LGE,N,,
0010061078,ANGLIAN WATER BUS (NAT) LTD T/A WAVE,5.71,Friars Meadow Sudb,Water Rates - Metered,12 Oct 2023,2324/07,LGE,N,,
0010061078,ANGLIAN WATER BUS (NAT) LTD T/A WAVE,49.63,General Rechargeable Works,Misc Supplies & Services Costs,12 Oct 2023,2324/07,LGE,N,,
0010061078,ANGLIAN WATER BUS (NAT) LTD T/A WAVE,79.15,HQ Energy,Water Rates - Metered,12 Oct 2023,2324/07,LGE,N,,
0010061078,ANGLIAN WATER BUS (NAT) LTD T/A WAVE,319.14,Public Conveniences,Water Rates - Metered,12 Oct 2023,2324/07,LGE,N,,
0010061078,ANGLIAN WATER BUS (NAT) LTD T/A WAVE,"2,617.28",Sheltered Accommodation,Water Rates - Metered,12 Oct 2023,2324/07,LGE,N,,
0010061078,ANGLIAN WATER BUS (NAT) LTD T/A WAVE,44.46,Temporary Accommodation,Water Rates - Metered,12 Oct 2023,2324/07,LGE,N,,
0010061078,ANGLIAN WATER BUS (NAT) LTD T/A WAVE,102.46,Tenancy Services,Water Rates - Metered,12 Oct 2023,2324/07,LGE,N,,
0010060505,STUDLEY CAPITAL LIMITED,"2,731.25",Hamilton Road Regeneration,Prof & Consultancy Fees,02 Oct 2023,2324/07,ST,N,,
0010060421,GREENACRE RECRUITMENT LTD,513.75,HRA General Management,Agency Staff,27 Sep 2023,2324/07,SME,Y,50%,
0010060422,GREENACRE RECRUITMENT LTD,"2,550.00",Building Services,Agency Staff,27 Sep 2023,2324/07,SME,Y,50%,
0010060423,GREENACRE RECRUITMENT LTD,"5,100.00",Building Services,Agency Staff,27 Sep 2023,2324/07,SME,Y,50%,
0010060424,GREENACRE RECRUITMENT LTD,"1,188.00",Building Services,Agency Staff,27 Sep 2023,2324/07,SME,Y,50%,
0010060425,GREENACRE RECRUITMENT LTD,"2,000.00",Building Services Compliance,Agency Staff,27 Sep 2023,2324/07,SME,Y,50%,
0010060426,GREENACRE RECRUITMENT LTD,"1,580.00",Building Services,Agency Staff,27 Sep 2023,2324/07,SME,Y,50%,
0010060595,GREENACRE RECRUITMENT LTD,"1,580.00",Building Services,Agency Staff,04 Oct 2023,2324/07,SME,Y,50%,
0010060596,GREENACRE RECRUITMENT LTD,"1,422.00",Building Services,Agency Staff,04 Oct 2023,2324/07,SME,Y,50%,
0010060597,GREENACRE RECRUITMENT LTD,"2,000.00",Building Services Compliance,Agency Staff,04 Oct 2023,2324/07,SME,Y,50%,
0010060598,GREENACRE RECRUITMENT LTD,"2,570.70",Building Services,Agency Staff,04 Oct 2023,2324/07,SME,Y,50%,
0010060599,GREENACRE RECRUITMENT LTD,"3,425.00",HRA General Management,Agency Staff,04 Oct 2023,2324/07,SME,Y,50%,
0010060802,GREENACRE RECRUITMENT LTD,"2,400.00",Building Services,Agency Staff,11 Oct 2023,2324/07,SME,Y,50%,
0010060803,GREENACRE RECRUITMENT LTD,"2,550.00",Building Services,Agency Staff,11 Oct 2023,2324/07,SME,Y,50%,
0010060807,GREENACRE RECRUITMENT LTD,"1,975.00",Building Services,Agency Staff,11 Oct 2023,2324/07,SME,Y,50%,
0010060808,GREENACRE RECRUITMENT LTD,"3,425.00",HRA General Management,Agency Staff,11 Oct 2023,2324/07,SME,Y,50%,
0010060809,GREENACRE RECRUITMENT LTD,"1,116.00",Building Services,Agency Staff,11 Oct 2023,2324/07,SME,Y,50%,
0010060810,GREENACRE RECRUITMENT LTD,"2,000.00",Building Services Compliance,Agency Staff,11 Oct 2023,2324/07,SME,Y,50%,
0010061004,GREENACRE RECRUITMENT LTD,"3,425.00",HRA General Management,Agency Staff,18 Oct 2023,2324/07,SME,Y,50%,
0010061005,GREENACRE RECRUITMENT LTD,"1,912.50",Building Services,Agency Staff,18 Oct 2023,2324/07,SME,Y,50%,
0010061006,GREENACRE RECRUITMENT LTD,"2,400.00",Building Services,Agency Staff,18 Oct 2023,2324/07,SME,Y,50%,
0010061007,GREENACRE RECRUITMENT LTD,"1,440.00",Building Services,Agency Staff,18 Oct 2023,2324/07,SME,Y,50%,
0010061009,GREENACRE RECRUITMENT LTD,"2,000.00",Building Services Compliance,Agency Staff,18 Oct 2023,2324/07,SME,Y,50%,
0010061010,GREENACRE RECRUITMENT LTD,"1,975.00",Building Services,Agency Staff,18 Oct 2023,2324/07,SME,Y,50%,
0010060685,STUTTON COMMUNITY ASSOCIATION,"12,910.50",CIL Funded REFCUS,Grants,06 Oct 2023,2324/07,SME,N,,
0010060518,TIAA LTD,"5,000.00",Internal Audit,Contracted Services,01 Oct 2023,2324/07,SME,Y,50%,
0010061139,BYCHOICE LTD,950.00,Guaranteed Rent Scheme,Rent Payable,24 Oct 2023,2324/07,SME,N,,
0010061055,LAND USE CONSULTANTS LTD,"3,500.00",Nghbrhd Plan Designations,Prof & Consultancy Fees,19 Oct 2023,2324/07,SME,N,,
0010061150,LAND USE CONSULTANTS LTD,"1,881.00",Devt Policy & Local Plans,Prof & Consultancy Fees,24 Oct 2023,2324/07,SME,Y,50%,
0010060586,MAN WITH A VAN SUDBURY,695.00,Homeless Prevention Fund,Removal Expenses,28 Jul 2023,2324/07,SME,N,,
0010061142,REEFER PROPERTIES LTD,695.00,Guaranteed Rent Scheme,Rent Payable,24 Oct 2023,2324/07,SME,N,,
0010060208,WADDINGTON BROWN LTD,"1,295.33",Organisational Devt,Agency Staff,18 Sep 2023,2324/07,SME,Y,50%,
0010060402,WADDINGTON BROWN LTD,"1,158.98",Organisational Devt,Agency Staff,25 Sep 2023,2324/07,SME,Y,50%,
0010060536,WADDINGTON BROWN LTD,"1,158.98",Organisational Devt,Agency Staff,02 Oct 2023,2324/07,SME,Y,50%,
0010060849,WADDINGTON BROWN LTD,"1,158.98",Organisational Devt,Agency Staff,09 Oct 2023,2324/07,SME,Y,50%,
0010061001,WADDINGTON BROWN LTD,"1,158.98",Organisational Devt,Agency Staff,16 Oct 2023,2324/07,SME,Y,50%,
0010060467,PRIVATE LANDLORD,515.00,Guaranteed Rent Scheme,Rent Payable,02 Oct 2023,2324/07,ST,N,,
0010061275,PRIVATE LANDLORD,515.00,Guaranteed Rent Scheme,Rent Payable,01 Feb 2023,2324/07,ST,N,,
0010060770,PRIVATE LANDLORD,675.00,Guaranteed Rent Scheme,Rent Payable,10 Oct 2023,2324/07,ST,N,,
0010061104,PRIVATE LANDLORD,700.00,Guaranteed Rent Scheme,Rent Payable,23 Oct 2023,2324/07,ST,N,,
0010061128,SEQUENCE UK LTD (WILLIAM H BROWN),"1,500.00",Bourne Hill Wherstead S106 acq,Prof & Consultancy Fees,20 Oct 2023,2324/07,LGE,N,,
0010061222,SEQUENCE UK LTD (WILLIAM H BROWN),"1,500.00",Waldingfield Rd S106 Andersons,Prof & Consultancy Fees,20 Oct 2023,2324/07,LGE,N,,
0010061097,PRIVATE LANDLORD,550.00,Guaranteed Rent Scheme,Rent Payable,23 Oct 2023,2324/07,ST,N,,
0010061278,PRIVATE LANDLORD,750.00,Guaranteed Rent Scheme,Rent Payable,30 Oct 2023,2324/07,ST,N,,
0010060739,PRIVATE LANDLORD,"1,320.00",Guaranteed Rent Scheme,Rent Payable,09 Oct 2023,2324/07,ST,N,,
0010060453,SUFFOLK DOORS & WINDOWS LTD,950.00,Building Services,Repairs,28 Sep 2023,2324/07,SME,N,,
0010060627,SUFFOLK DOORS & WINDOWS LTD,"12,530.00",Building Services,Repairs,05 Oct 2023,2324/07,SME,N,,
0010060741,PRIVATE LANDLORD,786.50,Guaranteed Rent Scheme,Rent Payable,09 Oct 2023,2324/07,ST,N,,
0010060722,PRIVATE LANDLORD,650.00,Guaranteed Rent Scheme,Rent Payable,09 Oct 2023,2324/07,ST,N,,
0010060772,COUNTRYSTYLE RECYCLING LTD,"3,913.40",Bring Sites,Contracted Services,30 Sep 2023,2324/07,SME,N,,
0010060854,COUNTRYSTYLE RECYCLING LTD,900.00,Street & Major Road Cleansing,"Equipment, Tools & Materials",30 Sep 2023,2324/07,SME,N,,
0010060738,PRIVATE LANDLORD,835.00,Guaranteed Rent Scheme,Rent Payable,09 Oct 2023,2324/07,ST,N,,
0010060740,PRIVATE LANDLORD,750.00,Guaranteed Rent Scheme,Rent Payable,09 Oct 2023,2324/07,ST,N,,
0010060473,PRIVATE LANDLORD,880.00,Guaranteed Rent Scheme,Rent Payable,02 Oct 2023,2324/07,ST,N,,
0010060317,ARAN INSULATION LTD,"12,582.93",Insulation Imps,Improvements,22 Sep 2023,2324/07,SME,N,,
0010060344,ARAN INSULATION LTD,"3,828.25",Insulation Imps,Repairs,20 Sep 2023,2324/07,SME,N,,
0010060559,ARAN INSULATION LTD,"2,308.31",Insulation Imps,Improvements,25 Sep 2023,2324/07,SME,N,,
0010060628,ARAN INSULATION LTD,"3,886.25",Insulation Imps,Repairs,05 Oct 2023,2324/07,SME,N,,
0010060804,ARAN INSULATION LTD,"1,654.64",Insulation Imps,Repairs,11 Oct 2023,2324/07,SME,N,,
0010060805,ARAN INSULATION LTD,"2,496.77",Insulation Imps,Repairs,11 Oct 2023,2324/07,SME,N,,
0010060845,ARAN INSULATION LTD,"2,379.67",Insulation Imps,Repairs,12 Oct 2023,2324/07,SME,N,,
0010060475,PRIVATE LANDLORD,520.00,Guaranteed Rent Scheme,Rent Payable,02 Oct 2023,2324/07,ST,N,,
0010061110,PRIVATE LANDLORD,595.00,Guaranteed Rent Scheme,Rent Payable,23 Oct 2023,2324/07,ST,N,,
0020028751,DRISCOLL KINGSTON SOLICITORS,"1,000.00",Building Services,Payments to Tenants,19 Oct 2023,2324/07,SME,N,,
0010061116,PRIVATE LANDLORD,575.00,Guaranteed Rent Scheme,Rent Payable,23 Oct 2023,2324/07,ST,N,,
0010060707,IPSERV LTD,"1,362.40",Communications,Commercial Printing,01 Sep 2023,2324/07,SME,N,,
0010060707,IPSERV LTD,68.75,Central Printing,Commercial Printing,01 Sep 2023,2324/07,SME,N,,
0010061113,IPSERV LTD,780.30,Communications,Commercial Printing,30 Sep 2023,2324/07,SME,N,,
0010061114,IPSERV LTD,"2,516.78",Communications,Commercial Printing,05 May 2023,2324/07,SME,N,,
0010061119,IPSERV LTD,919.96,Communications,Commercial Printing,30 Sep 2023,2324/07,SME,N,,
0010061119,IPSERV LTD,397.53,Central Printing,Commercial Printing,30 Sep 2023,2324/07,SME,N,,
0010061112,JACKSON LIFT SERVICES LTD,525.00,Sheltered Accommodation,Plant Maintenance,05 Oct 2023,2324/07,LGE,N,,
0010061123,DAVID BURR LETTINGS,750.00,Guaranteed Rent Scheme,Rent Payable,23 Oct 2023,2324/07,SME,N,,
0010060640,FOURWAYS VEHICLE SOLUTIONS LTD,"1,092.00",Building Services,Lease Cars - Payment,03 Aug 2023,2324/07,SME,Y,50%,
0010060642,FOURWAYS VEHICLE SOLUTIONS LTD,"1,062.60",Building Services,Lease Cars - Payment,13 Sep 2023,2324/07,SME,Y,50%,
0010060789,PRIVATE LANDLORD,715.00,Guaranteed Rent Scheme,Rent Payable,10 Oct 2023,2324/07,ST,N,,
0010060583,THE PLANNING INSPECTORATE,"4,686.96",Devt Policy & Local Plans,Prof & Consultancy Fees,03 Oct 2023,2324/07,LGE,Y,50%,
0010060881,ANGLIA SPORTS MANAGEMENT LTD,"8,888.54",Holiday Activity Funding,"Equipment, Tools & Materials",11 Sep 2023,2324/07,SME,N,,
0010060915,PRIVATE LANDLORD,675.00,Guaranteed Rent Scheme,Rent Payable,16 Oct 2023,2324/07,ST,N,,
0010060930,PRIVATE LANDLORD,650.00,Guaranteed Rent Scheme,Rent Payable,16 Oct 2023,2324/07,ST,N,,
0010061133,PRIVATE LANDLORD,650.00,Guaranteed Rent Scheme,Rent Payable,24 Oct 2023,2324/07,ST,N,,
0010060477,BELL CONTAINER TRADING LTD,672.85,Public Realm TransitionProject,"Equipment, Tools & Materials",27 Sep 2023,2324/07,SME,N,,
0010061059,BELL CONTAINER TRADING LTD,672.00,Public Realm TransitionProject,"Equipment, Tools & Materials",19 Oct 2023,2324/07,SME,N,,
0010061258,BELL CONTAINER TRADING LTD,695.27,Public Realm TransitionProject,"Equipment, Tools & Materials",26 Oct 2023,2324/07,SME,N,,
0010060771,MINI WASTE LTD,712.00,Open Spaces,Waste Disposal,30 Sep 2023,2324/07,SME,N,,
0010060362,MAXIM SPORTS COACHING,"2,375.00",Holiday Activity Funding,"Equipment, Tools & Materials",25 Sep 2023,2324/07,SME,N,,
0010060929,MAXIM SPORTS COACHING,"1,064.00",Holiday Activity Funding,"Equipment, Tools & Materials",16 Oct 2023,2324/07,SME,N,,
0010060914,PRIVATE LANDLORD,725.00,Guaranteed Rent Scheme,Rent Payable,16 Oct 2023,2324/07,ST,N,,
0010061174,HAMILTON SMITH LETTINGS,670.00,Guaranteed Rent Scheme,Rent Payable,24 Oct 2023,2324/07,SME,N,,
0010060931,KBM HOUSE SHARE & PROPERTY MANAGEMENT LT,600.00,Guaranteed Rent Scheme,Rent Payable,16 Oct 2023,2324/07,SME,N,,
0010060908,PAY 360 LIMITED,"1,008.45",Bank Chgs,Bank Charges,11 Oct 2023,2324/07,LGE,N,,
0010061037,PAY 360 LIMITED,"5,065.37",Bank Chgs,Bank Charges,18 Oct 2023,2324/07,LGE,N,,
0010060933,PRIVATE LANDLORD,550.00,Guaranteed Rent Scheme,Rent Payable,16 Oct 2023,2324/07,ST,N,,
0010060483,KARCHER UK LTD,"8,247.03",Street & Major Road Cleansing,"Equipment, Tools & Materials",28 Sep 2023,2324/07,LGE,N,,
0010060503,KARCHER UK LTD,"8,247.03",Street & Major Road Cleansing,"Equipment, Tools & Materials",30 Sep 2023,2324/07,LGE,N,,
0010061100,PRIVATE LANDLORD,575.00,Guaranteed Rent Scheme,Rent Payable,23 Oct 2023,2324/07,ST,N,,
0010061062,AESTIMA LTD,600.00,Building Services,Payments to Tenants,19 Oct 2023,2324/07,SME,N,,
0010061063,AESTIMA LTD,"1,380.00",Building Services,Payments to Tenants,19 Oct 2023,2324/07,SME,N,,
0010061201,JPK TRADE SUPPLIES LTD,"1,400.00",Street & Major Road Cleansing,"Equipment, Tools & Materials",20 Oct 2023,2324/07,SME,N,,
0010060428,NEWSQUEST MEDIA GROUP,700.40,Devt Management -Applications,Advertising&mkting (non-staff),27 Sep 2023,2324/07,LGE,N,,
0010060721,NEWSQUEST MEDIA GROUP,576.80,Devt Management -Applications,Advertising&mkting (non-staff),13 Sep 2023,2324/07,LGE,N,,
0010060902,NEWSQUEST MEDIA GROUP,576.80,Devt Management -Applications,Advertising&mkting (non-staff),11 Oct 2023,2324/07,LGE,N,,
0010061016,NEWSQUEST MEDIA GROUP,865.20,Devt Management -Applications,Advertising&mkting (non-staff),18 Oct 2023,2324/07,LGE,N,,
0010061204,NEWSQUEST MEDIA GROUP,741.60,Devt Management -Applications,Advertising&mkting (non-staff),25 Oct 2023,2324/07,LGE,N,,
0010060392,BELL DECORATING GROUP LTD,"7,904.27",Planned Maint - Ext Painting,External Painting,26 Sep 2023,2324/07,LGE,N,,
0010061155,J COOK CARPENTRY LTD,"2,020.00",Tenancy Services,Fire Prevention,25 Oct 2023,2324/07,SME,N,,
0010060608,FAITHORN FARRELL TIMMS,"4,250.00",Building Services,Repairs,29 Sep 2023,2324/07,SME,Y,50%,
0010060624,FAITHORN FARRELL TIMMS,"9,150.00",Building Services,Repairs,29 Sep 2023,2324/07,SME,Y,50%,
0010060645,FAITHORN FARRELL TIMMS,"4,250.00",Planned Maint - Heating,Property Servicing,30 Sep 2023,2324/07,SME,Y,50%,
0010060960,FAITHORN FARRELL TIMMS,"6,450.00",Building Servs Tech Staff,Prof & Consultancy Fees,16 Oct 2023,2324/07,SME,N,,
0010061014,FAITHORN FARRELL TIMMS,"8,630.00",Building Servs Tech Staff,Contracted Services,17 Oct 2023,2324/07,SME,Y,50%,
0010060506,GCS COMPLIANCE LTD,951.20,Building Services,Prof & Consultancy Fees,30 Sep 2023,2324/07,SME,N,,
0010060781,ANGELUS LAW LTD,"6,680.00",Building Services,Payments to Tenants,10 Oct 2023,2324/07,SME,N,,
0010060883,ANGELUS LAW LTD,"1,200.00",Building Services,Payments to Tenants,13 Oct 2023,2324/07,SME,N,,
0010060610,SOCITM ADVISORY LTD,"32,700.00",ICT - Finance System,Contracted Services,29 Sep 2023,2324/07,SME,Y,50%,
0010061276,PRIVATE LANDLORD,575.00,Guaranteed Rent Scheme,Rent Payable,30 Oct 2023,2324/07,ST,N,,
0010060420,PRECISION RESOURCE GROUP LTD T/A PANORAM,"2,812.50",Building Services Compliance,Agency Staff,27 Sep 2023,2324/07,LGE,Y,50%,
0010060601,PRECISION RESOURCE GROUP LTD T/A PANORAM,"1,687.50",Building Services Compliance,Agency Staff,04 Oct 2023,2324/07,LGE,Y,50%,
0010060620,PRECISION RESOURCE GROUP LTD T/A PANORAM,"1,875.00",Building Servs Tech Staff,Agency Staff,27 Sep 2023,2324/07,LGE,Y,50%,
0010060669,PRECISION RESOURCE GROUP LTD T/A PANORAM,"1,875.00",Building Servs Tech Staff,Agency Staff,04 Oct 2023,2324/07,LGE,Y,50%,
0010060829,PRECISION RESOURCE GROUP LTD T/A PANORAM,"2,250.00",HRA General Management,Agency Staff,11 Oct 2023,2324/07,LGE,Y,50%,
0010060900,PRECISION RESOURCE GROUP LTD T/A PANORAM,"1,875.00",Building Servs Tech Staff,Agency Staff,11 Oct 2023,2324/07,LGE,Y,50%,
0010061003,PRECISION RESOURCE GROUP LTD T/A PANORAM,"2,250.00",HRA General Management,Agency Staff,18 Oct 2023,2324/07,LGE,Y,50%,
0010061060,PRECISION RESOURCE GROUP LTD T/A PANORAM,"1,875.00",Building Servs Tech Staff,Agency Staff,18 Oct 2023,2324/07,LGE,Y,50%,
0010060759,CUTLERS WOOD LTD,750.00,Guaranteed Rent Scheme,Rent Payable,09 Oct 2023,2324/07,SME,N,,
0010060470,PRIVATE LANDLORD,575.00,Guaranteed Rent Scheme,Rent Payable,02 Oct 2023,2324/07,ST,N,,
0010061299,PRIVATE LANDLORD,575.00,Guaranteed Rent Scheme,Rent Payable,30 Oct 2023,2324/07,ST,N,,
0010060465,HOME TO RENT LTD,975.00,Guaranteed Rent Scheme,Rent Payable,02 Oct 2023,2324/07,SME,N,,
0010060463,PRIVATE LANDLORD,"1,000.00",Guaranteed Rent Scheme,Rent Payable,02 Oct 2023,2324/07,ST,N,,
0010060939,MORE IQ LIMITED,"9,600.00",Building Services,Prof & Consultancy Fees,16 Oct 2023,2324/07,SME,Y,50%,
0020028760,SEFE ENERGY LIMITED,61.82,HQ Energy,Gas,15 Oct 2023,2324/07,LGE,N,,
0020028760,SEFE ENERGY LIMITED,"1,083.12",Sheltered Accommodation,Gas,15 Oct 2023,2324/07,LGE,N,,
0020028760,SEFE ENERGY LIMITED,152.90,Temporary Accommodation,Gas,15 Oct 2023,2324/07,LGE,N,,
0010060578,PRINCIPLE CONSTRUCTION & MAINTENANCE LTD,"9,140.78",Council House Adaptions,Improvements,04 Oct 2023,2324/07,SME,N,,
0010061297,WILES PROPERTY,875.00,Guaranteed Rent Scheme,Rent Payable,30 Oct 2023,2324/07,SME,N,,
0010060858,INSTITUTE OF FISHERIES MANAGEMENT,"1,300.00",Open Spaces,Training,11 Oct 2023,2324/07,SME,N,,
0010060447,LAW MORGAN LTD T/A MORGAN LAW,"2,300.00",Commissioning & Procurement,Agency Staff,28 Sep 2023,2324/07,SME,N,,
0010060448,LAW MORGAN LTD T/A MORGAN LAW,"4,024.30",Financial Servs,Agency Staff,28 Sep 2023,2324/07,SME,Y,50%,
0010060449,LAW MORGAN LTD T/A MORGAN LAW,"3,025.00",Financial Servs,Agency Staff,28 Sep 2023,2324/07,SME,Y,50%,
0010060631,LAW MORGAN LTD T/A MORGAN LAW,"3,025.00",Financial Servs,Agency Staff,05 Oct 2023,2324/07,SME,Y,50%,
0010060632,LAW MORGAN LTD T/A MORGAN LAW,"4,024.30",Financial Servs,Agency Staff,05 Oct 2023,2324/07,SME,Y,50%,
0010060633,LAW MORGAN LTD T/A MORGAN LAW,"2,300.00",Commissioning & Procurement,Agency Staff,05 Oct 2023,2324/07,SME,Y,50%,
0010060859,LAW MORGAN LTD T/A MORGAN LAW,"4,024.30",Financial Servs,Agency Staff,12 Oct 2023,2324/07,SME,Y,50%,
0010060860,LAW MORGAN LTD T/A MORGAN LAW,"3,025.00",Financial Servs,Agency Staff,12 Oct 2023,2324/07,SME,Y,50%,
0010060861,LAW MORGAN LTD T/A MORGAN LAW,"2,300.00",Commissioning & Procurement,Agency Staff,12 Oct 2023,2324/07,SME,Y,50%,
0010061039,LAW MORGAN LTD T/A MORGAN LAW,"4,024.30",Financial Servs,Agency Staff,19 Oct 2023,2324/07,SME,Y,50%,
0010061040,LAW MORGAN LTD T/A MORGAN LAW,"2,300.00",Commissioning & Procurement,Agency Staff,19 Oct 2023,2324/07,SME,Y,50%,
0010061041,LAW MORGAN LTD T/A MORGAN LAW,"1,815.00",Financial Servs,Agency Staff,19 Oct 2023,2324/07,SME,Y,50%,
0010060895,APEX ROOFERS LTD,"1,650.00",Building Services,Repairs,07 Sep 2023,2324/07,SME,N,,
0010060896,APEX ROOFERS LTD,"1,250.00",Building Services,Repairs,04 Sep 2023,2324/07,SME,N,,
0010060813,LAVENHAM LAWN TENNIS CLUB,"1,008.00",Comm Devt Grants,Grants,11 Oct 2023,2324/07,SME,N,,
0010060471,SWITCH PROPERTY SERVICES LTD,"1,025.00",Guaranteed Rent Scheme,Rent Payable,02 Oct 2023,2324/07,SME,N,,
0010061279,SWITCH PROPERTY SERVICES LTD,"1,025.00",Guaranteed Rent Scheme,Rent Payable,30 Oct 2023,2324/07,SME,N,,
0010061094,LOUISE FAIERS,880.00,Bourne Hill Wherstead S106 acq,Prof & Consultancy Fees,20 Oct 2023,2324/07,ST,N,,
0010061095,LOUISE FAIERS,"2,150.00",Waldingfield Rd S106 Andersons,Prof & Consultancy Fees,20 Oct 2023,2324/07,ST,N,,
0010060913,SHELTERED HOUSING RENTALS LTD,660.00,Guaranteed Rent Scheme,Rent Payable,16 Oct 2023,2324/07,SME,N,,
0010060573,BAILEYS HEATING COMPANY LTD,600.00,New Bld/acquisition,BMBS Repairs Work,03 Oct 2023,2324/07,SME,N,,
0010060790,BAILEYS HEATING COMPANY LTD,"1,350.00",New Bld/acquisition,BMBS Repairs Work,10 Oct 2023,2324/07,SME,N,,
0010060791,BAILEYS HEATING COMPANY LTD,"1,571.57",Planned Maint - Heating,Property Servicing,10 Oct 2023,2324/07,SME,N,,
0010060792,BAILEYS HEATING COMPANY LTD,646.79,Planned Maint - Heating,Property Servicing,10 Oct 2023,2324/07,SME,N,,
0010060798,BAILEYS HEATING COMPANY LTD,"1,882.22",Central Heating,Major Contracts,31 Aug 2023,2324/07,SME,N,,
0010061175,BAILEYS HEATING COMPANY LTD,"38,870.63",Planned Maint - Heating,Repairs,30 Sep 2023,2324/07,SME,N,,
0010060474,FINCH FUTURES LTD,850.00,Guaranteed Rent Scheme,Rent Payable,02 Oct 2023,2324/07,SME,N,,
0010061093,EKB CLEANING LTD,"1,533.83",Public Conveniences,Contracted Services,30 Sep 2023,2324/07,SME,N,,
0010060619,MARTINS BICYCLE SERVICES,750.00,Physical Activity,"Equipment, Tools & Materials",25 Oct 2023,2324/07,ST,Y,50%,
0010060773,PRIVATE LANDLORD,880.00,Guaranteed Rent Scheme,Rent Payable,10 Oct 2023,2324/07,ST,N,,
0020028746,RICHARD MATTHEWS C/O OYSTER PROPERTIES,"2,040.00",Rent Deposit Scheme,Misc Premises Costs,13 Oct 2023,2324/07,ST,N,,
0010060644,CONSTRUCTION LMS TRAINING LTD,590.00,HRA Strategic Property,Training,25 Sep 2023,2324/07,SME,Y,50%,
0010061187,PRIVATE LANDLORD,680.00,Guaranteed Rent Scheme,Rent Payable,24 Oct 2023,2324/07,SME,N,,
0010060793,ABBEYGATE CINEMA LTD,"7,000.00",RHSSF,Prof & Consultancy Fees,10 Oct 2023,2324/07,SME,N,,
0010060723,PRIVATE LANDLORD,"1,500.00",Homeless Prevention Fund,Misc Supplies & Services Costs,27 Sep 2023,2324/07,ST,N,,
0010060812,WALDRON BUILD,"3,372.00",Mand Disabled Facilities Grant,Grants,11 Oct 2023,2324/07,SME,N,,
0010060638,HOWLETT OF LAVENHAM,"2,500.00",Business Innovation Grants,Grants,03 Oct 2023,2324/07,SME,N,,
0010060816,NICHOLSON JONES SUTTON SOLICITORS,"1,500.00",Building Services,Payments to Tenants,11 Oct 2023,2324/07,SME,N,,
0020028752,HENRY ROSE LETTINGS LTD,"1,990.00",Rent Deposit Scheme,Misc Premises Costs,20 Oct 2023,2324/07,SME,N,,
0000001143,GPC BARCLAYS,100.00,Current Assets,LLOYDS GENERAL PAYMENTS,05 Oct 2023,2324/07,LGE,N,,
0010061212,TELEFONICA UK LIMITED - O2,-1.28,ICT,Telephone Costs,27 Oct 2023,2324/07,LGE,Y,50%,
0000001144,TPAS LTD,-100.00,Tenants Forum,Training,11 Oct 2023,2324/07,SME,Y,50%,
0000001145,TPAS LTD,100.00,Tenants Forum,Training,11 Oct 2023,2324/07,SME,Y,50%,
0010061077,EDMUNDSON ELECTRICAL LTD (IPSWICH),-122.26,Building Services,"Equipment, Tools & Materials",16 Oct 2023,2324/07,LGE,N,,
0000000322,FELIX TAXIS & CO,-440.00,Cost of Democracy,Vehicle Hire,27 Oct 2023,2324/07,SME,N,,
0000000323,FELIX TAXIS & CO,-440.00,Cost of Democracy,Vehicle Hire,31 Oct 2023,2324/07,SME,N,,
0020028764,AARON SERVICES LTD,851.29,Current Liabilities,Cert IBS Creditors Holding ac,31 Oct 2023,2324/08,SME,N,,
0010061697,AE WHITE SURFACING,"1,575.00",Headquarters General,Repairs,09 Nov 2023,2324/08,SME,N,,
0010061903,AE WHITE SURFACING,"1,029.00",Public Tree Programme,Tree felling/maintenance,20 Nov 2023,2324/08,SME,N,,
0010061978,AE WHITE SURFACING,"17,296.00",Estate Imps/parking areas,Improvements,23 Nov 2023,2324/08,SME,N,,
0010061924,ANGLIAN WATER,670.21,Tenancy Services,Water Rates - Metered,14 Nov 2023,2324/08,LGE,N,,
0010061942,BINDER LTD,974.37,Sewage Treatment Works,Improvements,22 Nov 2023,2324/08,SME,N,,
0010061465,BOTTOMLINE TECHNOLOGIES,736.27,ICT,Software Licnse (Line of Bus) ,31 Oct 2023,2324/08,LGE,Y,50%,
0010060988,BOWER FULLER,614.06,Public Conveniences,Repairs,18 Oct 2023,2324/08,SME,N,,
0010060991,BOWER FULLER,570.16,Public Conveniences,Repairs,18 Oct 2023,2324/08,SME,N,,
0010061710,BROXAP LTD,544.00,Chilton Depot,Grounds & Site Maintenance,14 Nov 2023,2324/08,LGE,Y,50%,
0010061622,CAPITA BUSINESS SERVICES LTD,"150,665.52",Software/ICT Projects/Surveys,Annual Bldg Maint Contracts,17 Oct 2023,2324/08,LGE,Y,50%,
0010061826,AQUASAMPLERS,690.00,Water Sampling,Sampling & Analysis,31 Oct 2023,2324/08,SME,N,,
0010061679,CHIPSIDE LTD,523.91,C Parks General,Contracted Services,31 Oct 2023,2324/08,SME,N,,
0010061234,CLARKE FENCING LTD,"3,280.00",Environmental Imps,Improvements,26 Oct 2023,2324/08,SME,N,,
0010061319,CLARKE FENCING LTD,512.00,"Fences, Gates and Walls",Improvements,25 Oct 2023,2324/08,SME,N,,
0010061351,CLARKE FENCING LTD,"57,622.77","Fences, Gates and Walls",Improvements,03 Oct 2023,2324/08,SME,N,,
0010061398,CLARKE FENCING LTD,"6,454.17",Neighbourhood Services,Grounds & Site Maintenance,24 Oct 2023,2324/08,SME,N,,
0010060678,D W ADAMS LTD,"1,014.00",Building Services,Repairs,06 Oct 2023,2324/08,SME,N,,
0010061626,D W ADAMS LTD,"6,698.00",Council House Adaptions,Improvements,10 Nov 2023,2324/08,SME,N,,
0010061557,DOLPHIN STAIRLIFTS (EAST ANGLIA) LTD,"5,765.00",Mand Disabled Facilities Grant,Grants,08 Nov 2023,2324/08,SME,N,,
0010062126,CIVICA ELECTION SERVICES,"3,529.27",Electoral Registration,Returning Officer Fees,19 Sep 2023,2324/08,LGE,N,,
0010061448,ENER-G SWITCH2 LTD,515.92,Homelessness Private Sector,Electricity,02 Nov 2023,2324/08,SME,N,,
0010061917,ENER-G SWITCH2 LTD,"1,241.42",Building Services,Repairs,30 Oct 2023,2324/08,SME,N,,
0010061918,ENER-G SWITCH2 LTD,833.73,Temporary Accommodation,Repairs,02 Nov 2023,2324/08,SME,N,,
0010060629,ENGLISH SECURITY,103.00,Chilton Depot,Fire Prevention,05 Oct 2023,2324/08,SME,Y,50%,
0010060629,ENGLISH SECURITY,"1,509.56",Sheltered Accommodation,Fire Prevention,05 Oct 2023,2324/08,SME,N,,
0010060629,ENGLISH SECURITY,787.20,Temporary Accommodation,Fire Prevention,05 Oct 2023,2324/08,SME,N,,
0010060629,ENGLISH SECURITY,"4,284.80",Tenancy Services,Repairs,05 Oct 2023,2324/08,SME,N,,
0010060629,ENGLISH SECURITY,206.00,Wenham Depot,Fire Prevention,05 Oct 2023,2324/08,SME,Y,50%,
0010060630,ENGLISH SECURITY,103.00,Chilton Depot,Fire Prevention,05 Oct 2023,2324/08,SME,Y,50%,
0010060630,ENGLISH SECURITY,"1,120.71",Sheltered Accommodation,Fire Prevention,05 Oct 2023,2324/08,SME,N,,
0010060630,ENGLISH SECURITY,818.10,Temporary Accommodation,Fire Prevention,05 Oct 2023,2324/08,SME,N,,
0010060630,ENGLISH SECURITY,"3,908.85",Tenancy Services,Fire Prevention,05 Oct 2023,2324/08,SME,N,,
0010060630,ENGLISH SECURITY,133.90,Wenham Depot,Fire Prevention,05 Oct 2023,2324/08,SME,Y,50%,
0010060514,FELLBRIDGE BUILDING SERVICES,"5,189.98",Building Services,Repairs,01 Oct 2023,2324/08,SME,N,,
0010061043,FELLBRIDGE BUILDING SERVICES,"1,531.60",Building Services,Repairs,19 Oct 2023,2324/08,SME,N,,
0010061313,FELLBRIDGE BUILDING SERVICES,"5,761.98",Major Imps,Repairs,31 Oct 2023,2324/08,SME,N,,
0010061517,FELLBRIDGE BUILDING SERVICES,"2,154.19",Building Services,Repairs,06 Nov 2023,2324/08,SME,N,,
0010061600,FELLBRIDGE BUILDING SERVICES,"4,577.28",Building Services,Repairs,09 Nov 2023,2324/08,SME,N,,
0010061681,FELLBRIDGE BUILDING SERVICES,"2,254.36",Building Services,Repairs,13 Nov 2023,2324/08,SME,N,,
0010061863,FELLBRIDGE BUILDING SERVICES,"1,830.87",Voids Maintenance,Repairs,20 Nov 2023,2324/08,SME,N,,
0010061864,FELLBRIDGE BUILDING SERVICES,"11,583.40",Major Imps,Repairs,20 Nov 2023,2324/08,SME,N,,
0010061865,FELLBRIDGE BUILDING SERVICES,878.30,Building Services,Repairs,20 Nov 2023,2324/08,SME,N,,
0010062129,GB ADAPTIONS LTD,"3,986.88",Mand Disabled Facilities Grant,Grants,30 Nov 2023,2324/08,SME,N,,
0010061495,G4S CASH SOLUTIONS LTD,532.32,C Parks General,Contracted Services,31 Oct 2023,2324/08,LGE,N,,
0010059918,GHB ROOFING,"4,940.00",Building Services,Repairs,06 Sep 2023,2324/08,SME,N,,
0010061383,HOUSEMARK LTD,"3,875.00",Software/ICT Projects/Surveys,Prof & Consultancy Fees,25 Oct 2023,2324/08,SME,Y,50%,
0010060916,KEN GRIME & SON LTD,"1,097.81",Building Services,Repairs,16 Oct 2023,2324/08,SME,N,,
0010061766,KEN GRIME & SON LTD,817.12,Kitchens/Bathrooms,Repairs,15 Nov 2023,2324/08,SME,N,,
0010061773,KEN GRIME & SON LTD,"1,218.54",Kitchens/Bathrooms,Repairs,07 Nov 2023,2324/08,SME,N,,
0010061795,KEN GRIME & SON LTD,"1,010.47",Voids Maintenance,Repairs,16 Nov 2023,2324/08,SME,N,,
0010061900,KEN GRIME & SON LTD,"1,449.14",Rewiring,Repairs,20 Nov 2023,2324/08,SME,N,,
0010061935,KEN GRIME & SON LTD,842.74,Kitchens/Bathrooms,Repairs,22 Nov 2023,2324/08,SME,N,,
0010061936,KEN GRIME & SON LTD,"1,480.48",Kitchens/Bathrooms,Repairs,22 Nov 2023,2324/08,SME,N,,
0010061937,KEN GRIME & SON LTD,962.08,Kitchens/Bathrooms,Repairs,22 Nov 2023,2324/08,SME,N,,
0010061638,KENDA-CLEAN,43.00,Chilton Depot,Window Cleaning,12 Nov 2023,2324/08,SME,Y,50%,
0010061638,KENDA-CLEAN,"1,739.00",Sheltered Accommodation,Window Cleaning,12 Nov 2023,2324/08,SME,N,,
0010061638,KENDA-CLEAN,27.00,Temporary Accommodation,Window Cleaning,12 Nov 2023,2324/08,SME,N,,
0010061638,KENDA-CLEAN,375.00,Tenancy Services,Window Cleaning,12 Nov 2023,2324/08,SME,N,,
0010061411,M & H CIVIL ENGINEERING LTD,783.70,Voids Maintenance,Repairs,01 Nov 2023,2324/08,SME,N,,
0010061611,M & H CIVIL ENGINEERING LTD,868.62,Building Services,Repairs,07 Nov 2023,2324/08,SME,N,,
0010061675,M & H CIVIL ENGINEERING LTD,874.11,Building Services,Repairs,10 Nov 2023,2324/08,SME,N,,
0010061791,M & H CIVIL ENGINEERING LTD,"2,368.35",Building Services,Repairs,16 Nov 2023,2324/08,SME,N,,
0010061647,MB TREES (EAST ANGLIA) LTD,"3,980.00",Building Services,Repairs,13 Nov 2023,2324/08,SME,N,,
0010061284,MERCURY BUILDING SERVICES LTD,"8,857.00",Kingfisher Leisure Centre,Repairs,31 Oct 2023,2324/08,SME,N,,
0010061618,MID SUFFOLK FENCING LTD,"6,766.00",Chilton Depot,Grounds & Site Maintenance,06 Nov 2023,2324/08,SME,Y,50%,
0010061379,MIXBROW LTD,"7,040.18",Council House Adaptions,Improvements,16 Oct 2023,2324/08,SME,N,,
0010061386,MIXBROW LTD,"7,336.74",Council House Adaptions,Improvements,16 Oct 2023,2324/08,SME,N,,
0010061590,MIXBROW LTD,"7,787.99",Council House Adaptions,Improvements,02 Oct 2023,2324/08,SME,N,,
0010061902,MONTHIND CLEAN LTD,720.21,Jnt Waste Contract,General Cleaning,15 Nov 2023,2324/08,LGE,Y,50%,
0010061378,PLASUFIX LTD,550.00,Building Services,Repairs,31 Oct 2023,2324/08,SME,N,,
0010061812,SEAGER HOME SOLUTIONS,"87,343.50",Kitchens/Bathrooms,Major Contracts,16 Nov 2023,2324/08,SME,N,,
0010061291,SUREFIX,"8,400.00",Insulation Imps,Repairs,30 Oct 2023,2324/08,SME,N,,
0010061293,SUREFIX,"2,875.00",Window & Door Rplcmts,Repairs,27 Oct 2023,2324/08,SME,N,,
0010061483,SUREFIX,900.00,Building Services,Repairs,31 Oct 2023,2324/08,SME,N,,
0010061484,SUREFIX,"1,190.00",Window & Door Rplcmts,Repairs,01 Nov 2023,2324/08,SME,N,,
0010061486,SUREFIX,"1,350.00",Building Services,Repairs,01 Nov 2023,2324/08,SME,N,,
0010061487,SUREFIX,"1,600.00",Building Services,Repairs,02 Nov 2023,2324/08,SME,N,,
0010061488,SUREFIX,950.00,Building Services,Repairs,03 Nov 2023,2324/08,SME,N,,
0010061883,SUREFIX,563.66,Window & Door Rplcmts,BMBS Repairs Work,07 Nov 2023,2324/08,SME,N,,
0010061886,SUREFIX,"11,875.00",Building Services,Repairs,10 Nov 2023,2324/08,SME,N,,
0010061889,SUREFIX,"1,025.00",Building Services,Repairs,16 Nov 2023,2324/08,SME,N,,
0010061890,SUREFIX,"1,025.00",Window & Door Rplcmts,BMBS Repairs Work,16 Nov 2023,2324/08,SME,N,,
0010061986,SUREFIX,"1,850.00",Building Services,Repairs,20 Oct 2023,2324/08,SME,N,,
0010061987,SUREFIX,"1,025.00",Building Services,Repairs,20 Oct 2023,2324/08,SME,N,,
0010061988,SUREFIX,"7,625.00",Building Services,Repairs,20 Oct 2023,2324/08,SME,N,,
0010061989,SUREFIX,900.00,Building Services,Repairs,23 Oct 2023,2324/08,SME,N,,
0010061991,SUREFIX,"8,240.00",Building Services,Repairs,16 Nov 2023,2324/08,SME,N,,
0010061992,SUREFIX,"1,350.00",Window & Door Rplcmts,Repairs,21 Nov 2023,2324/08,SME,N,,
0010061993,SUREFIX,"1,025.00",Building Services,Repairs,15 Nov 2023,2324/08,SME,N,,
0010062000,SUREFIX,"3,040.00",Building Services,Repairs,23 Nov 2023,2324/08,SME,N,,
0010062001,SUREFIX,"1,980.00",Building Services,Repairs,23 Nov 2023,2324/08,SME,N,,
0010062035,TANKCHANGE LTD,"1,695.00",Central Heating,Repairs,23 Nov 2023,2324/08,SME,N,,
0010061339,THERMATECH,550.00,Tenancy Services,Fire Prevention,31 Oct 2023,2324/08,SME,N,,
0010061340,THERMATECH,700.00,Tenancy Services,Fire Prevention,31 Oct 2023,2324/08,SME,N,,
0010061498,THERMATECH,350.00,Chilton Depot,Fire Prevention,03 Nov 2023,2324/08,SME,Y,50%,
0010061498,THERMATECH,"1,575.00",Tenancy Services,Fire Prevention,03 Nov 2023,2324/08,SME,N,,
0010061498,THERMATECH,350.00,Wenham Depot,Fire Prevention,03 Nov 2023,2324/08,SME,Y,50%,
0010061499,THERMATECH,"2,000.00",Tenancy Services,Fire Prevention,03 Nov 2023,2324/08,SME,N,,
0010061474,UK POWER NETWORKS,678.00,EV Charge Points Car parks,Misc Supplies & Services Costs,30 Oct 2023,2324/08,LGE,N,,
0010061264,URBAN FORESTRY (BSE) LTD,"6,846.50","Fences, Gates and Walls",Improvements,26 Oct 2023,2324/08,SME,N,,
0010061817,WORKWEAR (EAST ANGLIA) LTD,447.80,Open Spaces,Protective clothing,16 Nov 2023,2324/08,SME,N,,
0010061817,WORKWEAR (EAST ANGLIA) LTD,447.80,Street & Major Road Cleansing,Protective clothing,16 Nov 2023,2324/08,SME,N,,
0010062008,ESSEX COUNTY COUNCIL,"3,726.00",Devt Management -Applications,Landscape Consultancy,20 Nov 2023,2324/08,LGE,N,,
0010062009,ESSEX COUNTY COUNCIL,"1,620.00",Pre App Charging,Landscape Consultancy,20 Nov 2023,2324/08,LGE,N,,
0010062010,ESSEX COUNTY COUNCIL,"3,825.00",Devt Management -Applications,Landscape Consultancy,21 Nov 2023,2324/08,LGE,N,,
0010062011,ESSEX COUNTY COUNCIL,516.00,Pre App Charging,Landscape Consultancy,21 Nov 2023,2324/08,LGE,N,,
0010061809,CHUBB FIRE & SECURITY LTD,751.80,Smoke Alarms (Bbgh Standard),Repairs,13 Nov 2023,2324/08,LGE,N,,
0010061619,IDOX SOFTWARE LTD,"1,100.00",ICT - CapsUniform,Prof & Consultancy Fees,10 Nov 2023,2324/08,SME,Y,50%,
0010061409,IPSWICH BOROUGH COUNCIL,"6,531.81",Shared Revenues Partnership,Contributions to other Bodies,27 Oct 2023,2324/08,LGE,N,,
0010061468,IPSWICH BOROUGH COUNCIL,"19,274.02",Civil Parking Enforcement,Contracted Services,01 Nov 2023,2324/08,LGE,N,,
0010061596,IPSWICH BOROUGH COUNCIL,"282,805.00",Shared Revenues Partnership,Major Contracts,07 Nov 2023,2324/08,LGE,N,,
0010061329,SERCO LTD,"3,293.48",Open Spaces,Plant & Vehicle - Other costs,31 Oct 2023,2324/08,LGE,N,,
0020028783,EDF ENERGY,20.20,Belle Vue House,Electricity,15 Nov 2023,2324/08,LGE,N,,
0020028783,EDF ENERGY,583.57,C Parks General,Electricity,15 Nov 2023,2324/08,LGE,N,,
0020028783,EDF ENERGY,8.99,Calais St Depot,Electricity,15 Nov 2023,2324/08,LGE,N,,
0020028783,EDF ENERGY,"6,615.02",Chilton Depot,Electricity,15 Nov 2023,2324/08,LGE,Y,50%,
0020028783,EDF ENERGY,"2,706.20",Climate Change and Sustainabil,Electricity,15 Nov 2023,2324/08,LGE,N,,
0020028783,EDF ENERGY,160.71,Community Safety-CCTV,Electricity,15 Nov 2023,2324/08,LGE,N,,
0020028783,EDF ENERGY,27.43,Hadleigh Market,Electricity,15 Nov 2023,2324/08,LGE,N,,
0020028783,EDF ENERGY,"7,335.57",Hadleigh Pool,Electricity,15 Nov 2023,2324/08,LGE,N,,
0020028783,EDF ENERGY,12.86,Headquarters General,Electricity,15 Nov 2023,2324/08,LGE,N,,
0020028783,EDF ENERGY,889.78,HQ Energy,Electricity,15 Nov 2023,2324/08,LGE,N,,
0020028783,EDF ENERGY,"22,132.00",Kingfisher Leisure Centre,Electricity,15 Nov 2023,2324/08,LGE,N,,
0020028783,EDF ENERGY,29.86,Navigation House,Electricity,15 Nov 2023,2324/08,LGE,N,,
0020028783,EDF ENERGY,357.00,Public Conveniences,Electricity,15 Nov 2023,2324/08,LGE,N,,
0020028783,EDF ENERGY,460.82,Sewage Treatment Works,Electricity,15 Nov 2023,2324/08,LGE,N,,
0020028783,EDF ENERGY,"8,723.37",Sheltered Accommodation,Electricity,15 Nov 2023,2324/08,LGE,N,,
0020028783,EDF ENERGY,306.74,SP Comm Alarms (Non-SH),Electricity,15 Nov 2023,2324/08,LGE,N,,
0020028783,EDF ENERGY,717.70,Temporary Accommodation,Electricity,15 Nov 2023,2324/08,LGE,N,,
0020028783,EDF ENERGY,"7,821.20",Tenancy Services,Electricity,15 Nov 2023,2324/08,LGE,N,,
0020028783,EDF ENERGY,"1,093.72",Wenham Depot,Electricity,15 Nov 2023,2324/08,LGE,Y,50%,
0020028761,GPC BARCLAYS,"11,465.96",Current Assets,Barclaycard Control,16 Oct 2023,2324/08,LGE,Y,7%,
0020028769,GPC BARCLAYS,"9,063.70",Current Assets,Barclaycard Control,16 Nov 2023,2324/08,LGE,Y,10%,
0010061719,STANNAH STAIRLIFTS LTD,"6,332.00",Council House Adaptions,Improvements,14 Nov 2023,2324/08,LGE,N,,
0010061815,STANNAH STAIRLIFTS LTD,"2,469.00",Council House Adaptions,Improvements,16 Nov 2023,2324/08,LGE,N,,
0010061685,POLSTEAD PARISH COUNCIL,"6,450.00",Comm Devt Grants,Grants,10 Nov 2023,2324/08,SME,N,,
0010061614,SUDBURY COMMON LANDS CHARITY,"11,847.24",Open Spaces,Contracted Services,09 Nov 2023,2324/08,SME,N,,
0010061390,SUDBURY TOWN COUNCIL,750.00,Grants & Contrbns,Contributions & Donations,01 Nov 2023,2324/08,SME,N,,
0010061507,SUFFOLK COUNTY COUNCIL,"16,680.00",ICT-Hardware/Software Refresh,Computer Equpt Purchases,03 Nov 2023,2324/08,LGE,Y,50%,
0010061598,SUFFOLK COUNTY COUNCIL,"2,100.80",ICT,Contracted Services,08 Nov 2023,2324/08,LGE,Y,50%,
0010061744,SUFFOLK COUNTY COUNCIL,"3,200.00",ICT,Computer Equpt Purchases,14 Nov 2023,2324/08,LGE,Y,50%,
0010061782,SUFFOLK COUNTY COUNCIL,"2,036.00",Software/ICT Projects/Surveys,Prof & Consultancy Fees,15 Nov 2023,2324/08,LGE,Y,50%,
0010061783,SUFFOLK COUNTY COUNCIL,"21,022.35",Domestic Waste,MRF Disposal,15 Nov 2023,2324/08,LGE,N,,
0010061783,SUFFOLK COUNTY COUNCIL,"20,239.41",Garden Waste,Garden Waste Disposal,15 Nov 2023,2324/08,LGE,N,,
0010061784,SUFFOLK COUNTY COUNCIL,"1,043.40",Building Services,"Equipment, Tools & Materials",15 Nov 2023,2324/08,LGE,Y,50%,
0010062049,SUFFOLK COUNTY COUNCIL,700.00,Land Chgs,Contracted Services,24 Nov 2023,2324/08,LGE,N,,
0010062064,ROYAL MAIL,781.57,Central Postal Serv,Postage,22 Nov 2023,2324/08,LGE,Y,50%,
0010061633,REED SPECIALIST RECRUITMENT LTD,519.84,Financial Servs,Recruitment,10 Nov 2023,2324/08,LGE,Y,50%,
0010061840,REED SPECIALIST RECRUITMENT LTD,519.84,Financial Servs,Recruitment,17 Nov 2023,2324/08,LGE,Y,50%,
0010062036,REED SPECIALIST RECRUITMENT LTD,519.84,Financial Servs,Recruitment,17 Nov 2023,2324/08,LGE,Y,50%,
0010062152,TRANSLATION & INTERPRETING PROVIDER LTD,600.00,Homelessness Private Sector,Telephone Costs,28 Nov 2023,2324/08,SME,N,,
0010061501,BT PAYMENT SERVICES,"9,943.93",ICT,Telephone Costs,04 Nov 2023,2324/08,LGE,N,,
0010061617,EAST OF ENGLAND CO-OPERATIVE SOCIETY LTD,"1,413.00",Public Health Funerals,Contracted Services,12 Sep 2023,2324/08,LGE,N,,
0010062031,HADLEIGH UNITED REFORMED CHURCH,"2,875.00",Temporary Accommodation,Rent Payable,23 Nov 2023,2324/08,SME,N,,
0010061536,ERNEST DOE & SONS LTD,"1,004.00",Open Spaces,"Equipment, Tools & Materials",23 Oct 2023,2324/08,LGE,N,,
0010061794,ERNEST DOE & SONS LTD,"2,308.34",Street & Major Road Cleansing,"Equipment, Tools & Materials",16 Nov 2023,2324/08,LGE,N,,
0010061304,WHYBROW PROPERTY SOLUTIONS LTD,"15,000.00",Major Imps,Repairs,30 Oct 2023,2324/08,SME,N,,
0010061308,WHYBROW PROPERTY SOLUTIONS LTD,"2,635.15",Building Services,Repairs,30 Oct 2023,2324/08,SME,N,,
0010061380,WHYBROW PROPERTY SOLUTIONS LTD,"21,186.63",Major Imps,Repairs,01 Nov 2023,2324/08,SME,N,,
0010061381,WHYBROW PROPERTY SOLUTIONS LTD,"17,512.05",Major Imps,Repairs,01 Nov 2023,2324/08,SME,N,,
0010061575,WHYBROW PROPERTY SOLUTIONS LTD,"9,998.55",Major Imps,Repairs,08 Nov 2023,2324/08,SME,N,,
0010061576,WHYBROW PROPERTY SOLUTIONS LTD,"6,000.00",Major Imps,Repairs,08 Nov 2023,2324/08,SME,N,,
0010061578,WHYBROW PROPERTY SOLUTIONS LTD,"14,000.00",Major Imps,Repairs,08 Nov 2023,2324/08,SME,N,,
0010061585,WHYBROW PROPERTY SOLUTIONS LTD,"7,000.00",Major Imps,Repairs,08 Nov 2023,2324/08,SME,N,,
0010061629,WHYBROW PROPERTY SOLUTIONS LTD,"13,484.69",Major Imps,Repairs,10 Nov 2023,2324/08,SME,N,,
0010061631,WHYBROW PROPERTY SOLUTIONS LTD,"5,382.14",Major Imps,Repairs,10 Nov 2023,2324/08,SME,N,,
0010061842,WHYBROW PROPERTY SOLUTIONS LTD,"15,590.52",Major Imps,Repairs,17 Nov 2023,2324/08,SME,N,,
0010061098,L A C CLEANING CONTRACTORS LIMITED,735.50,Other Temp Accommodation,General Cleaning,23 Oct 2023,2324/08,SME,N,,
0010061333,L A C CLEANING CONTRACTORS LIMITED,820.50,Voids Maintenance,Repairs,31 Oct 2023,2324/08,SME,N,,
0010061473,L A C CLEANING CONTRACTORS LIMITED,"2,970.00",Voids Maintenance,Repairs,03 Nov 2023,2324/08,SME,N,,
0010061564,L A C CLEANING CONTRACTORS LIMITED,"1,545.50",Voids Maintenance,Repairs,08 Nov 2023,2324/08,SME,N,,
0010061779,L A C CLEANING CONTRACTORS LIMITED,"2,380.50",Voids Maintenance,Repairs,16 Nov 2023,2324/08,SME,N,,
0010061781,L A C CLEANING CONTRACTORS LIMITED,590.50,Voids Maintenance,Repairs,16 Nov 2023,2324/08,SME,N,,
0010061968,L A C CLEANING CONTRACTORS LIMITED,575.50,Other Temp Accommodation,General Cleaning,23 Nov 2023,2324/08,SME,N,,
0010062100,L A C CLEANING CONTRACTORS LIMITED,691.77,Sheltered Accommodation,General Cleaning,28 Nov 2023,2324/08,SME,N,,
0010061451,ARMSTRONG YORK ASBESTOS ENVIRONMENTAL,"2,314.64",Asbestos Survey & Reinspection,Prof & Consultancy Fees,31 Oct 2023,2324/08,SME,N,,
0010061334,DMP TRAINING (UK),"1,441.00",Open Spaces,Training,16 Oct 2023,2324/08,SME,N,,
0010061208,TUDOR ENVIRONMENTAL,"1,064.62",Open Spaces,"Equipment, Tools & Materials",25 Oct 2023,2324/08,SME,N,,
0010061208,TUDOR ENVIRONMENTAL,93.50,Street & Major Road Cleansing,"Equipment, Tools & Materials",25 Oct 2023,2324/08,SME,N,,
0010061324,TUDOR ENVIRONMENTAL,564.46,Open Spaces,"Equipment, Tools & Materials",30 Oct 2023,2324/08,SME,N,,
0010061562,TUDOR ENVIRONMENTAL,"1,558.80",Open Spaces,"Equipment, Tools & Materials",07 Nov 2023,2324/08,SME,N,,
0010061610,BAREFOOT & GILLES LTD,"4,540.00",Hadleigh A1071 Workspace,Prof & Consultancy Fees,01 Nov 2023,2324/08,SME,N,,
0010061811,BAREFOOT & GILLES LTD,"1,060.00",Hadleigh A1071 Workspace,Prof & Consultancy Fees,16 Nov 2023,2324/08,SME,N,,
0010062090,BAREFOOT & GILLES LTD,600.00,Hadleigh A1071 Workspace,Prof & Consultancy Fees,28 Nov 2023,2324/08,SME,N,,
0010061606,THE MIX STOWMARKET LTD,"31,600.00",Youth Social Prescribing,Contracted Services,09 Nov 2023,2324/08,SME,N,,
0010061913,THE MIX STOWMARKET LTD,"31,000.00",Youth Social Prescribing,Contracted Services,09 Oct 2023,2324/08,SME,N,,
0010061428,CARTER JONAS LLP,"5,545.38",Borehamgate Shopping Centre,Contracted Services,28 Jun 2023,2324/08,LGE,N,,
0010061910,DALROD (UK) LTD,"21,300.00",Chilton Depot,Grounds & Site Maintenance,21 Nov 2023,2324/08,SME,Y,50%,
0010061447,OPUS PEOPLE SOLUTIONS LTD,506.41,Homeless Prevention Fund,Agency Staff,02 Nov 2023,2324/08,SME,N,,
0010061447,OPUS PEOPLE SOLUTIONS LTD,278.59,Devt Management -Applications,Agency Staff,02 Nov 2023,2324/08,SME,N,,
0010061447,OPUS PEOPLE SOLUTIONS LTD,544.50,Climate Change and Sustainabil,Agency Staff,02 Nov 2023,2324/08,SME,N,,
0010061447,OPUS PEOPLE SOLUTIONS LTD,179.88,Customer servs,Agency Staff,02 Nov 2023,2324/08,SME,N,,
0010061447,OPUS PEOPLE SOLUTIONS LTD,512.32,Building Services,Agency Staff,02 Nov 2023,2324/08,SME,N,,
0010061713,OPUS PEOPLE SOLUTIONS LTD,349.20,Homeless Prevention Fund,Agency Staff,10 Nov 2023,2324/08,SME,N,,
0010061713,OPUS PEOPLE SOLUTIONS LTD,39.10,Devt Management -Applications,Agency Staff,10 Nov 2023,2324/08,SME,N,,
0010061713,OPUS PEOPLE SOLUTIONS LTD,779.63,Climate Change and Sustainabil,Agency Staff,10 Nov 2023,2324/08,SME,N,,
0010061713,OPUS PEOPLE SOLUTIONS LTD,426.28,Health & Safety,Agency Staff,10 Nov 2023,2324/08,SME,N,,
0010061713,OPUS PEOPLE SOLUTIONS LTD,122.52,Covid-19 Test and Trace,Agency Staff,10 Nov 2023,2324/08,SME,Y,100%,
0010061713,OPUS PEOPLE SOLUTIONS LTD,118.47,Customer servs,Agency Staff,10 Nov 2023,2324/08,SME,N,,
0010061713,OPUS PEOPLE SOLUTIONS LTD,563.96,Building Services,Agency Staff,10 Nov 2023,2324/08,SME,N,,
0010061823,OPUS PEOPLE SOLUTIONS LTD,353.73,Homeless Prevention Fund,Agency Staff,16 Nov 2023,2324/08,SME,N,,
0010061823,OPUS PEOPLE SOLUTIONS LTD,532.12,Climate Change and Sustainabil,Agency Staff,16 Nov 2023,2324/08,SME,N,,
0010061823,OPUS PEOPLE SOLUTIONS LTD,425.34,Health & Safety,Agency Staff,16 Nov 2023,2324/08,SME,N,,
0010061823,OPUS PEOPLE SOLUTIONS LTD,367.56,Covid-19 Test and Trace,Agency Staff,16 Nov 2023,2324/08,SME,Y,100%,
0010061823,OPUS PEOPLE SOLUTIONS LTD,179.89,Customer servs,Agency Staff,16 Nov 2023,2324/08,SME,N,,
0010061823,OPUS PEOPLE SOLUTIONS LTD,941.91,Building Services,Agency Staff,16 Nov 2023,2324/08,SME,N,,
0010062027,OPUS PEOPLE SOLUTIONS LTD,276.64,Homeless Prevention Fund,Agency Staff,23 Nov 2023,2324/08,SME,N,,
0010062027,OPUS PEOPLE SOLUTIONS LTD,259.87,Climate Change and Sustainabil,Agency Staff,23 Nov 2023,2324/08,SME,N,,
0010062027,OPUS PEOPLE SOLUTIONS LTD,402.66,Health & Safety,Agency Staff,23 Nov 2023,2324/08,SME,N,,
0010062027,OPUS PEOPLE SOLUTIONS LTD,306.30,Covid-19 Test and Trace,Agency Staff,23 Nov 2023,2324/08,SME,Y,100%,
0010062027,OPUS PEOPLE SOLUTIONS LTD,121.21,Customer servs,Agency Staff,23 Nov 2023,2324/08,SME,N,,
0010062027,OPUS PEOPLE SOLUTIONS LTD,352.69,Building Services,Agency Staff,23 Nov 2023,2324/08,SME,N,,
0010062085,OPUS PEOPLE SOLUTIONS LTD,"2,371.12",Building Services,Recruitment,30 Oct 2023,2324/08,SME,Y,50%,
0010062086,OPUS PEOPLE SOLUTIONS LTD,"2,371.12",Building Services,Recruitment,30 Oct 2023,2324/08,SME,Y,50%,
0010061642,CORNERSTONE BARRISTERS,"2,500.00",Devt Management -Applications,Legal ex App proj&pre-decn adv,12 Nov 2023,2324/08,SME,N,,
0010061752,INSPIRE SUFFOLK LTD,"11,000.00",Shared Prosperity Fund,Prof & Consultancy Fees,31 Oct 2023,2324/08,SME,N,,
0010061858,INSPIRE SUFFOLK LTD,"3,100.00",Grants & Contrbns,Contributions & Donations,16 Nov 2023,2324/08,SME,N,,
0010061223,VERTAS GROUP LTD,"7,945.88",Central Postal Serv,Postage,26 Oct 2023,2324/08,SME,Y,50%,
0010061410,COLLINS SKIP HIRE,825.00,Building Services,Waste Disposal,31 Oct 2023,2324/08,SME,Y,50%,
0010061640,COLLINS SKIP HIRE,550.00,Building Services,Waste Disposal,13 Nov 2023,2324/08,SME,Y,50%,
0010061859,COLLINS SKIP HIRE,550.00,Building Services,Waste Disposal,20 Nov 2023,2324/08,SME,Y,50%,
0010062037,POSTURITE LTD,"1,305.09",Health & Safety,"Equipment, Tools & Materials",24 Nov 2023,2324/08,SME,Y,50%,
0010061353,4PRINCIPLES CONSTRUCTION LTD,"6,487.91",Mand Disabled Facilities Grant,Grants,31 Oct 2023,2324/08,SME,N,,
0010061540,4PRINCIPLES CONSTRUCTION LTD,"5,996.67",Mand Disabled Facilities Grant,Grants,07 Nov 2023,2324/08,SME,N,,
0010061686,4PRINCIPLES CONSTRUCTION LTD,"10,811.34",Mand Disabled Facilities Grant,Grants,10 Nov 2023,2324/08,SME,N,,
0010062080,HOSPITAL RADIO PUBLICATIONS,915.00,Housing Standards,Prof & Consultancy Fees,15 Aug 2023,2324/08,SME,Y,50%,
0010061382,PENNA PLC,"3,000.00",Financial Servs,Recruitment,31 Oct 2023,2324/08,SME,Y,50%,
0010061630,PENNA PLC,"4,840.00",Management Team,Agency Staff,02 Nov 2023,2324/08,SME,Y,50%,
0010061682,FROST AND PARTNERS,"1,100.00",Homes for Ukraine,Rent Payable,13 Nov 2023,2324/08,SME,N,,
0010061065,LOFTY HEIGHTS LTD,"2,200.00",Tenancy Services,Grounds & Site Maintenance,23 Oct 2023,2324/08,SME,N,,
0010061915,SUFFOLK MARKET EVENTS,682.50,Hadleigh Market,Contracted Services,21 Nov 2023,2324/08,SME,N,,
0010061129,HAYS SPECIALIST RECRUITMENT LTD,"1,594.14",Pld Maint/Enhncmts-Corp Bldgs,Agency Staff,23 Oct 2023,2324/08,LGE,N,,
0010061129,HAYS SPECIALIST RECRUITMENT LTD,797.07,Pld Maint/Enhncmts-Corp Bldgs,Agency Staff,23 Oct 2023,2324/08,LGE,Y,50%,
0010061209,HAYS SPECIALIST RECRUITMENT LTD,"1,826.85",ICT - Finance System,Agency Staff,25 Oct 2023,2324/08,LGE,Y,50%,
0010061322,HAYS SPECIALIST RECRUITMENT LTD,862.99,Pld Maint/Enhncmts-Corp Bldgs,Agency Staff,30 Oct 2023,2324/08,LGE,Y,50%,
0010061424,HAYS SPECIALIST RECRUITMENT LTD,"1,826.85",ICT - Finance System,Agency Staff,01 Nov 2023,2324/08,LGE,Y,50%,
0010061595,HAYS SPECIALIST RECRUITMENT LTD,"1,826.85",ICT - Finance System,Agency Staff,08 Nov 2023,2324/08,LGE,Y,50%,
0010061728,HAYS SPECIALIST RECRUITMENT LTD,958.88,Pld Maint/Enhncmts-Corp Bldgs,Agency Staff,13 Nov 2023,2324/08,LGE,Y,50%,
0010061756,HAYS SPECIALIST RECRUITMENT LTD,"1,826.85",ICT - Finance System,Agency Staff,15 Nov 2023,2324/08,LGE,Y,50%,
0010061895,HAYS SPECIALIST RECRUITMENT LTD,"1,318.46",Pld Maint/Enhncmts-Corp Bldgs,Agency Staff,20 Nov 2023,2324/08,LGE,Y,50%,
0010061967,HAYS SPECIALIST RECRUITMENT LTD,"1,826.85",ICT - Finance System,Agency Staff,22 Nov 2023,2324/08,LGE,Y,50%,
0010062070,HAYS SPECIALIST RECRUITMENT LTD,"1,120.69",Pld Maint/Enhncmts-Corp Bldgs,Agency Staff,27 Nov 2023,2324/08,LGE,Y,50%,
0010061440,THE STOWMARKET GLASS COMPANY LTD,585.00,Building Services,Repairs,13 Oct 2023,2324/08,SME,Y,50%,
0010061462,RIX PETROLEUM (EAST ANGLIA) LTD,"1,332.30",Open Spaces,Plant & Vehicle Fuel,01 Nov 2023,2324/08,SME,Y,50%,
0010060444,KNOWLES ASSOCIATES TFM LTD,"4,242.86",Public Realm TransitionProject,"Equipment, Tools & Materials",04 Aug 2023,2324/08,SME,N,,
0010061919,KNOWLES ASSOCIATES TFM LTD,"6,514.00",Building Services,Lease Cars - Payment,12 Oct 2023,2324/08,SME,Y,50%,
0010061920,KNOWLES ASSOCIATES TFM LTD,"1,642.50",Building Services,Lease Cars - Payment,12 Oct 2023,2324/08,SME,Y,50%,
0010062068,KNOWLES ASSOCIATES TFM LTD,"8,778.00",Open Spaces,Plant & Vehicle - Other costs,12 Oct 2023,2324/08,SME,N,,
0010061124,NORTHUMBRIAN WATER LTD,"2,424.78",Water Sampling,Sampling & Analysis,23 Oct 2023,2324/08,LGE,N,,
0010061249,NORTHUMBRIAN WATER LTD,40.66,Building Services,Legionella Testing,27 Oct 2023,2324/08,LGE,N,,
0010061249,NORTHUMBRIAN WATER LTD,25.03,Chilton Depot,Legionella Testing,27 Oct 2023,2324/08,LGE,Y,50%,
0010061249,NORTHUMBRIAN WATER LTD,360.06,Public Conveniences,Legionella Testing,27 Oct 2023,2324/08,LGE,N,,
0010061249,NORTHUMBRIAN WATER LTD,175.17,Sheltered Accommodation,Legionella Testing,27 Oct 2023,2324/08,LGE,N,,
0010061249,NORTHUMBRIAN WATER LTD,180.04,Temporary Accommodation,Legionella Testing,27 Oct 2023,2324/08,LGE,N,,
0010061249,NORTHUMBRIAN WATER LTD,34.41,Wenham Depot,Legionella Testing,27 Oct 2023,2324/08,LGE,Y,50%,
0010061612,NORTHUMBRIAN WATER LTD,"2,004.03",Water Sampling,Sampling & Analysis,09 Nov 2023,2324/08,LGE,N,,
0010061549,STORETEC SERVICES LTD,775.05,ICT,"Equipment, Tools & Materials",31 Oct 2023,2324/08,SME,Y,50%,
0010061589,TAYLORS FLOORING & FURNITURE,762.50,Sheltered General Mgmt,Furniture,03 Nov 2023,2324/08,SME,N,,
0010062067,IPSWICH TOWN FOOTBALL CLUB CO. LTD,596.00,Governance,Room Hire,15 Aug 2023,2324/08,LGE,N,,
0010061599,TOP FLOORS (EAST ANGLIA) LTD,"1,481.70",Other Temp Accommodation,"Equipment, Tools & Materials",01 Nov 2023,2324/08,SME,N,,
0010062074,TOP FLOORS (EAST ANGLIA) LTD,948.65,Homeless Prevention Fund,Misc Supplies & Services Costs,22 Nov 2023,2324/08,SME,N,,
0010061504,WILLIAM H BROWN ESTATE AGENTS - SUDBURY,975.00,Guaranteed Rent Scheme,Rent Payable,06 Nov 2023,2324/08,SME,N,,
0010061521,WILLIAM H BROWN ESTATE AGENTS - SUDBURY,775.00,Guaranteed Rent Scheme,Rent Payable,06 Nov 2023,2324/08,SME,N,,
0010061489,MTM PLANT AND SALES LTD,726.00,Public Conveniences,Contracted Services,31 Oct 2023,2324/08,SME,N,,
0010061250,ABBEYCROFT LEISURE,787.50,Holiday Activity Funding,"Equipment, Tools & Materials",27 Oct 2023,2324/08,LGE,N,,
0010061352,ABBEYCROFT LEISURE,667.00,Grants & Contrbns,Contributions & Donations,31 Oct 2023,2324/08,LGE,N,,
0010061388,ABBEYCROFT LEISURE,667.00,Grants & Contrbns,Contributions & Donations,01 Nov 2023,2324/08,LGE,N,,
0010061497,ABBEYCROFT LEISURE,"60,735.00",Leisure Contract,Major Contracts,30 Oct 2023,2324/08,LGE,N,,
0010061751,ABBEYCROFT LEISURE,"10,707.24",Holiday Activity Funding,"Equipment, Tools & Materials",15 Nov 2023,2324/08,LGE,N,,
0010061951,ABBEYCROFT LEISURE,678.56,Holiday Activity Funding,"Equipment, Tools & Materials",22 Nov 2023,2324/08,LGE,N,,
0010061860,PIGHTLES DEVELOPMENTS LTD,925.00,Guaranteed Rent Scheme,Rent Payable,20 Nov 2023,2324/08,SME,N,,
0010061456,A C LEIGH (NORWICH) LTD,"1,023.16",Building Services,"Equipment, Tools & Materials",30 Oct 2023,2324/08,SME,N,,
0010061554,A C LEIGH (NORWICH) LTD,863.25,Building Services,"Equipment, Tools & Materials",06 Nov 2023,2324/08,SME,N,,
0010061750,BOXFORD PLAYING FIELDS MANAGEMENT COMMIT,"3,009.60",S106 Open Spaces Expenditure,Grants,14 Nov 2023,2324/08,SME,N,,
0010062043,BOXFORD PLAYING FIELDS MANAGEMENT COMMIT,"12,141.90",CIL Funded REFCUS,Grants,27 Nov 2023,2324/08,SME,N,,
0010061731,WEST SUFFOLK COUNCIL,"114,924.21",Legal & Info Gov Services,Contributions to other Bodies,14 Nov 2023,2324/08,LGE,Y,50%,
0010061973,STAGE EVENT SECURITY LTD,"1,441.50",Open Spaces,Contracted Services,31 Oct 2023,2324/08,SME,N,,
0010061393,PEOPLE FOCUSED TRAINING & SOLUTIONS LTD,"1,200.00",Community Safety-General,Contributions & Donations,01 Nov 2023,2324/08,ST,N,,
0010061544,ANGLIA COMMERCIAL FLOORING LTD,581.64,Voids Maintenance,Repairs,07 Nov 2023,2324/08,SME,N,,
0010061545,ANGLIA COMMERCIAL FLOORING LTD,596.40,Voids Maintenance,Repairs,07 Nov 2023,2324/08,SME,N,,
0010061708,ANGLIA COMMERCIAL FLOORING LTD,555.21,Building Services,Repairs,14 Nov 2023,2324/08,SME,N,,
0010061927,ANGLIA COMMERCIAL FLOORING LTD,572.86,Voids Maintenance,Repairs,14 Nov 2023,2324/08,SME,N,,
0020028784,ANGLIAN WATER BUS (NAT) LTD T/A WAVE,125.59,C Parks General,Water Rates - Metered,13 Nov 2023,2324/08,LGE,N,,
0020028784,ANGLIAN WATER BUS (NAT) LTD T/A WAVE,309.56,Chilton Depot,Water Rates - Metered,13 Nov 2023,2324/08,LGE,Y,50%,
0020028784,ANGLIAN WATER BUS (NAT) LTD T/A WAVE,5.90,Friars Meadow Sudb,Water Rates - Metered,13 Nov 2023,2324/08,LGE,N,,
0020028784,ANGLIAN WATER BUS (NAT) LTD T/A WAVE,52.14,General Rechargeable Works,Misc Supplies & Services Costs,13 Nov 2023,2324/08,LGE,N,,
0020028784,ANGLIAN WATER BUS (NAT) LTD T/A WAVE,83.85,HQ Energy,Water Rates - Metered,13 Nov 2023,2324/08,LGE,N,,
0020028784,ANGLIAN WATER BUS (NAT) LTD T/A WAVE,332.08,Public Conveniences,Water Rates - Metered,13 Nov 2023,2324/08,LGE,N,,
0020028784,ANGLIAN WATER BUS (NAT) LTD T/A WAVE,"2,689.75",Sheltered Accommodation,Water Rates - Metered,13 Nov 2023,2324/08,LGE,N,,
0020028784,ANGLIAN WATER BUS (NAT) LTD T/A WAVE,16.61,Sheltered Accommodation,Water Rates - Unmetered,13 Nov 2023,2324/08,LGE,N,,
0020028784,ANGLIAN WATER BUS (NAT) LTD T/A WAVE,78.09,Temporary Accommodation,Water Rates - Metered,13 Nov 2023,2324/08,LGE,N,,
0020028784,ANGLIAN WATER BUS (NAT) LTD T/A WAVE,315.43,Temporary Accommodation,Water Rates - Other Charges,13 Nov 2023,2324/08,LGE,N,,
0020028784,ANGLIAN WATER BUS (NAT) LTD T/A WAVE,91.09,Tenancy Services,Water Rates - Metered,13 Nov 2023,2324/08,LGE,N,,
0020028784,ANGLIAN WATER BUS (NAT) LTD T/A WAVE,16.61,Tenancy Services,Water Rates - Unmetered,13 Nov 2023,2324/08,LGE,N,,
0010061416,STUDLEY CAPITAL LIMITED,"1,306.25",Hamilton Road Regeneration,Prof & Consultancy Fees,01 Nov 2023,2324/08,ST,N,,
0010061167,GREENACRE RECRUITMENT LTD,"3,253.75",HRA General Management,Agency Staff,25 Oct 2023,2324/08,SME,Y,50%,
0010061168,GREENACRE RECRUITMENT LTD,"2,550.00",Building Services,Agency Staff,25 Oct 2023,2324/08,SME,Y,50%,
0010061169,GREENACRE RECRUITMENT LTD,"2,400.00",Building Services,Agency Staff,25 Oct 2023,2324/08,SME,Y,50%,
0010061170,GREENACRE RECRUITMENT LTD,"1,404.00",Building Services,Agency Staff,25 Oct 2023,2324/08,SME,Y,50%,
0010061171,GREENACRE RECRUITMENT LTD,"2,000.00",Building Services Compliance,Agency Staff,25 Oct 2023,2324/08,SME,Y,50%,
0010061172,GREENACRE RECRUITMENT LTD,"1,975.00",Building Services,Agency Staff,25 Oct 2023,2324/08,SME,Y,50%,
0010061401,GREENACRE RECRUITMENT LTD,"1,975.00",Building Services,Agency Staff,01 Nov 2023,2324/08,SME,Y,50%,
0010061402,GREENACRE RECRUITMENT LTD,"1,152.00",Building Services,Agency Staff,01 Nov 2023,2324/08,SME,Y,50%,
0010061403,GREENACRE RECRUITMENT LTD,"2,400.00",Building Services,Agency Staff,01 Nov 2023,2324/08,SME,Y,50%,
0010061404,GREENACRE RECRUITMENT LTD,"2,000.00",Building Services Compliance,Agency Staff,01 Nov 2023,2324/08,SME,Y,50%,
0010061405,GREENACRE RECRUITMENT LTD,"2,550.00",Building Services,Agency Staff,01 Nov 2023,2324/08,SME,Y,50%,
0010061407,GREENACRE RECRUITMENT LTD,"3,460.55",HRA General Management,Agency Staff,01 Nov 2023,2324/08,SME,Y,50%,
0010061579,GREENACRE RECRUITMENT LTD,"1,975.00",Building Services,Agency Staff,08 Nov 2023,2324/08,SME,Y,50%,
0010061580,GREENACRE RECRUITMENT LTD,"2,000.00",Building Services Compliance,Agency Staff,08 Nov 2023,2324/08,SME,Y,50%,
0010061581,GREENACRE RECRUITMENT LTD,"1,449.00",Building Services,Agency Staff,08 Nov 2023,2324/08,SME,Y,50%,
0010061582,GREENACRE RECRUITMENT LTD,"2,400.00",Building Services,Agency Staff,08 Nov 2023,2324/08,SME,Y,50%,
0010061583,GREENACRE RECRUITMENT LTD,"2,568.00",Building Services,Agency Staff,08 Nov 2023,2324/08,SME,Y,50%,
0010061584,GREENACRE RECRUITMENT LTD,"3,485.75",HRA General Management,Agency Staff,08 Nov 2023,2324/08,SME,Y,50%,
0010061760,GREENACRE RECRUITMENT LTD,"1,975.00",Building Services,Agency Staff,15 Nov 2023,2324/08,SME,Y,50%,
0010061761,GREENACRE RECRUITMENT LTD,"2,000.00",Building Services Compliance,Agency Staff,15 Nov 2023,2324/08,SME,Y,50%,
0010061762,GREENACRE RECRUITMENT LTD,"1,278.00",Building Services,Agency Staff,15 Nov 2023,2324/08,SME,Y,50%,
0010061763,GREENACRE RECRUITMENT LTD,"2,550.00",Building Services,Agency Staff,15 Nov 2023,2324/08,SME,Y,50%,
0010061764,GREENACRE RECRUITMENT LTD,"2,550.00",Building Services,Agency Staff,15 Nov 2023,2324/08,SME,Y,50%,
0010061765,GREENACRE RECRUITMENT LTD,"3,425.00",HRA General Management,Agency Staff,15 Nov 2023,2324/08,SME,Y,50%,
0010061943,GREENACRE RECRUITMENT LTD,"2,740.00",HRA General Management,Agency Staff,22 Nov 2023,2324/08,SME,Y,50%,
0010061944,GREENACRE RECRUITMENT LTD,"2,550.00",Building Services,Agency Staff,22 Nov 2023,2324/08,SME,Y,50%,
0010061945,GREENACRE RECRUITMENT LTD,"2,700.00",Building Services,Agency Staff,22 Nov 2023,2324/08,SME,Y,50%,
0010061946,GREENACRE RECRUITMENT LTD,"1,449.00",Building Services,Agency Staff,22 Nov 2023,2324/08,SME,Y,50%,
0010061947,GREENACRE RECRUITMENT LTD,"2,000.00",Building Services Compliance,Agency Staff,22 Nov 2023,2324/08,SME,Y,50%,
0010061948,GREENACRE RECRUITMENT LTD,"1,975.00",Building Services,Agency Staff,22 Nov 2023,2324/08,SME,Y,50%,
0010061349,STUTTON COMMUNITY ASSOCIATION,"10,174.50",CIL Funded REFCUS,Grants,31 Oct 2023,2324/08,SME,N,,
0010061412,TIAA LTD,"5,000.00",Internal Audit,Contracted Services,01 Nov 2023,2324/08,SME,Y,50%,
0010062017,BYCHOICE LTD,950.00,Guaranteed Rent Scheme,Rent Payable,24 Nov 2023,2324/08,SME,N,,
0010061725,LAND USE CONSULTANTS LTD,"3,500.00",Nghbrhd Plan Designations,Prof & Consultancy Fees,15 Nov 2023,2324/08,SME,N,,
0010061241,PINSENT MASONS LLP,"5,691.36",Organisational Devt,Corporate Training,27 Sep 2023,2324/08,LGE,Y,,
0010061878,REEFER PROPERTIES LTD,695.00,Guaranteed Rent Scheme,Rent Payable,20 Nov 2023,2324/08,SME,N,,
0010061558,STOUR VALLEY CARPETS & FLOORING,"2,300.00",Guaranteed Rent Scheme,Misc Supplies & Services Costs,08 Nov 2023,2324/08,SME,N,,
0010061117,WADDINGTON BROWN LTD,954.45,Organisational Devt,Agency Staff,23 Oct 2023,2324/08,SME,Y,50%,
0010061395,WADDINGTON BROWN LTD,"1,186.25",Organisational Devt,Agency Staff,30 Oct 2023,2324/08,SME,Y,50%,
0010061530,WADDINGTON BROWN LTD,"3,840.00",Organisational Devt,Agency Staff,06 Nov 2023,2324/08,SME,Y,50%,
0010061587,WADDINGTON BROWN LTD,"1,186.25",Organisational Devt,Agency Staff,06 Nov 2023,2324/08,SME,Y,50%,
0010061721,WADDINGTON BROWN LTD,"1,186.25",Organisational Devt,Agency Staff,13 Nov 2023,2324/08,SME,Y,50%,
0010061851,WADDINGTON BROWN LTD,"1,268.06",Organisational Devt,Agency Staff,20 Nov 2023,2324/08,SME,Y,50%,
0010062112,WADDINGTON BROWN LTD,968.08,Organisational Devt,Agency Staff,27 Nov 2023,2324/08,SME,Y,50%,
0010062014,PRIVATE LANDLORD,515.00,Guaranteed Rent Scheme,Rent Payable,24 Nov 2023,2324/08,ST,N,,
0010061692,PRIVATE LANDLORD,675.00,Guaranteed Rent Scheme,Rent Payable,13 Nov 2023,2324/08,ST,N,,
0010061389,NEW LIFE CHURCH GREAT CORNARD,"1,212.00",Comm Devt Grants,Grants,01 Nov 2023,2324/08,SME,N,,
0010061875,PRIVATE LANDLORD,700.00,Guaranteed Rent Scheme,Rent Payable,20 Nov 2023,2324/08,ST,N,,
0010060777,BUCHER MUNICIPAL LTD,818.48,Street & Major Road Cleansing,Plant & Vehicle - Other costs,09 Oct 2023,2324/08,LGE,Y,50%,
0010061718,BUCHER MUNICIPAL LTD,818.48,Street & Major Road Cleansing,Plant & Vehicle - Other costs,13 Nov 2023,2324/08,LGE,Y,50%,
0010061717,SEQUENCE UK LTD (WILLIAM H BROWN),"1,500.00",Waldingfield Rd S106 Andersons,Prof & Consultancy Fees,11 Oct 2023,2324/08,LGE,N,,
0010061736,SEQUENCE UK LTD (WILLIAM H BROWN),"1,500.00",Waldingfield Rd S106 Andersons,Prof & Consultancy Fees,11 Oct 2023,2324/08,LGE,N,,
0010061879,SEQUENCE UK LTD (WILLIAM H BROWN),"1,500.00",Waldingfield Rd S106 Andersons,Prof & Consultancy Fees,11 Oct 2023,2324/08,LGE,N,,
0010061880,SEQUENCE UK LTD (WILLIAM H BROWN),"1,500.00",Waldingfield Rd S106 Andersons,Prof & Consultancy Fees,11 Oct 2023,2324/08,LGE,N,,
0010061911,SEQUENCE UK LTD (WILLIAM H BROWN),"1,500.00",Bourne Hill Wherstead S106 acq,Prof & Consultancy Fees,21 Nov 2023,2324/08,LGE,N,,
0010061870,PRIVATE LANDLORD,550.00,Guaranteed Rent Scheme,Rent Payable,20 Nov 2023,2324/08,ST,N,,
0010062015,PRIVATE LANDLORD,750.00,Guaranteed Rent Scheme,Rent Payable,24 Nov 2023,2324/08,ST,N,,
0010061524,PRIVATE LANDLORD,"1,320.00",Guaranteed Rent Scheme,Rent Payable,06 Nov 2023,2324/08,ST,N,,
0010061742,SUFFOLK DOORS & WINDOWS LTD,"1,445.00",Building Services,Repairs,15 Nov 2023,2324/08,SME,N,,
0010061743,SUFFOLK DOORS & WINDOWS LTD,"4,050.00",Building Services,Repairs,15 Nov 2023,2324/08,SME,N,,
0010061820,SUFFOLK DOORS & WINDOWS LTD,"1,200.00",Building Services,Repairs,17 Nov 2023,2324/08,SME,N,,
0010061526,PRIVATE LANDLORD,786.50,Guaranteed Rent Scheme,Rent Payable,06 Nov 2023,2324/08,ST,N,,
0010061687,PRIVATE LANDLORD,650.00,Guaranteed Rent Scheme,Rent Payable,13 Nov 2023,2324/08,ST,N,,
0010061493,COUNTRYSTYLE RECYCLING LTD,"3,854.60",Bring Sites,Contracted Services,31 Oct 2023,2324/08,SME,N,,
0010061505,PRIVATE LANDLORD,835.00,Guaranteed Rent Scheme,Rent Payable,06 Nov 2023,2324/08,ST,N,,
0010061520,PRIVATE LANDLORD,750.00,Guaranteed Rent Scheme,Rent Payable,06 Nov 2023,2324/08,ST,N,,
0010061309,N GOSLING PLUMBING & PROPERTY MAINTENANC,"2,975.72",Guaranteed Rent Scheme,Misc Supplies & Services Costs,30 Oct 2023,2324/08,ST,N,,
0010061523,PRIVATE LANDLORD,880.00,Guaranteed Rent Scheme,Rent Payable,06 Nov 2023,2324/08,ST,N,,
0010061702,ARAN INSULATION LTD,926.22,Insulation Imps,Major Contracts,14 Nov 2023,2324/08,SME,N,,
0010061703,ARAN INSULATION LTD,"6,266.39",Building Services,Repairs,14 Nov 2023,2324/08,SME,N,,
0010061753,ARAN INSULATION LTD,716.91,Insulation Imps,Major Contracts,06 Nov 2023,2324/08,SME,N,,
0010061774,ARAN INSULATION LTD,"1,509.64",Insulation Imps,Repairs,04 Oct 2023,2324/08,SME,N,,
0010061777,ARAN INSULATION LTD,923.73,Insulation Imps,Major Contracts,20 Oct 2023,2324/08,SME,N,,
0010062028,ORWELL REMOVALS & STORAGE LTD,"1,058.57",Homeless Prevention Fund,Removal Expenses,24 Nov 2023,2324/08,SME,N,,
0010061525,PRIVATE LANDLORD,554.20,Guaranteed Rent Scheme,Rent Payable,06 Nov 2023,2324/08,ST,N,,
0010061877,PRIVATE LANDLORD,595.00,Guaranteed Rent Scheme,Rent Payable,20 Nov 2023,2324/08,ST,N,,
0010062016,PRIVATE LANDLORD,575.00,Guaranteed Rent Scheme,Rent Payable,24 Nov 2023,2324/08,ST,N,,
0010059691,URBA,"8,159.25",CIL,Prof & Consultancy Fees,30 Aug 2023,2324/08,SME,Y,50%,
0010061491,IPSERV LTD,"2,720.43",Communications,Commercial Printing,31 Oct 2023,2324/08,SME,N,,
0010061874,DAVID BURR LETTINGS,750.00,Guaranteed Rent Scheme,Rent Payable,20 Nov 2023,2324/08,SME,N,,
0010061678,PRIVATE LANDLORD,715.00,Guaranteed Rent Scheme,Rent Payable,13 Nov 2023,2324/08,ST,N,,
0010060894,ANGLIA SPORTS MANAGEMENT LTD,"1,088.00",Holiday Activity Funding,"Equipment, Tools & Materials",13 Oct 2023,2324/08,SME,N,,
0010061400,ANGLIA SPORTS MANAGEMENT LTD,544.00,Holiday Activity Funding,"Equipment, Tools & Materials",31 Oct 2023,2324/08,SME,N,,
0010062038,ANGLIA SPORTS MANAGEMENT LTD,"2,261.33",Holiday Activity Funding,"Equipment, Tools & Materials",22 Nov 2023,2324/08,SME,N,,
0010061845,NAGELS UK LTD,685.00,C Parks General,"Equipment, Tools & Materials",04 Oct 2023,2324/08,SME,N,,
0010061677,PRIVATE LANDLORD,675.00,Guaranteed Rent Scheme,Rent Payable,13 Nov 2023,2324/08,ST,N,,
0010061712,PRIVATE LANDLORD,650.00,Guaranteed Rent Scheme,Rent Payable,14 Nov 2023,2324/08,ST,N,,
0010061872,PRIVATE LANDLORD,650.00,Guaranteed Rent Scheme,Rent Payable,20 Nov 2023,2324/08,ST,N,,
0010061849,ABLEWORLD,"2,790.00",Mand Disabled Facilities Grant,Grants,16 Nov 2023,2324/08,SME,N,,
0010061850,ABLEWORLD,"2,195.00",Mand Disabled Facilities Grant,Grants,16 Nov 2023,2324/08,SME,N,,
0010062113,BELL CONTAINER TRADING LTD,672.85,Public Realm TransitionProject,"Equipment, Tools & Materials",27 Nov 2023,2324/08,SME,N,,
0010061745,COPDOCK AND WASHBROOK PRE SCHOOL,600.00,Grants & Contrbns,Contributions & Donations,14 Nov 2023,2324/08,SME,N,,
0010061609,MINI WASTE LTD,"2,414.00",Open Spaces,Waste Disposal,31 Oct 2023,2324/08,SME,N,,
0010061452,MAXIM SPORTS COACHING,532.00,Holiday Activity Funding,"Equipment, Tools & Materials",02 Nov 2023,2324/08,SME,N,,
0010061691,PRIVATE LANDLORD,725.00,Guaranteed Rent Scheme,Rent Payable,13 Nov 2023,2324/08,ST,N,,
0010062018,HAMILTON SMITH LETTINGS,670.00,Guaranteed Rent Scheme,Rent Payable,24 Nov 2023,2324/08,SME,N,,
0010061819,BRITISH GAS TRADING LTD,778.52,Voids Maintenance,Gas,13 Nov 2023,2324/08,LGE,N,,
0010061819,BRITISH GAS TRADING LTD,"1,118.23",Voids Maintenance,Electricity,13 Nov 2023,2324/08,LGE,N,,
0010061715,KBM HOUSE SHARE & PROPERTY MANAGEMENT LT,600.00,Guaranteed Rent Scheme,Rent Payable,14 Nov 2023,2324/08,SME,N,,
0010061542,PAY 360 LIMITED,"1,041.36",Bank Chgs,Bank Charges,07 Nov 2023,2324/08,LGE,N,,
0010061846,PAY 360 LIMITED,"5,274.51",Bank Chgs,Bank Charges,14 Nov 2023,2324/08,LGE,N,,
0010061689,PRIVATE LANDLORD,550.00,Guaranteed Rent Scheme,Rent Payable,13 Nov 2023,2324/08,ST,N,,
0010061107,KARCHER UK LTD,713.66,Street & Major Road Cleansing,"Equipment, Tools & Materials",21 Oct 2023,2324/08,LGE,N,,
0010061569,KARCHER UK LTD,"3,215.69",Street & Major Road Cleansing,"Equipment, Tools & Materials",07 Nov 2023,2324/08,LGE,N,,
0010061494,ESIA CONSULT LIMITED,"4,500.00",Devt Management -Applications,Environmental  Consultancy,03 Nov 2023,2324/08,SME,N,,
0010061690,HADLEIGH GRAND FEOFFMENT CHARITY,"3,078.00",Renovation/Home Repair Grants,Grants,13 Nov 2023,2324/08,SME,N,,
0010061868,HADLEIGH GRAND FEOFFMENT CHARITY,"3,078.00",Renovation/Home Repair Grants,Grants,20 Nov 2023,2324/08,SME,N,,
0010061639,STEVEN JAMES ALLEN LTD,"1,200.00",Building Services,Repairs,13 Oct 2023,2324/08,SME,N,,
0010061873,PRIVATE LANDLORD,575.00,Guaranteed Rent Scheme,Rent Payable,20 Nov 2023,2324/08,ST,N,,
0010060602,NEWSQUEST MEDIA GROUP,824.00,Devt Management -Applications,Advertising&mkting (non-staff),04 Nov 2023,2324/08,LGE,N,,
0010061423,NEWSQUEST MEDIA GROUP,865.20,Devt Management -Applications,Advertising&mkting (non-staff),31 Oct 2023,2324/08,LGE,N,,
0010061588,NEWSQUEST MEDIA GROUP,700.40,Devt Management -Applications,Advertising&mkting (non-staff),08 Nov 2023,2324/08,LGE,N,,
0010061810,NEWSQUEST MEDIA GROUP,618.00,Devt Management -Applications,Advertising&mkting (non-staff),15 Nov 2023,2324/08,LGE,N,,
0010061950,NEWSQUEST MEDIA GROUP,988.80,Devt Management -Applications,Advertising&mkting (non-staff),22 Nov 2023,2324/08,LGE,N,,
0010062088,NEWSQUEST MEDIA GROUP,741.60,Devt Policy & Local Plans,Advertising&mkting (non-staff),28 Nov 2023,2324/08,LGE,N,,
0010062125,NEWSQUEST MEDIA GROUP,741.58,Devt Management -Applications,Advertising&mkting (non-staff),29 Nov 2023,2324/08,LGE,N,,
0010061519,BELL DECORATING GROUP LTD,"11,886.47",Planned Maint - Ext Painting,External Painting,27 Oct 2023,2324/08,LGE,N,,
0010061748,ORBIT HOUSING ASSOCIATION,"1,000.00",Household Support Grant,Misc Supplies & Services Costs,14 Nov 2023,2324/08,LGE,N,,
0020028780,ORBIT HOUSING ASSOCIATION,"2,000.00",Homeless Prevention Fund,Misc Supplies & Services Costs,16 Nov 2023,2324/08,LGE,N,,
0010061102,FAITHORN FARRELL TIMMS,"4,250.00",Building Services,Fire Prevention,23 Oct 2023,2324/08,SME,Y,50%,
0010062030,FAITHORN FARRELL TIMMS,"4,900.00",Building Services,Fire Prevention,23 Nov 2023,2324/08,SME,Y,50%,
0010061320,GCS COMPLIANCE LTD,928.70,Building Services,Prof & Consultancy Fees,30 Oct 2023,2324/08,SME,N,,
0010061533,SOCITM ADVISORY LTD,"14,500.00",ICT - Finance System,Contracted Services,31 Oct 2023,2324/08,SME,Y,50%,
0010061538,GREENHALGH KERR,"1,845.60",Shared Revenues Partnership,Misc Supplies & Services Costs,29 Sep 2023,2324/08,SME,N,,
0010062013,PRIVATE LANDLORD,575.00,Guaranteed Rent Scheme,Rent Payable,24 Nov 2023,2324/08,ST,N,,
0010061203,PRECISION RESOURCE GROUP LTD T/A PANORAM,"1,125.00",HRA General Management,Agency Staff,25 Oct 2023,2324/08,LGE,Y,50%,
0010061408,PRECISION RESOURCE GROUP LTD T/A PANORAM,"2,250.00",HRA General Management,Agency Staff,01 Nov 2023,2324/08,LGE,Y,50%,
0010061435,PRECISION RESOURCE GROUP LTD T/A PANORAM,"1,875.00",Building Servs Tech Staff,Agency Staff,25 Oct 2023,2324/08,LGE,Y,50%,
0010061436,PRECISION RESOURCE GROUP LTD T/A PANORAM,"1,875.00",Building Servs Tech Staff,Agency Staff,01 Nov 2023,2324/08,LGE,Y,50%,
0010061586,PRECISION RESOURCE GROUP LTD T/A PANORAM,"2,250.00",HRA General Management,Agency Staff,08 Nov 2023,2324/08,LGE,Y,50%,
0010061624,PRECISION RESOURCE GROUP LTD T/A PANORAM,"1,875.00",Building Servs Tech Staff,Agency Staff,08 Nov 2023,2324/08,LGE,Y,50%,
0010061778,PRECISION RESOURCE GROUP LTD T/A PANORAM,"2,250.00",HRA General Management,Agency Staff,15 Nov 2023,2324/08,LGE,Y,50%,
0010061821,PRECISION RESOURCE GROUP LTD T/A PANORAM,"1,875.00",Building Servs Tech Staff,Agency Staff,15 Nov 2023,2324/08,LGE,Y,50%,
0010061981,PRECISION RESOURCE GROUP LTD T/A PANORAM,"1,875.00",Building Servs Tech Staff,Agency Staff,22 Nov 2023,2324/08,LGE,Y,50%,
0010061527,CUTLERS WOOD LTD,750.00,Guaranteed Rent Scheme,Rent Payable,06 Nov 2023,2324/08,SME,N,,
0010061516,HOME TO RENT LTD,975.00,Guaranteed Rent Scheme,Rent Payable,06 Nov 2023,2324/08,SME,N,,
0010061514,PRIVATE LANDLORD,"1,000.00",Guaranteed Rent Scheme,Rent Payable,06 Nov 2023,2324/08,ST,N,,
0020028790,SEFE ENERGY LIMITED,64.46,HQ Energy,Gas,16 Nov 2023,2324/08,LGE,N,,
0020028790,SEFE ENERGY LIMITED,"8,156.57",Sheltered Accommodation,Gas,16 Nov 2023,2324/08,LGE,N,,
0020028790,SEFE ENERGY LIMITED,256.01,Temporary Accommodation,Gas,16 Nov 2023,2324/08,LGE,N,,
0010061908,SUFFOLK BEFRIENDING SCHEME FOR PEOPLE WI,"2,520.00",CIL Funded REFCUS,Grants,21 Nov 2023,2324/08,SME,N,,
0010061206,SIGNIX LTD,"9,039.89",Electrical Works,Improvements,25 Oct 2023,2324/08,SME,N,,
0010061754,SIGNIX LTD,"107,242.34",Rewiring,Repairs,01 Nov 2023,2324/08,SME,N,,
0010061755,SIGNIX LTD,"52,211.30",Rewiring,Repairs,06 Nov 2023,2324/08,SME,N,,
0010061893,SIGNIX LTD,"115,580.68",Rewiring,Repairs,13 Nov 2023,2324/08,SME,N,,
0010062041,SIGNIX LTD,"70,508.90",Rewiring,Repairs,01 Nov 2023,2324/08,SME,N,,
0010062054,SIGNIX LTD,"136,207.99",Rewiring,Repairs,27 Nov 2023,2324/08,SME,N,,
0010061481,LAC SERVICES (EAST ANGLIA) LTD,"15,977.70",Sheltered Accommodation,Fire Prevention,02 Nov 2023,2324/08,SME,N,,
0010061376,PRINCIPLE CONSTRUCTION & MAINTENANCE LTD,"7,181.61",Council House Adaptions,Improvements,01 Nov 2023,2324/08,SME,N,,
0010061591,PRINCIPLE CONSTRUCTION & MAINTENANCE LTD,"7,603.31",Council House Adaptions,Improvements,08 Nov 2023,2324/08,SME,N,,
0010061615,PRINCIPLE CONSTRUCTION & MAINTENANCE LTD,"8,539.66",Council House Adaptions,Improvements,09 Nov 2023,2324/08,SME,N,,
0010062021,WILES PROPERTY,875.00,Guaranteed Rent Scheme,Rent Payable,24 Nov 2023,2324/08,SME,N,,
0010061230,LAW MORGAN LTD T/A MORGAN LAW,"3,025.00",Financial Servs,Agency Staff,26 Oct 2023,2324/08,SME,Y,50%,
0010061231,LAW MORGAN LTD T/A MORGAN LAW,"4,599.20",Financial Servs,Agency Staff,26 Oct 2023,2324/08,SME,Y,50%,
0010061232,LAW MORGAN LTD T/A MORGAN LAW,"2,300.00",Commissioning & Procurement,Agency Staff,26 Oct 2023,2324/08,SME,Y,50%,
0010061437,LAW MORGAN LTD T/A MORGAN LAW,"3,025.00",Financial Servs,Agency Staff,02 Nov 2023,2324/08,SME,Y,50%,
0010061438,LAW MORGAN LTD T/A MORGAN LAW,"4,599.20",Financial Servs,Agency Staff,02 Nov 2023,2324/08,SME,Y,50%,
0010061439,LAW MORGAN LTD T/A MORGAN LAW,"2,760.00",Commissioning & Procurement,Agency Staff,02 Nov 2023,2324/08,SME,Y,50%,
0010061603,LAW MORGAN LTD T/A MORGAN LAW,"3,025.00",Financial Servs,Agency Staff,09 Nov 2023,2324/08,SME,Y,50%,
0010061604,LAW MORGAN LTD T/A MORGAN LAW,"2,300.00",Commissioning & Procurement,Agency Staff,09 Nov 2023,2324/08,SME,Y,50%,
0010061605,LAW MORGAN LTD T/A MORGAN LAW,"4,599.20",Financial Servs,Agency Staff,09 Nov 2023,2324/08,SME,Y,50%,
0010061785,LAW MORGAN LTD T/A MORGAN LAW,"2,300.00",Commissioning & Procurement,Agency Staff,16 Nov 2023,2324/08,SME,Y,50%,
0010061787,LAW MORGAN LTD T/A MORGAN LAW,"4,599.20",Financial Servs,Agency Staff,16 Nov 2023,2324/08,SME,Y,50%,
0010061788,LAW MORGAN LTD T/A MORGAN LAW,"3,025.00",Financial Servs,Agency Staff,16 Nov 2023,2324/08,SME,Y,50%,
0010061974,LAW MORGAN LTD T/A MORGAN LAW,"3,025.00",Financial Servs,Agency Staff,23 Nov 2023,2324/08,SME,Y,50%,
0010061975,LAW MORGAN LTD T/A MORGAN LAW,"4,599.20",Financial Servs,Agency Staff,23 Nov 2023,2324/08,SME,Y,50%,
0010061976,LAW MORGAN LTD T/A MORGAN LAW,"2,300.00",Commissioning & Procurement,Agency Staff,23 Nov 2023,2324/08,SME,Y,50%,
0010061463,PRESTIGE SPORTS DEVELOPMENT LTD,550.00,Holiday Activity Funding,"Equipment, Tools & Materials",24 Oct 2023,2324/08,SME,N,,
0010062012,SWITCH PROPERTY SERVICES LTD,"1,025.00",Guaranteed Rent Scheme,Rent Payable,24 Nov 2023,2324/08,SME,N,,
0010061714,SHELTERED HOUSING RENTALS LTD,660.00,Guaranteed Rent Scheme,Rent Payable,14 Nov 2023,2324/08,SME,N,,
0010061816,AIRBORNE ENVIRONMENTAL CONSULTANTS LTD,955.00,Building Servs Tech Staff,Training,07 Sep 2023,2324/08,SME,Y,50%,
0010061539,HITCHAM COMMUNITY PLAY AREA,"7,483.00",S106 Open Spaces Expenditure,Grants,07 Nov 2023,2324/08,SME,N,,
0010061237,BAILEYS HEATING COMPANY LTD,"2,264.51",Central Heating,Major Contracts,26 Oct 2023,2324/08,SME,N,,
0010061300,BAILEYS HEATING COMPANY LTD,"2,720.56",Central Heating,Major Contracts,29 Sep 2023,2324/08,SME,N,,
0010061375,BAILEYS HEATING COMPANY LTD,"51,405.00",Planned Maint - Heating,Repairs,31 Oct 2023,2324/08,SME,N,,
0010061704,BAILEYS HEATING COMPANY LTD,"2,926.41",Central Heating,Major Contracts,14 Nov 2023,2324/08,SME,N,,
0010061705,BAILEYS HEATING COMPANY LTD,"1,011.20",Voids Maintenance,Repairs,14 Nov 2023,2324/08,SME,N,,
0010061707,BAILEYS HEATING COMPANY LTD,663.26,Voids Maintenance,Repairs,14 Nov 2023,2324/08,SME,N,,
0010061909,BAILEYS HEATING COMPANY LTD,"2,920.24",Central Heating,Major Contracts,21 Nov 2023,2324/08,SME,N,,
0010061953,BAILEYS HEATING COMPANY LTD,"2,264.51",Central Heating,Major Contracts,22 Nov 2023,2324/08,SME,N,,
0010061979,BAILEYS HEATING COMPANY LTD,897.60,Planned Maint - Heating,Property Servicing,23 Nov 2023,2324/08,SME,N,,
0020028789,BAILEYS HEATING COMPANY LTD,835.06,Current Liabilities,Cert IBS Creditors Holding ac,23 Nov 2023,2324/08,SME,N,,
0010061511,FINCH FUTURES LTD,850.00,Guaranteed Rent Scheme,Rent Payable,06 Nov 2023,2324/08,SME,N,,
0010062065,MRI SOFTWARE,"1,087.50",Software/ICT Projects/Surveys,Prof & Consultancy Fees,24 Nov 2023,2324/08,LGE,Y,50%,
0010061464,EKB CLEANING LTD,707.48,Public Conveniences,Contracted Services,31 Oct 2023,2324/08,SME,N,,
0010061688,PRIVATE LANDLORD,880.00,Guaranteed Rent Scheme,Rent Payable,13 Nov 2023,2324/08,ST,N,,
0010061492,TAXI VAN,"4,950.00",Tenancy Services,Tenant Property Storage Cost,22 Oct 2023,2324/08,ST,N,,
0010062022,PRIVATE LANDLORD,680.00,Guaranteed Rent Scheme,Rent Payable,24 Nov 2023,2324/08,SME,N,,
0020028765,PRIVATE LANDLORD,"1,799.88",Guaranteed Rent Scheme,Rent Payable,06 Nov 2023,2324/08,SME,N,,
0010061311,C AND S ELECTRICAL LTD,704.00,Guaranteed Rent Scheme,Misc Supplies & Services Costs,30 Oct 2023,2324/08,SME,N,,
0010061518,YOUTHWORX LTD,900.00,RHSSF,Prof & Consultancy Fees,06 Nov 2023,2324/08,SME,N,,
0010061954,HOME ADAPT,"4,304.74",Mand Disabled Facilities Grant,Grants,21 Nov 2023,2324/08,SME,N,,
0010061360,VISITOR INSIGHTS LTD,"4,869.00",Visitor Economy,Prof & Consultancy Fees,31 Oct 2023,2324/08,SME,Y,50%,
0010061434,FINNEGANS WHISKERS,"2,500.00",Business Innovation Grants,Grants,01 Nov 2023,2324/08,SME,N,,
0010061357,THE BARISTAS SHED,"1,900.00",Business Innovation Grants,Grants,31 Oct 2023,2324/08,SME,N,,
0010061359,G & D PLUMBING & HEATING LTD,"6,521.50",Mand Disabled Facilities Grant,Grants,31 Oct 2023,2324/08,SME,N,,
0010061565,CHARLISE LTD,790.00,Cost of Democracy,Vehicle Hire,10 Sep 2023,2324/08,SME,Y,50%,
0020028781,PRIVATE LANDLORD,700.00,Guaranteed Rent Scheme,Rent Payable,10 Nov 2023,2324/08,ST,N,,
0020028781,PRIVATE LANDLORD,"1,500.00",Guaranteed Rent Scheme,Misc Supplies & Services Costs,10 Nov 2023,2324/08,ST,N,,
0010061683,CRONER I T/A HR INFORM,"1,920.00",Organisational Devt,Professional Subs (Staff),13 Oct 2023,2324/08,SME,Y,50%,
0010061684,ALL SAINTS CHURCH PCC,750.00,Grants & Contrbns,Contributions & Donations,10 Nov 2023,2324/08,SME,N,,
0010061848,THE MASTER HERBALIST LTD,"2,500.00",Business Innovation Grants,Grants,15 Nov 2023,2324/08,SME,N,,
0010061867,BINGHAM LONG SOLICITORS,575.05,Building Services,Payments to Tenants,20 Nov 2023,2324/08,SME,N,,
0020028786,ETO GREEN PROPERTY LTD,"1,500.00",Guaranteed Rent Scheme,Misc Supplies & Services Costs,22 Nov 2023,2324/08,SME,N,,
0020028786,ETO GREEN PROPERTY LTD,"1,000.00",Guaranteed Rent Scheme,Rent Payable,22 Nov 2023,2324/08,SME,N,,
0010062091,LAVENHAM CARPET BOWLS CLUB,"2,960.00",Comm Devt Grants,Grants,28 Nov 2023,2324/08,SME,N,,
0000001148,CENTRAL TYRE LTD,-524.31,Street & Major Road Cleansing,Plant & Vehicle - Other costs,01 Nov 2023,2324/08,SME,N,,
0010062039,TELEFONICA UK LIMITED - O2,-206.88,ICT,Telephone Costs,27 Nov 2023,2324/08,LGE,Y,50%,
0010062676,ARLINGCLOSE LTD,"13,938.00",Treasury Management,Contracted Services,07 Dec 2023,2324/09,SME,N,,
0010062735,BEN BURGESS GARDEN EQUIPMENT,"3,000.00",Open Spaces,"Equipment, Tools & Materials",21 Dec 2023,2324/09,SME,N,,
0010062521,BLUE FLAME (COLCHESTER) LTD,"9,295.00",Central Heating,Repairs,15 Mar 2022,2324/09,SME,N,,
0010062522,BLUE FLAME (COLCHESTER) LTD,"9,195.00",Central Heating,Repairs,21 Mar 2022,2324/09,SME,N,,
0010062523,BLUE FLAME (COLCHESTER) LTD,"9,675.00",Central Heating,Repairs,13 Apr 2022,2324/09,SME,N,,
0010062524,BLUE FLAME (COLCHESTER) LTD,"10,220.00",Central Heating,Repairs,20 Apr 2022,2324/09,SME,N,,
0010062525,BLUE FLAME (COLCHESTER) LTD,"9,295.00",Central Heating,Repairs,20 Apr 2022,2324/09,SME,N,,
0010062526,BLUE FLAME (COLCHESTER) LTD,"9,295.00",Central Heating,Repairs,20 Apr 2022,2324/09,SME,N,,
0010062527,BLUE FLAME (COLCHESTER) LTD,"9,295.00",Central Heating,Repairs,20 Apr 2022,2324/09,SME,N,,
0010062528,BLUE FLAME (COLCHESTER) LTD,"8,500.00",Central Heating,Repairs,03 May 2022,2324/09,SME,N,,
0010062529,BLUE FLAME (COLCHESTER) LTD,"9,295.00",Central Heating,Repairs,03 May 2022,2324/09,SME,N,,
0010062530,BLUE FLAME (COLCHESTER) LTD,"9,195.00",Central Heating,Repairs,20 Jul 2022,2324/09,SME,N,,
0010062531,BLUE FLAME (COLCHESTER) LTD,"9,295.00",Central Heating,Repairs,20 Jul 2022,2324/09,SME,N,,
0010062532,BLUE FLAME (COLCHESTER) LTD,"9,295.00",Central Heating,Repairs,15 Aug 2022,2324/09,SME,N,,
0010062533,BLUE FLAME (COLCHESTER) LTD,"10,010.00",Central Heating,Repairs,17 Aug 2022,2324/09,SME,N,,
0010062534,BLUE FLAME (COLCHESTER) LTD,"9,195.00",Central Heating,Repairs,17 Aug 2022,2324/09,SME,N,,
0010062225,BOTTOMLINE TECHNOLOGIES,736.27,ICT,Line of Business Applications,30 Nov 2023,2324/09,LGE,Y,50%,
0010062231,BOWER FULLER,"1,888.00",Sheltered Accommodation,Fire Prevention,30 Nov 2023,2324/09,SME,N,,
0010062232,BOWER FULLER,"1,507.75",Sheltered Accommodation,Fire Prevention,30 Nov 2023,2324/09,SME,N,,
0010062237,BOWER FULLER,618.00,Sheltered Accommodation,Fire Prevention,30 Nov 2023,2324/09,SME,N,,
0010062238,BOWER FULLER,600.00,Sheltered Accommodation,Fire Prevention,30 Nov 2023,2324/09,SME,N,,
0010062240,BOWER FULLER,822.73,Central Heating,Repairs,30 Nov 2023,2324/09,SME,N,,
0010062310,CHIPSIDE LTD,582.58,C Parks General,Contracted Services,30 Nov 2023,2324/09,SME,N,,
0010062249,CLARKE FENCING LTD,"19,485.57","Fences, Gates and Walls",Improvements,04 Dec 2023,2324/09,SME,N,,
0010062381,CLARKE FENCING LTD,564.67,"Fences, Gates and Walls",Improvements,08 Dec 2023,2324/09,SME,N,,
0010062168,D W ADAMS LTD,"5,587.00",Council House Adaptions,Improvements,01 Dec 2023,2324/09,SME,N,,
0010062504,D W ADAMS LTD,"5,255.00",Council House Adaptions,Improvements,15 Dec 2023,2324/09,SME,N,,
0010062572,DOLPHIN STAIRLIFTS (EAST ANGLIA) LTD,"6,040.00",Mand Disabled Facilities Grant,Grants,18 Dec 2023,2324/09,SME,N,,
0010062392,CIVICA ELECTION SERVICES,"6,835.08",Electoral Registration,Returning Officer Fees,19 Sep 2023,2324/09,LGE,N,,
0010062199,ENER-G SWITCH2 LTD,515.92,Homelessness Private Sector,Electricity,04 Dec 2023,2324/09,SME,N,,
0010062537,FELGAINS CARE CENTRE,"1,161.78",Mand Disabled Facilities Grant,Grants,12 Dec 2023,2324/09,SME,N,,
0010062588,FELGAINS CARE CENTRE,"3,544.30",Mand Disabled Facilities Grant,Grants,19 Dec 2023,2324/09,SME,N,,
0010062053,FELLBRIDGE BUILDING SERVICES,"7,327.36",Kitchens/Bathrooms,Repairs,27 Nov 2023,2324/09,SME,N,,
0010062053,FELLBRIDGE BUILDING SERVICES,"10,001.06",Voids Maintenance,Repairs,27 Nov 2023,2324/09,SME,N,,
0010062211,FELLBRIDGE BUILDING SERVICES,"1,098.46",Building Services,Repairs,04 Dec 2023,2324/09,SME,N,,
0010062212,FELLBRIDGE BUILDING SERVICES,"1,426.30",Building Services,Repairs,04 Dec 2023,2324/09,SME,N,,
0010061594,FORE-MOST GARAGE DOORS LTD,"2,581.50",Building Services,Repairs,31 Aug 2023,2324/09,SME,N,,
0010062276,G4S CASH SOLUTIONS LTD,521.23,C Parks General,Contracted Services,30 Nov 2023,2324/09,LGE,N,,
0010061934,KEN GRIME & SON LTD,"1241,32",Kitchens/Bathrooms,Repairs,22 Nov 2023,2324/09,SME,N,,
0010062422,KEN GRIME & SON LTD,741.36,Rewiring,Repairs,11 Dec 2023,2324/09,SME,N,,
0010062689,KEN GRIME & SON LTD,982.56,Rewiring,Repairs,18 Dec 2023,2324/09,SME,N,,
0010062637,KENDA-CLEAN,25.00,Chilton Depot,Window Cleaning,18 Dec 2023,2324/09,SME,Y,50%,
0010062637,KENDA-CLEAN,"1,420.00",Sheltered Accommodation,Window Cleaning,18 Dec 2023,2324/09,SME,N,,
0010062637,KENDA-CLEAN,15.00,Temporary Accommodation,Window Cleaning,18 Dec 2023,2324/09,SME,N,,
0010062637,KENDA-CLEAN,227.00,Tenancy Services,Window Cleaning,18 Dec 2023,2324/09,SME,N,,
0010062384,M & H CIVIL ENGINEERING LTD,686.56,Building Services,Repairs,07 Dec 2023,2324/09,SME,N,,
0010062671,MERCURY BUILDING SERVICES LTD,"9,869.25",Rewiring,Repairs,19 Dec 2023,2324/09,SME,N,,
0010062630,MONTHIND CLEAN LTD,720.21,Jnt Waste Contract,General Cleaning,15 Dec 2023,2324/09,LGE,Y,50%,
0010062344,NORFOLK COUNTY COUNCIL,"4,734.72",Strategic Housing,Subscriptions,01 Dec 2023,2324/09,LGE,N,,
0010062149,PRO-FLAT SPECIALIST SERVICES LTD,"14,375.00",Building Services,Repairs,27 Nov 2023,2324/09,SME,N,,
0010062623,SANDY LANE NURSERY,"2,151.55",Open Spaces,Horticultural Purchases,18 Dec 2023,2324/09,SME,Y,50%,
0010062205,SEAGER HOME SOLUTIONS,"77,384.18",Kitchens/Bathrooms,Major Contracts,04 Dec 2023,2324/09,SME,N,,
0010062002,SUREFIX,900.00,Building Services,Repairs,24 Nov 2023,2324/09,SME,N,,
0010062165,SUREFIX,900.00,Building Services,Repairs,01 Dec 2023,2324/09,SME,N,,
0010062167,SUREFIX,"1,250.00",Window & Door Rplcmts,Repairs,27 Nov 2023,2324/09,SME,N,,
0010062363,SUREFIX,"1,025.00",Building Services,Repairs,04 Dec 2023,2324/09,SME,N,,
0010062365,SUREFIX,"1,025.00",Building Services,Repairs,07 Dec 2023,2324/09,SME,N,,
0010062366,SUREFIX,956.88,Building Services,Repairs,07 Dec 2023,2324/09,SME,N,,
0010061931,THERMATECH,"1,285.00",Tenancy Services,Fire Prevention,20 Nov 2023,2324/09,SME,N,,
0010061932,THERMATECH,450.00,Sheltered Accommodation,Fire Prevention,20 Nov 2023,2324/09,SME,N,,
0010061932,THERMATECH,"3,400.00",Tenancy Services,Fire Prevention,20 Nov 2023,2324/09,SME,N,,
0010061932,THERMATECH,450.00,Other HRA Temp Accommodation,Fire Prevention,20 Nov 2023,2324/09,SME,N,,
0010062285,NEWAUTO LTD T/A MOGO UK,"4,029.70",Taxi & Private Hire Licensing,"Equipment, Tools & Materials",06 Dec 2023,2324/09,SME,N,,
0010062174,CHUBB FIRE & SECURITY LTD,654.68,Sheltered Accommodation,Fire Prevention,21 Nov 2023,2324/09,LGE,N,,
0010062277,SERCO LTD,"1,424.07",Street & Major Road Cleansing,Plant & Vehicle - Other costs,05 Dec 2023,2324/09,LGE,N,,
0020028807,EDF ENERGY,229.98,Belle Vue House,Electricity,15 Dec 2023,2324/09,LGE,N,,
0020028807,EDF ENERGY,583.54,C Parks General,Electricity,15 Dec 2023,2324/09,LGE,N,,
0020028807,EDF ENERGY,9.27,Calais St Depot,Electricity,15 Dec 2023,2324/09,LGE,N,,
0020028807,EDF ENERGY,"-28,014.54",Chilton Depot,Electricity,15 Dec 2023,2324/09,LGE,Y,50%,
0020028807,EDF ENERGY,"1,583.44",Climate Change and Sustainabil,Electricity,15 Dec 2023,2324/09,LGE,N,,
0020028807,EDF ENERGY,160.70,Community Safety-CCTV,Electricity,15 Dec 2023,2324/09,LGE,N,,
0020028807,EDF ENERGY,28.57,Hadleigh Market,Electricity,15 Dec 2023,2324/09,LGE,N,,
0020028807,EDF ENERGY,"7,357.39",Hadleigh Pool,Electricity,15 Dec 2023,2324/09,LGE,N,,
0020028807,EDF ENERGY,12.48,Headquarters General,Electricity,15 Dec 2023,2324/09,LGE,N,,
0020028807,EDF ENERGY,"1,474.30",HQ Energy,Electricity,15 Dec 2023,2324/09,LGE,N,,
0020028807,EDF ENERGY,"17,578.72",Kingfisher Leisure Centre,Electricity,15 Dec 2023,2324/09,LGE,N,,
0020028807,EDF ENERGY,27.15,Navigation House,Electricity,15 Dec 2023,2324/09,LGE,N,,
0020028807,EDF ENERGY,451.84,Public Conveniences,Electricity,15 Dec 2023,2324/09,LGE,N,,
0020028807,EDF ENERGY,486.72,Sewage Treatment Works,Electricity,15 Dec 2023,2324/09,LGE,N,,
0020028807,EDF ENERGY,415.88,Sheltered Accommodation,Electricity,15 Dec 2023,2324/09,LGE,N,,
0020028807,EDF ENERGY,"9,170.79",Sheltered Accommodation,Electricity,15 Dec 2023,2324/09,LGE,N,,
0020028807,EDF ENERGY,341.49,SP Comm Alarms (Non-SH),Electricity,15 Dec 2023,2324/09,LGE,N,,
0020028807,EDF ENERGY,773.46,Temporary Accommodation,Electricity,15 Dec 2023,2324/09,LGE,N,,
0020028807,EDF ENERGY,"6,223.76",Tenancy Services,Electricity,15 Dec 2023,2324/09,LGE,N,,
0020028807,EDF ENERGY,"1,160.95",Wenham Depot,Electricity,15 Dec 2023,2324/09,LGE,Y,50%,
0020028803,GPC BARCLAYS,"11,799.71",Current Assets,Barclaycard Control,16 Dec 2023,2324/09,LGE,Y,15%,
0010062325,STANNAH STAIRLIFTS LTD,"6,385.00",Sheltered Accommodation,Fire Prevention,07 Dec 2023,2324/09,LGE,N,,
0010062803,GREAT CORNARD PARISH COUNCIL,"57,621.71",S106 Open Spaces Expenditure,Grants,27 Dec 2023,2324/09,SME,N,,
0010062779,LEAVENHEATH VILLAGE HALL,660.00,VCSE Resilience,"Equipment, Tools & Materials",22 Dec 2023,2324/09,SME,N,,
0010062646,NEWTON PARISH COUNCIL,750.00,Grants & Contrbns,Contributions & Donations,19 Dec 2023,2324/09,SME,N,,
0010062448,STANSTEAD PARISH COUNCIL,"27,372.45",CIL Funded REFCUS,Grants,12 Dec 2023,2324/09,SME,N,,
0010062132,SUFFOLK COUNTY COUNCIL,"74,854.06",Trade Waste,Trade Waste Disposal,29 Nov 2023,2324/09,LGE,N,,
0010062192,SUFFOLK COUNTY COUNCIL,"1,162.63",ICT,Desktop Software,01 Dec 2023,2324/09,LGE,Y,50%,
0010062309,SUFFOLK COUNTY COUNCIL,"3,838.00",Taxi & Private Hire Licensing,Prof & Consultancy Fees,05 Dec 2023,2324/09,LGE,N,,
0010062412,SUFFOLK COUNTY COUNCIL,542.94,Building Services,"Equipment, Tools & Materials",08 Dec 2023,2324/09,LGE,Y,50%,
0010062413,SUFFOLK COUNTY COUNCIL,"193,361.76",ICT,Major Contracts,08 Dec 2023,2324/09,LGE,Y,50%,
0010062474,SUFFOLK COUNTY COUNCIL,"3,871.40",Building Services,"Equipment, Tools & Materials",12 Dec 2023,2324/09,LGE,Y,50%,
0010062475,SUFFOLK COUNTY COUNCIL,"14,641.08",Software/ICT Projects/Surveys,Prof & Consultancy Fees,12 Dec 2023,2324/09,LGE,Y,50%,
0010062603,SUFFOLK COUNTY COUNCIL,551.94,ICT,Desktop Software,15 Dec 2023,2324/09,LGE,Y,50%,
0010062804,SUFFOLK COUNTY COUNCIL,"144,012.27",Current Liabilities,Developer Contributions,27 Dec 2023,2324/09,LGE,N,,
0010062634,FENN WRIGHT LLP,900.00,Assets & Development,Prof & Consultancy Fees,18 Dec 2023,2324/09,SME,N,,
0010062181,REED SPECIALIST RECRUITMENT LTD,519.84,Financial Servs,Recruitment,24 Nov 2023,2324/09,LGE,Y,50%,
0010062404,REED SPECIALIST RECRUITMENT LTD,519.84,Financial Servs,Recruitment,01 Dec 2023,2324/09,LGE,Y,50%,
0010062460,REED SPECIALIST RECRUITMENT LTD,"2,200.00",Financial Servs,Recruitment,04 Dec 2023,2324/09,LGE,Y,50%,
0010061843,WHYBROW PROPERTY SOLUTIONS LTD,"9,578.74",Major Imps,Repairs,17 Nov 2023,2324/09,SME,N,,
0010062076,WHYBROW PROPERTY SOLUTIONS LTD,"8,000.00",Building Services,Repairs,28 Nov 2023,2324/09,SME,N,,
0010062382,WHYBROW PROPERTY SOLUTIONS LTD,"4,962.07",Other Temp Accommodation,Repairs,08 Dec 2023,2324/09,SME,N,,
0010062386,WHYBROW PROPERTY SOLUTIONS LTD,"4,924.37",Building Services,Repairs,08 Dec 2023,2324/09,SME,N,,
0010062388,WHYBROW PROPERTY SOLUTIONS LTD,"4,962.08",Other Temp Accommodation,Repairs,08 Dec 2023,2324/09,SME,N,,
0010062542,WHYBROW PROPERTY SOLUTIONS LTD,615.00,C Parks General,Repairs,15 Dec 2023,2324/09,SME,N,,
0010062545,WHYBROW PROPERTY SOLUTIONS LTD,"7,000.00",Major Imps,Repairs,18 Dec 2023,2324/09,SME,N,,
0010062546,WHYBROW PROPERTY SOLUTIONS LTD,"15,000.00",Voids Maintenance,Repairs,18 Dec 2023,2324/09,SME,N,,
0010062547,WHYBROW PROPERTY SOLUTIONS LTD,"17,266.79",Major Imps,Repairs,15 Dec 2023,2324/09,SME,N,,
0010062548,WHYBROW PROPERTY SOLUTIONS LTD,663.13,C Parks General,Repairs,18 Dec 2023,2324/09,SME,N,,
0010062549,WHYBROW PROPERTY SOLUTIONS LTD,"12,000.00",Voids Maintenance,Repairs,18 Dec 2023,2324/09,SME,N,,
0010062099,L A C CLEANING CONTRACTORS LIMITED,"1,083.70",Wenham Depot TDP,General Cleaning,28 Nov 2023,2324/09,SME,Y,50%,
0010062274,L A C CLEANING CONTRACTORS LIMITED,710.50,Voids Maintenance,Repairs,06 Dec 2023,2324/09,SME,N,,
0010062478,L A C CLEANING CONTRACTORS LIMITED,596.50,Temporary Accommodation,General Cleaning,13 Dec 2023,2324/09,SME,N,,
0010062164,ARMSTRONG YORK ASBESTOS ENVIRONMENTAL,"2,990.82",Asbestos Survey & Reinspection,Prof & Consultancy Fees,30 Nov 2023,2324/09,SME,N,,
0010061512,DMP TRAINING (UK),675.00,Open Spaces,Training,06 Nov 2023,2324/09,SME,N,,
0010062449,TUDOR ENVIRONMENTAL,"1,994.48",Open Spaces,"Equipment, Tools & Materials",12 Dec 2023,2324/09,SME,N,,
0010062182,TRADITION (UK) LTD,"1,013.70",Treasury Management,Prof & Consultancy Fees,01 Dec 2023,2324/09,LGE,N,,
0010062350,STOWE VETERINARY GROUP,680.08,Animal Welfare Licensing,Prof & Consultancy Fees,07 Dec 2023,2324/09,SME,N,,
0010062754,CARTER JONAS,950.00,Assets & Development,Repairs,21 Dec 2023,2324/09,LGE,N,,
0010062417,OPUS PEOPLE SOLUTIONS LTD,"2,371.12",Building Services,Recruitment,27 Nov 2023,2324/09,SME,Y,50%,
0010062438,OPUS PEOPLE SOLUTIONS LTD,"2,371.12",Building Services,Recruitment,30 Oct 2023,2324/09,SME,Y,50%,
0010062456,OPUS PEOPLE SOLUTIONS LTD,353.73,Homeless Prevention Fund,Agency Staff,30 Nov 2023,2324/09,SME,N,,
0010062456,OPUS PEOPLE SOLUTIONS LTD,284.62,Climate Change and Sustainabil,Agency Staff,30 Nov 2023,2324/09,SME,N,,
0010062456,OPUS PEOPLE SOLUTIONS LTD,348.24,Health & Safety,Agency Staff,30 Nov 2023,2324/09,SME,N,,
0010062456,OPUS PEOPLE SOLUTIONS LTD,428.82,Covid-19 Test and Trace,Agency Staff,30 Nov 2023,2324/09,SME,Y,100%,
0010062456,OPUS PEOPLE SOLUTIONS LTD,179.89,Customer Servs,Agency Staff,30 Nov 2023,2324/09,SME,N,,
0010062456,OPUS PEOPLE SOLUTIONS LTD,352.69,Building Services,Agency Staff,30 Nov 2023,2324/09,SME,N,,
0010062677,OPUS PEOPLE SOLUTIONS LTD,267.57,Homeless Prevention Fund,Agency Staff,19 Dec 2023,2324/09,SME,N,,
0010062677,OPUS PEOPLE SOLUTIONS LTD,30.98,Devt Mgmt - Applications,Agency Staff,19 Dec 2023,2324/09,SME,N,,
0010062677,OPUS PEOPLE SOLUTIONS LTD,396.00,Climate Change and Sustainabil,Agency Staff,19 Dec 2023,2324/09,SME,N,,
0010062677,OPUS PEOPLE SOLUTIONS LTD,416.27,Health & Safety,Agency Staff,19 Dec 2023,2324/09,SME,N,,
0010062677,OPUS PEOPLE SOLUTIONS LTD,245.04,Covid-19 Test and Trace,Agency Staff,19 Dec 2023,2324/09,SME,Y,100%,
0010062677,OPUS PEOPLE SOLUTIONS LTD,170.53,Customer Servs,Agency Staff,19 Dec 2023,2324/09,SME,N,,
0010062677,OPUS PEOPLE SOLUTIONS LTD,825.66,Building Services,Agency Staff,19 Dec 2023,2324/09,SME,N,,
0010062678,OPUS PEOPLE SOLUTIONS LTD,58.65,Devt Mgmt - Applications,Agency Staff,19 Dec 2023,2324/09,SME,N,,
0010062678,OPUS PEOPLE SOLUTIONS LTD,247.50,Climate Change and Sustainabil,Agency Staff,19 Dec 2023,2324/09,SME,N,,
0010062678,OPUS PEOPLE SOLUTIONS LTD,424.99,Health & Safety,Agency Staff,19 Dec 2023,2324/09,SME,N,,
0010062678,OPUS PEOPLE SOLUTIONS LTD,428.82,Covid-19 Test and Trace,Agency Staff,19 Dec 2023,2324/09,SME,Y,100%,
0010062678,OPUS PEOPLE SOLUTIONS LTD,62.95,Customer Servs,Agency Staff,19 Dec 2023,2324/09,SME,N,,
0010062678,OPUS PEOPLE SOLUTIONS LTD,742.51,Building Services,Agency Staff,19 Dec 2023,2324/09,SME,N,,
0010062756,OPUS PEOPLE SOLUTIONS LTD,526.06,Homeless Prevention Fund,Agency Staff,20 Dec 2023,2324/09,SME,N,,
0010062756,OPUS PEOPLE SOLUTIONS LTD,68.43,Devt Mgmt - Applications,Agency Staff,20 Dec 2023,2324/09,SME,N,,
0010062756,OPUS PEOPLE SOLUTIONS LTD,655.89,Climate Change and Sustainabil,Agency Staff,20 Dec 2023,2324/09,SME,N,,
0010062756,OPUS PEOPLE SOLUTIONS LTD,429.87,Health & Safety,Agency Staff,20 Dec 2023,2324/09,SME,N,,
0010062756,OPUS PEOPLE SOLUTIONS LTD,275.67,Covid-19 Test and Trace,Agency Staff,20 Dec 2023,2324/09,SME,Y,100%,
0010062756,OPUS PEOPLE SOLUTIONS LTD,119.96,Customer Servs,Agency Staff,20 Dec 2023,2324/09,SME,N,,
0010062756,OPUS PEOPLE SOLUTIONS LTD,389.82,Building Services,Agency Staff,20 Dec 2023,2324/09,SME,N,,
0010062186,CORNERSTONE BARRISTERS,"1,425.00",Devt Policy & Local Plans,Misc Legal Expenses,21 Nov 2023,2324/09,SME,Y,50%,
0010062290,UNIVERSITY OF THE WEST OF ENGLAND,"4,750.00",Strategic Planning General,Conference Expenses,05 Dec 2023,2324/09,LGE,Y,50%,
0010062160,COLLINS SKIP HIRE,825.00,Building Services,Waste Disposal,30 Nov 2023,2324/09,SME,Y,50%,
0010062400,COLLINS SKIP HIRE,550.00,Building Services,Waste Disposal,11 Dec 2023,2324/09,SME,Y,50%,
0010062367,4PRINCIPLES CONSTRUCTION LTD,"1,615.87",Mand Disabled Facilities Grant,Grants,07 Dec 2023,2324/09,SME,N,,
0010062590,4PRINCIPLES CONSTRUCTION LTD,"7,086.38",Mand Disabled Facilities Grant,Grants,19 Dec 2023,2324/09,SME,N,,
0010062147,BIRKETTS LLP,"2,735.00",ServImps -Environment&Projects,Misc Legal Expenses,28 Nov 2023,2324/09,LGE,Y,50%,
0010062622,FORESOLUTIONS LTD,730.50,Open Spaces,Plant & Vehicle - Other costs,17 Dec 2023,2324/09,SME,N,,
0010062622,FORESOLUTIONS LTD,730.50,Street & Major Road Cleansing,Plant & Vehicle - Other costs,17 Dec 2023,2324/09,SME,N,,
0010062315,PENNA PLC,"12,420.00",Management Team,Agency Staff,16 Nov 2023,2324/09,SME,Y,50%,
0010062316,PENNA PLC,"5,280.00",Management Team,Agency Staff,04 Dec 2023,2324/09,SME,Y,50%,
0010062352,FROST AND PARTNERS,"1,100.00",Homes for Ukraine,Rent Payable,08 Dec 2023,2324/09,SME,N,,
0010062639,SUFFOLK MARKET EVENTS,682.50,Hadleigh Market,Contracted Services,18 Dec 2023,2324/09,SME,N,,
0010062127,HAYS SPECIALIST RECRUITMENT LTD,"1,826.85",ICT - Finance System,Agency Staff,29 Nov 2023,2324/09,LGE,Y,50%,
0010062229,HAYS SPECIALIST RECRUITMENT LTD,"1,198.60",Pld Maint/Enhncmts-Corp Bldgs,Agency Staff,04 Dec 2023,2324/09,LGE,Y,50%,
0010062320,HAYS SPECIALIST RECRUITMENT LTD,"1,096.11",ICT - Finance System,Agency Staff,06 Dec 2023,2324/09,LGE,Y,50%,
0010062466,HAYS SPECIALIST RECRUITMENT LTD,"1,826.85",ICT - Finance System,Agency Staff,13 Dec 2023,2324/09,LGE,Y,50%,
0010062680,HAYS SPECIALIST RECRUITMENT LTD,719.16,Pld Maint/Enhncmts-Corp Bldgs,Agency Staff,19 Dec 2023,2324/09,LGE,Y,50%,
0020028810,HM COURTS & TRIBUNALS SERVICE,"1,328.00",Building Servs Tech Staff,Legal Expenses,12 Dec 2023,2324/09,LGE,N,,
0020028799,RIX PETROLEUM (EAST ANGLIA) LTD,609.95,Open Spaces,Plant & Vehicle Fuel,01 Dec 2023,2324/09,SME,N,,
0020028799,RIX PETROLEUM (EAST ANGLIA) LTD,486.29,Wenham Depot,Heating Oil,01 Dec 2023,2324/09,SME,N,,
0020028799,RIX PETROLEUM (EAST ANGLIA) LTD,"2,697.45",Tenancy Services,Heating Oil,01 Dec 2023,2324/09,SME,N,,
0020028799,RIX PETROLEUM (EAST ANGLIA) LTD,609.95,Open Spaces,Plant & Vehicle Fuel,01 Dec 2023,2324/09,SME,Y,100%,
0010062323,STORETEC SERVICES LTD,582.14,ICT,"Equipment, Tools & Materials",30 Nov 2023,2324/09,SME,Y,50%,
0010062255,GIPPING OCCUPATIONAL HEALTH LTD,832.05,Health & Safety,Contracted Services,29 Nov 2023,2324/09,SME,Y,50%,
0010062223,JOHN FORD GROUP LTD,"5,909.38",Mand Disabled Facilities Grant,Grants,04 Dec 2023,2324/09,SME,N,,
0010062302,LICENCE CHECK LTD,740.00,Health & Safety,Contracted Services,06 Dec 2023,2324/09,SME,Y,50%,
0010062439,LICENCE CHECK LTD,780.00,Health & Safety,Contracted Services,12 Dec 2023,2324/09,SME,Y,50%,
0010062215,SUDBURYS,825.00,Guaranteed Rent Scheme,Rent Payable,04 Dec 2023,2324/09,SME,N,,
0010062200,WILLIAM H BROWN ESTATE AGENTS - SUDBURY,975.00,Guaranteed Rent Scheme,Rent Payable,04 Dec 2023,2324/09,SME,N,,
0010062351,WILLIAM H BROWN ESTATE AGENTS - SUDBURY,775.00,Guaranteed Rent Scheme,Rent Payable,08 Dec 2023,2324/09,SME,N,,
0010062648,ABBEYCROFT LEISURE,"10,005.00",Holiday Activity Funding,"Equipment, Tools & Materials",19 Dec 2023,2324/09,LGE,N,,
0010062611,PIGHTLES DEVELOPMENTS LTD,925.00,Guaranteed Rent Scheme,Rent Payable,19 Dec 2023,2324/09,SME,N,,
0010061844,EAST SUFFOLK COUNCIL,"6,817.00",Shared Prosperity Fund,Prof & Consultancy Fees,16 Nov 2023,2324/09,LGE,N,,
0010061844,EAST SUFFOLK COUNCIL,"4,373.38",Shared Prosperity Fund,Prof & Consultancy Fees,16 Nov 2023,2324/09,LGE,N,,
0010062248,STAGE EVENT SECURITY LTD,"1,395.00",Open Spaces,Misc Premises Costs,30 Nov 2023,2324/09,SME,N,,
0010062226,HUGHES TRADE,575.00,Homeless Prevention Fund,Furniture,04 Dec 2023,2324/09,LGE,N,,
0010062473,APTL ENTERPRISES LTD,"2,020.00",Building Services,Repairs,13 Dec 2023,2324/09,SME,N,,
0010062258,ANGLIA COMMERCIAL FLOORING LTD,655.37,Building Services,Repairs,05 Dec 2023,2324/09,SME,N,,
0010062284,ANGLIA COMMERCIAL FLOORING LTD,667.03,Voids Maintenance,Repairs,05 Dec 2023,2324/09,SME,N,,
0010062458,ANGLIA COMMERCIAL FLOORING LTD,"1,166.44",Building Services,Repairs,12 Dec 2023,2324/09,SME,N,,
0020028805,ANGLIAN WATER BUS (NAT) LTD T/A WAVE,125.05,C Parks General,Water Rates - Metered,12 Dec 2023,2324/09,LGE,N,,
0020028805,ANGLIAN WATER BUS (NAT) LTD T/A WAVE,298.17,Chilton Depot,Water Rates - Metered,12 Dec 2023,2324/09,LGE,N,,
0020028805,ANGLIAN WATER BUS (NAT) LTD T/A WAVE,5.71,Friars Meadow Sudb,Water Rates - Metered,12 Dec 2023,2324/09,LGE,N,,
0020028805,ANGLIAN WATER BUS (NAT) LTD T/A WAVE,47.66,General Rechargeable Works,Misc Supplies & Services Costs,12 Dec 2023,2324/09,LGE,N,,
0020028805,ANGLIAN WATER BUS (NAT) LTD T/A WAVE,79.15,HQ Energy,Water Rates - Metered,12 Dec 2023,2324/09,LGE,N,,
0020028805,ANGLIAN WATER BUS (NAT) LTD T/A WAVE,259.14,Public Conveniences,Water Rates - Metered,12 Dec 2023,2324/09,LGE,N,,
0020028805,ANGLIAN WATER BUS (NAT) LTD T/A WAVE,"2,624.42",Sheltered Accommodation,Water Rates - Metered,12 Dec 2023,2324/09,LGE,N,,
0020028805,ANGLIAN WATER BUS (NAT) LTD T/A WAVE,185.64,Temporary Accommodation,Water Rates - Metered,12 Dec 2023,2324/09,LGE,N,,
0020028805,ANGLIAN WATER BUS (NAT) LTD T/A WAVE,98.84,Tenancy Services,Water Rates - Metered,12 Dec 2023,2324/09,LGE,N,,
0010062610,TRANSPORT PLANNING ASSOCIATES LTD,"1,320.00",Devt Management -Appeals,Highways  Consultancy,30 Nov 2023,2324/09,SME,N,,
0010062405,STUDLEY CAPITAL LIMITED,712.50,Hamilton Road Regeneration,Prof & Consultancy Fees,11 Dec 2023,2324/09,ST,N,,
0010062106,GREENACRE RECRUITMENT LTD,"3,596.25",HRA General Management,Agency Staff,29 Nov 2023,2324/09,SME,Y,50%,
0010062107,GREENACRE RECRUITMENT LTD,"2,550.00",Building Services,Agency Staff,29 Nov 2023,2324/09,SME,Y,50%,
0010062108,GREENACRE RECRUITMENT LTD,"2,400.00",Building Services,Agency Staff,29 Nov 2023,2324/09,SME,Y,50%,
0010062109,GREENACRE RECRUITMENT LTD,"1,440.00",Building Services,Agency Staff,29 Nov 2023,2324/09,SME,Y,50%,
0010062110,GREENACRE RECRUITMENT LTD,"2,000.00",Building Services Compliance,Agency Staff,29 Nov 2023,2324/09,SME,Y,50%,
0010062111,GREENACRE RECRUITMENT LTD,"1,975.00",Building Services,Agency Staff,29 Nov 2023,2324/09,SME,Y,50%,
0010062293,GREENACRE RECRUITMENT LTD,"1,975.00",Building Services,Agency Staff,06 Dec 2023,2324/09,SME,Y,50%,
0010062294,GREENACRE RECRUITMENT LTD,"2,000.00",Building Services Compliance,Agency Staff,06 Dec 2023,2324/09,SME,Y,50%,
0010062295,GREENACRE RECRUITMENT LTD,"1,422.00",Building Services,Agency Staff,06 Dec 2023,2324/09,SME,Y,50%,
0010062296,GREENACRE RECRUITMENT LTD,"2,702.75",Building Services,Agency Staff,06 Dec 2023,2324/09,SME,Y,50%,
0010062297,GREENACRE RECRUITMENT LTD,"2,550.00",Building Services,Agency Staff,06 Dec 2023,2324/09,SME,Y,50%,
0010062298,GREENACRE RECRUITMENT LTD,"3,488.90",HRA General Management,Agency Staff,06 Dec 2023,2324/09,SME,Y,50%,
0010062486,GREENACRE RECRUITMENT LTD,"1,975.00",Building Services,Agency Staff,13 Dec 2023,2324/09,SME,Y,50%,
0010062487,GREENACRE RECRUITMENT LTD,"2,000.00",Building Services Compliance,Agency Staff,13 Dec 2023,2324/09,SME,Y,50%,
0010062488,GREENACRE RECRUITMENT LTD,"1,116.00",Building Services,Agency Staff,13 Dec 2023,2324/09,SME,Y,50%,
0010062489,GREENACRE RECRUITMENT LTD,"2,400.00",Building Services,Agency Staff,13 Dec 2023,2324/09,SME,Y,50%,
0010062490,GREENACRE RECRUITMENT LTD,"2,562.60",Building Services,Agency Staff,13 Dec 2023,2324/09,SME,Y,50%,
0010062491,GREENACRE RECRUITMENT LTD,"3,509.60",HRA General Management,Agency Staff,13 Dec 2023,2324/09,SME,Y,50%,
0010062491,GREENACRE RECRUITMENT LTD,"1,754.80",HRA General Management,Agency Staff,13 Dec 2023,2324/09,SME,Y,50%,
0010062695,GREENACRE RECRUITMENT LTD,"1,975.00",Building Services,Agency Staff,20 Dec 2023,2324/09,SME,Y,50%,
0010062696,GREENACRE RECRUITMENT LTD,"1,600.00",Building Services Compliance,Agency Staff,20 Dec 2023,2324/09,SME,Y,50%,
0010062697,GREENACRE RECRUITMENT LTD,"1,188.00",Building Services,Agency Staff,20 Dec 2023,2324/09,SME,Y,50%,
0010062698,GREENACRE RECRUITMENT LTD,"2,700.00",Building Services,Agency Staff,20 Dec 2023,2324/09,SME,Y,50%,
0010062699,GREENACRE RECRUITMENT LTD,"2,550.00",Building Services,Agency Staff,20 Dec 2023,2324/09,SME,Y,50%,
0010062700,GREENACRE RECRUITMENT LTD,"3,834.55",HRA General Management,Agency Staff,20 Dec 2023,2324/09,SME,Y,50%,
0010062505,BURSTALL VILLAGE HALL,"10,000.00",Comm Devt Grants,Grants,12 Dec 2023,2324/09,SME,N,,
0010062780,LAYHAM VILLAGE HALL,"1,000.00",VCSE Resilience,"Equipment, Tools & Materials",22 Dec 2023,2324/09,SME,N,,
0010062163,TIAA LTD,"5,000.00",Internal Audit,Contracted Services,01 Dec 2023,2324/09,SME,Y,50%,
0010062584,BYCHOICE LTD,950.00,Guaranteed Rent Scheme,Rent Payable,19 Dec 2023,2324/09,SME,N,,
0010062476,LAND USE CONSULTANTS LTD,"3,500.00",Nghbrhd Plan Designations,Prof & Consultancy Fees,13 Dec 2023,2324/09,SME,N,,
0010062774,INFORM COMMUNICATIONS LTD,"40,190.00",Customer Servs,Contracted Services,22 Dec 2023,2324/09,SME,Y,53%,
0010062261,PINSENT MASONS LLP,"5,823.15",Organisational Devt,Corporate Training,23 Nov 2023,2324/09,LGE,Y,50%,
0010062582,REEFER PROPERTIES LTD,695.00,Guaranteed Rent Scheme,Rent Payable,19 Dec 2023,2324/09,SME,N,,
0010062642,OCN CONTRACTS,"4,575.00",Other Temp Accommodation,Furniture,12 Dec 2023,2324/09,SME,Y,50%,
0010062262,WADDINGTON BROWN LTD,"1,008.99",Organisational Devt,Agency Staff,04 Dec 2023,2324/09,SME,Y,50%,
0010062420,WADDINGTON BROWN LTD,"1,118.07",Organisational Devt,Agency Staff,11 Dec 2023,2324/09,SME,Y,50%,
0010062409,PRIVATE LANDLORD,800.00,Guaranteed Rent Scheme,Rent Payable,11 Dec 2023,2324/09,ST,N,,
0010062605,PRIVATE LANDLORD,700.00,Guaranteed Rent Scheme,Rent Payable,19 Dec 2023,2324/09,ST,N,,
0010062245,BUCHER MUNICIPAL LTD,818.48,Street & Major Road Cleansing,Plant & Vehicle - Other costs,04 Dec 2023,2324/09,LGE,Y,50%,
0010062346,CAPITA BUSINESS SERVICES LTD (PAY360),958.06,Bank Chgs,Bank Charges,07 Dec 2023,2324/09,LGE,N,,
0020028800,PAUL WRIGHT & CO,"2,000.00",Guaranteed Rent Scheme,Misc Supplies & Services Costs,18 Dec 2023,2324/09,SME,N,,
0010062292,SEQUENCE UK LTD (WILLIAM H BROWN),"1,500.00",Bourne Hill Wherstead S106 acq,Prof & Consultancy Fees,30 Nov 2023,2324/09,LGE,N,,
0010062447,SEQUENCE UK LTD (WILLIAM H BROWN),"1,500.00",Waldingfield Rd S106 Andersons,Prof & Consultancy Fees,11 Dec 2023,2324/09,LGE,N,,
0010062674,SEQUENCE UK LTD (WILLIAM H BROWN),"1,500.00",Waldingfield Rd S106 Andersons,Prof & Consultancy Fees,19 Dec 2023,2324/09,LGE,N,,
0010062570,PRIVATE LANDLORD,550.00,Guaranteed Rent Scheme,Rent Payable,19 Dec 2023,2324/09,ST,N,,
0010062535,PRIVATE LANDLORD,750.00,Guaranteed Rent Scheme,Rent Payable,18 Dec 2023,2324/09,ST,N,,
0010061926,AFFINITY HEALTH AT WORK LTD,"1,300.00",Building Services,Agency Staff,15 Nov 2023,2324/09,SME,Y,50%,
0010062625,AFFINITY HEALTH AT WORK LTD,"1,800.00",Cost of Democracy,Training,05 Oct 2023,2324/09,SME,Y,50%,
0010062201,PRIVATE LANDLORD,"1,320.00",Guaranteed Rent Scheme,Rent Payable,04 Dec 2023,2324/09,ST,N,,
0010062120,SUFFOLK DOORS & WINDOWS LTD,"2,900.00",Building Services,Repairs,29 Nov 2023,2324/09,SME,N,,
0010062218,PRIVATE LANDLORD,786.50,Guaranteed Rent Scheme,Rent Payable,04 Dec 2023,2324/09,ST,N,,
0010062673,MOBYSOFT LTD,"78,556.95",Rent Collection,Line of Business Applications,07 Dec 2023,2324/09,SME,Y,48%,
0010062358,PRIVATE LANDLORD,650.00,Guaranteed Rent Scheme,Rent Payable,08 Dec 2023,2324/09,ST,N,,
0010062269,COUNTRYSTYLE RECYCLING LTD,"3,525.58",Bring Sites,Contracted Services,30 Nov 2023,2324/09,SME,N,,
0010062189,PRIVATE LANDLORD,750.00,Guaranteed Rent Scheme,Rent Payable,04 Dec 2023,2324/09,ST,N,,
0010062356,PRIVATE LANDLORD,835.00,Guaranteed Rent Scheme,Rent Payable,08 Dec 2023,2324/09,ST,N,,
0010062204,PRIVATE LANDLORD,880.00,Guaranteed Rent Scheme,Rent Payable,04 Dec 2023,2324/09,ST,N,,
0010061775,ARAN INSULATION LTD,"1,144.43",Insulation Imps,Major Contracts,24 Oct 2023,2324/09,SME,N,,
0010061776,ARAN INSULATION LTD,"2,388.27",Insulation Imps,Major Contracts,25 Oct 2023,2324/09,SME,N,,
0010062196,ARAN INSULATION LTD,"4,146.86",Insulation Imps,Major Contracts,04 Dec 2023,2324/09,SME,N,,
0010062244,ARAN INSULATION LTD,"15,759.50",Insulation Imps,Repairs,05 Dec 2023,2324/09,SME,N,,
0010062305,ARAN INSULATION LTD,"23,755.99",Insulation Imps,Repairs,06 Dec 2023,2324/09,SME,N,,
0010062306,ARAN INSULATION LTD,"24,580.20",Insulation Imps,Repairs,06 Dec 2023,2324/09,SME,N,,
0010062414,ARAN INSULATION LTD,769.38,Insulation Imps,Major Contracts,11 Dec 2023,2324/09,SME,N,,
0010062416,ARAN INSULATION LTD,"1,628.67",Building Services,Repairs,29 Nov 2023,2324/09,SME,N,,
0010062208,PRIVATE LANDLORD,520.00,Guaranteed Rent Scheme,Rent Payable,04 Dec 2023,2324/09,ST,N,,
0010062608,PRIVATE LANDLORD,595.00,Guaranteed Rent Scheme,Rent Payable,19 Dec 2023,2324/09,ST,N,,
0010062206,T J WHITE PLUMBING & HEATING,"7,500.00",Renovation/Home Repair Grants,Grants,04 Dec 2023,2324/09,SME,N,,
0010062573,T J WHITE PLUMBING & HEATING,"7,300.00",Mand Disabled Facilities Grant,Grants,19 Dec 2023,2324/09,SME,N,,
0010062589,PRIVATE LANDLORD,575.00,Guaranteed Rent Scheme,Rent Payable,19 Dec 2023,2324/09,ST,N,,
0010062301,IPSERV LTD,168.50,Central Printing,Commercial Printing,30 Nov 2023,2324/09,SME,N,,
0010062301,IPSERV LTD,"5,215.59",Communications,Commercial Printing,30 Nov 2023,2324/09,SME,N,,
0010062328,BOND TURNER,"9,488.10",Building Services,Payments to Tenants,07 Dec 2023,2324/09,SME,N,,
0010062733,JACKSON LIFT SERVICES LTD,842.00,Sheltered Units-Gen.Imp,Repairs,20 Dec 2023,2324/09,LGE,N,,
0010062587,DAVID BURR LETTINGS,750.00,Guaranteed Rent Scheme,Rent Payable,19 Dec 2023,2324/09,SME,N,,
0010062361,PRIVATE LANDLORD,715.00,Guaranteed Rent Scheme,Rent Payable,08 Dec 2023,2324/09,ST,N,,
0010062359,PRIVATE LANDLORD,675.00,Guaranteed Rent Scheme,Rent Payable,08 Dec 2023,2324/09,ST,N,,
0010062362,PRIVATE LANDLORD,650.00,Guaranteed Rent Scheme,Rent Payable,08 Dec 2023,2324/09,ST,N,,
0010062539,PRIVATE LANDLORD,650.00,Guaranteed Rent Scheme,Rent Payable,18 Dec 2023,2324/09,ST,N,,
0010062776,THE BUMBLEBEE CHILDRENS CHARITY,"2,000.00",VCSE Resilience,"Equipment, Tools & Materials",22 Dec 2023,2324/09,SME,N,,
0010062304,MINI WASTE LTD,"3,862.00",Open Spaces,Waste Disposal,30 Nov 2023,2324/09,SME,N,,
0010062343,FOXEARTH HOMES LTD,"1,500.00",Household Support Grant,Misc Supplies & Services Costs,07 Dec 2023,2324/09,SME,N,,
0010062354,PRIVATE LANDLORD,725.00,Guaranteed Rent Scheme,Rent Payable,08 Dec 2023,2324/09,ST,N,,
0010062045,LAND SURVEY SOLS LTD T/A SURVEY SOLS,"1,245.00","Schoolfield, Glemsford",Prof & Consultancy Fees,26 Oct 2023,2324/09,SME,N,,
0010062586,HAMILTON SMITH LETTINGS,670.00,Guaranteed Rent Scheme,Rent Payable,19 Dec 2023,2324/09,SME,N,,
0020028797,HAMILTON SMITH LETTINGS,"7,615.39",Homes for Ukraine,Rent Payable,04 Dec 2023,2324/09,SME,N,,
0010062395,KBM HOUSE SHARE & PROPERTY MANAGEMENT LT,600.00,Guaranteed Rent Scheme,Rent Payable,11 Dec 2023,2324/09,SME,N,,
0010062370,PAY 360 LIMITED,"7,381.74",Bank Chgs,Bank Charges,08 Dec 2023,2324/09,LGE,N,,
0010062357,PRIVATE LANDLORD,550.00,Guaranteed Rent Scheme,Rent Payable,08 Dec 2023,2324/09,ST,N,,
0010062455,STEVEN JAMES ALLEN LTD,"10,423.73",Building Services,Repairs,20 Nov 2023,2324/09,SME,N,,
0010062606,PRIVATE LANDLORD,575.00,Guaranteed Rent Scheme,Rent Payable,19 Dec 2023,2324/09,ST,N,,
0010062398,JPK TRADE SUPPLIES LTD,"1,400.00",Street & Major Road Cleansing,"Equipment, Tools & Materials",05 Dec 2023,2324/09,SME,N,,
0010062318,NEWSQUEST MEDIA GROUP,576.80,Devt Management -Applications,Advertising&mkting (non-staff),06 Dec 2023,2324/09,LGE,N,,
0010062492,NEWSQUEST MEDIA GROUP,840.48,Devt Management -Applications,Advertising&mkting (non-staff),13 Dec 2023,2324/09,LGE,N,,
0010062714,NEWSQUEST MEDIA GROUP,"1,112.40",Devt Management -Applications,Advertising&mkting (non-staff),20 Dec 2023,2324/09,LGE,N,,
0010062330,TILLER (THE PADDOCKS) LTD,"48,674.00","The Paddocks, Lavenham",Purchase of Land & Buildings,01 Dec 2023,2324/09,SME,N,,
0010062051,FAITHORN FARRELL TIMMS,"6,500.00",Building Services,Repairs,24 Nov 2023,2324/09,SME,Y,50%,
0010062385,SOCITM ADVISORY LTD,"25,000.00",ICT - Finance System,Contracted Services,30 Nov 2023,2324/09,SME,Y,50%,
0010062604,SOCITM ADVISORY LTD,"20,500.00",ICT - Finance System,Contracted Services,15 Dec 2023,2324/09,SME,Y,50%,
0010062585,PRIVATE LANDLORD,600.00,Guaranteed Rent Scheme,Rent Payable,19 Dec 2023,2324/09,ST,N,,
0010061949,PRECISION RESOURCE GROUP LTD T/A PANORAM,"2,250.00",HRA General Management,Agency Staff,22 Nov 2023,2324/09,LGE,Y,50%,
0010062115,PRECISION RESOURCE GROUP LTD T/A PANORAM,"2,250.00",HRA General Management,Agency Staff,29 Nov 2023,2324/09,LGE,Y,50%,
0010062317,PRECISION RESOURCE GROUP LTD T/A PANORAM,"2,250.00",HRA General Management,Agency Staff,06 Dec 2023,2324/09,LGE,Y,50%,
0010062390,PRECISION RESOURCE GROUP LTD T/A PANORAM,"1,875.00",Building Servs Tech Staff,Agency Staff,29 Nov 2023,2324/09,LGE,Y,50%,
0010062391,PRECISION RESOURCE GROUP LTD T/A PANORAM,"1,875.00",Building Servs Tech Staff,Agency Staff,06 Dec 2023,2324/09,LGE,Y,50%,
0010062472,PRECISION RESOURCE GROUP LTD T/A PANORAM,"2,250.00",HRA General Management,Agency Staff,13 Dec 2023,2324/09,LGE,Y,50%,
0010062497,PRECISION RESOURCE GROUP LTD T/A PANORAM,"1,875.00",Building Servs Tech Staff,Agency Staff,13 Dec 2023,2324/09,LGE,Y,50%,
0010062713,PRECISION RESOURCE GROUP LTD T/A PANORAM,"2,250.00",HRA General Management,Agency Staff,20 Dec 2023,2324/09,LGE,Y,50%,
0010062778,PRECISION RESOURCE GROUP LTD T/A PANORAM,"1,875.00",Building Servs Tech Staff,Agency Staff,20 Dec 2023,2324/09,LGE,Y,50%,
0010062795,PRECISION RESOURCE GROUP LTD T/A PANORAM,"2,250.00",HRA General Management,Agency Staff,27 Dec 2023,2324/09,LGE,Y,50%,
0010062806,PRECISION RESOURCE GROUP LTD T/A PANORAM,"1,875.00",Building Servs Tech Staff,Agency Staff,27 Dec 2023,2324/09,LGE,Y,50%,
0010062195,CUTLERS WOOD LTD,750.00,Guaranteed Rent Scheme,Rent Payable,04 Dec 2023,2324/09,SME,N,,
0010062203,PRIVATE LANDLORD,575.00,Guaranteed Rent Scheme,Rent Payable,04 Dec 2023,2324/09,ST,N,,
0010062216,HOME TO RENT LTD,975.00,Guaranteed Rent Scheme,Rent Payable,05 Dec 2023,2324/09,SME,N,,
0010062217,PRIVATE LANDLORD,"1,000.00",Guaranteed Rent Scheme,Rent Payable,05 Dec 2023,2324/09,ST,N,,
0020028806,SEFE ENERGY LIMITED,341.95,Belle Vue House,Gas,16 Dec 2023,2324/09,LGE,N,,
0020028806,SEFE ENERGY LIMITED,61.82,HQ Energy,Gas,16 Dec 2023,2324/09,LGE,N,,
0020028806,SEFE ENERGY LIMITED,"10,762.21",Sheltered Accommodation,Gas,16 Dec 2023,2324/09,LGE,N,,
0020028806,SEFE ENERGY LIMITED,400.07,Temporary Accommodation,Gas,16 Dec 2023,2324/09,LGE,N,,
0010061273,SIGNIX LTD,"5,415.30",Smoke Alarms (Bbgh Standard),Major Contracts,30 Oct 2023,2324/09,SME,N,,
0010061303,SIGNIX LTD,"64,528.01",Smoke Alarms (Bbgh Standard),Repairs,30 Oct 2023,2324/09,SME,N,,
0010062193,SIGNIX LTD,"102,481.15",Rewiring,Repairs,04 Dec 2023,2324/09,SME,N,,
0010062501,SIGNIX LTD,"4,475.00",Rewiring,Repairs,14 Dec 2023,2324/09,SME,N,,
0010062501,SIGNIX LTD,"101,474.90",Rewiring,Repairs,14 Dec 2023,2324/09,SME,N,,
0010062520,LAC SERVICES (EAST ANGLIA) LTD,"1,435.53",Sheltered Accommodation,Fire Prevention,11 Dec 2023,2324/09,SME,N,,
0010062510,PRINCIPLE CONSTRUCTION & MAINTENANCE LTD,"7,837.40",Council House Adaptions,Improvements,14 Dec 2023,2324/09,SME,N,,
0010062143,LAW MORGAN LTD T/A MORGAN LAW,"3,025.00",Financial Servs,Agency Staff,30 Nov 2023,2324/09,SME,Y,50%,
0010062144,LAW MORGAN LTD T/A MORGAN LAW,"2,300.00",Commissioning & Procurement,Agency Staff,30 Nov 2023,2324/09,SME,Y,50%,
0010062145,LAW MORGAN LTD T/A MORGAN LAW,"4,599.20",Financial Servs,Agency Staff,30 Nov 2023,2324/09,SME,Y,50%,
0010062336,LAW MORGAN LTD T/A MORGAN LAW,"4,599.60",Financial Servs,Agency Staff,07 Dec 2023,2324/09,SME,Y,50%,
0010062337,LAW MORGAN LTD T/A MORGAN LAW,"2,722.50",Financial Servs,Agency Staff,07 Dec 2023,2324/09,SME,Y,50%,
0010062338,LAW MORGAN LTD T/A MORGAN LAW,"2,300.00",Commissioning & Procurement,Agency Staff,07 Dec 2023,2324/09,SME,Y,50%,
0010062483,LAW MORGAN LTD T/A MORGAN LAW,"3,025.00",Financial Servs,Agency Staff,14 Dec 2023,2324/09,SME,Y,50%,
0010062484,LAW MORGAN LTD T/A MORGAN LAW,"2,300.00",Commissioning & Procurement,Agency Staff,14 Dec 2023,2324/09,SME,Y,50%,
0010062485,LAW MORGAN LTD T/A MORGAN LAW,"4,599.60",Financial Servs,Agency Staff,14 Dec 2023,2324/09,SME,Y,50%,
0010062718,LAW MORGAN LTD T/A MORGAN LAW,"3,025.00",Financial Servs,Agency Staff,20 Dec 2023,2324/09,SME,Y,50%,
0010062719,LAW MORGAN LTD T/A MORGAN LAW,"4,599.60",Financial Servs,Agency Staff,20 Dec 2023,2324/09,SME,Y,50%,
0010062720,LAW MORGAN LTD T/A MORGAN LAW,"2,300.00",Commissioning & Procurement,Agency Staff,20 Dec 2023,2324/09,SME,Y,50%,
0010062560,APEX ROOFERS LTD,560.00,Insulation Imps,Repairs,13 Dec 2023,2324/09,SME,N,,
0010062561,APEX ROOFERS LTD,"1,650.00",Building Services,Repairs,13 Dec 2023,2324/09,SME,N,,
0010062198,LITTLE MUSKETEERS LTD,"2,023.46",Holiday Activity Funding,"Equipment, Tools & Materials",04 Dec 2023,2324/09,SME,N,,
0010062631,DEDHAM VALE TREE SURGERY LTD,"2,000.00",Public Tree Programme,Tree felling/maintenance,18 Dec 2023,2324/09,SME,N,,
0010062353,SHELTERED HOUSING RENTALS LTD,660.00,Guaranteed Rent Scheme,Rent Payable,08 Dec 2023,2324/09,SME,N,,
0010061797,BAILEYS HEATING COMPANY LTD,"4,224.39",Planned Maint - Heating,Property Servicing,16 Nov 2023,2324/09,SME,N,,
0010061800,BAILEYS HEATING COMPANY LTD,"7,195.00",Central Heating,Major Contracts,19 Oct 2023,2324/09,SME,N,,
0010061952,BAILEYS HEATING COMPANY LTD,"12,320.00",Central Heating,Improvements,31 Oct 2023,2324/09,SME,N,,
0010062187,BAILEYS HEATING COMPANY LTD,"51,405.05",Planned Maint - Heating,Repairs,30 Nov 2023,2324/09,SME,N,,
0010062197,BAILEYS HEATING COMPANY LTD,"3,134.99",Central Heating,Major Contracts,04 Dec 2023,2324/09,SME,N,,
0010062213,BAILEYS HEATING COMPANY LTD,"8,929.20",Central Heating,Major Contracts,04 Dec 2023,2324/09,SME,N,,
0010062459,BAILEYS HEATING COMPANY LTD,510.20,Voids Maintenance,Repairs,12 Dec 2023,2324/09,SME,N,,
0010062461,BAILEYS HEATING COMPANY LTD,824.87,Planned Maint - Heating,Property Servicing,31 Oct 2023,2324/09,SME,N,,
0010062210,FINCH FUTURES LTD,850.00,Guaranteed Rent Scheme,Rent Payable,04 Dec 2023,2324/09,SME,N,,
0010061956,LWJ SOLUTIONS LTD,"24,797.83","Gaol Lane, toilet refurb",Contracted Services,17 Nov 2023,2324/09,SME,N,,
0010062183,AMBER GREEN CONSULTING LTD,875.00,Software/ICT Projects/Surveys,Prof & Consultancy Fees,03 Dec 2023,2324/09,SME,Y,50%,
0010062259,EKB CLEANING LTD,513.33,Public Conveniences,Contracted Services,30 Nov 2023,2324/09,SME,N,,
0010062396,PRIVATE LANDLORD,880.00,Guaranteed Rent Scheme,Rent Payable,11 Dec 2023,2324/09,ST,N,,
0010062574,NICHOLSON JONES SUTTON SOLICITORS,"7,807.84",Building Services,Payments to Tenants,19 Dec 2023,2324/09,SME,N,,
0010062214,PRIVATE LANDLORD,700.00,Guaranteed Rent Scheme,Rent Payable,04 Dec 2023,2324/09,ST,N,,
0010062219,TMH RESIDENTIAL LTD,710.00,Guaranteed Rent Scheme,Rent Payable,05 Dec 2023,2324/09,SME,N,,
0010062360,ETO GREEN PROPERTY LTD,"1,000.00",Guaranteed Rent Scheme,Rent Payable,08 Dec 2023,2324/09,SME,N,,
0010062172,PRIVATE LANDLORD,697.19,Homeless Prevention Fund,Misc Supplies & Services Costs,01 Dec 2023,2324/09,SME,N,,
0010062263,M R WALTON ELECTRICAL,810.00,Renovation/Home Repair Grants,Grants,05 Dec 2023,2324/09,ST,N,,
0000001151,FORE-MOST GARAGE DOORS LTD,-73.00,Building Services,Repairs,07 Dec 2023,2324/09,SME,N,,
0000001152,FORE-MOST GARAGE DOORS LTD,73.00,Building Services,Repairs,07 Dec 2023,2324/09,SME,N,,
0010062554,OPUS PEOPLE SOLUTIONS LTD,"-1,896.90",Building Services,Recruitment,29 Nov 2023,2324/09,SME,Y,50%,
0000001159,CABOODLE TECHNOLGY LIMITED,63.56,Organisational Devt,Misc Employee Costs,20 Dec 2023,2324/09,SME,N,,
0010062300,A C LEIGH (NORWICH) LTD,-5.67,Building Services,"Equipment, Tools & Materials",21 Nov 2023,2324/09,SME,N,,
